Workbook

Sheet ادخال البيانات
A1: محافظة | H1: مدرسة
A2: إدارة
A3: كشف رصد درجات طلاب فصل / | J3: رائد الفصل :
A4: ادخال درجات المواد | E4: 100 | F4: 100 | G4: 100 | H4: 100 | I4: 80 | J4: 100 | K4: 100 | L4: 100 | M4: =SUM(E4:I4) -> 480
B5: الاســــــــــــــــــــم | C5: الصف | D5: الفصل | E5: لغة عربية | F5: لغة إنجليزية | G5: رياضيات | H5: دراسات | I5: علوم | J5: تربية دينية | K5: تربية فينة | L5: حاسب آلي
A6: م | E6: الدرجة | F6: الدرجة | G6: الدرجة | H6: الدرجة | I6: الدرجة | J6: الدرجة | K6: الدرجة | L6: الدرجة
A7: 1 | B7: الاسم 1 | C7: الصف السادس | D7: 1/1 | E7: غ | F7: غ | G7: 65 | H7: 63 | I7: 66 | J7: 66 | K7: 66 | L7: 66
A8: 2 | B8: الاسم 2 | C8: الصف السادس | D8: 1/1 | E8: 69 | F8: 65 | G8: 65 | H8: 58 | I8: 55 | J8: 55 | K8: 55 | L8: 55
A9: 3 | B9: الاسم 3 | C9: الصف السادس | D9: 1/1 | E9: غ | F9: 58 | G9: 75 | H9: 59 | I9: 50 | J9: 50 | K9: 50 | L9: 50
A10: 4 | B10: الاسم 4 | C10: الصف الخامس | D10: 1/1 | E10: غ | F10: 70 | G10: 69 | H10: 70 | I10: 56 | J10: 56 | K10: 56 | L10: 56
A11: 5 | B11: الاسم 5 | C11: الصف الثانى | D11: 1/5 | E11: غ | F11: 69 | G11: 65 | H11: 62 | I11: 57 | J11: 57 | K11: 57 | L11: 57
A12: 6 | B12: الاسم 6 | C12: الصف الاول | D12: 1/5 | E12: غ | F12: 66 | G12: 72 | H12: 68 | I12: 60 | J12: 60 | K12: 60 | L12: 60
A13: 7 | B13: الاسم 7 | C13: الصف الاول | D13: 1/5 | E13: غ | F13: 74 | G13: 73 | H13: 81 | I13: 69 | J13: 69 | K13: 69 | L13: 69
A14: 8 | B14: الاسم 8 | C14: الصف الاول | D14: 1/6 | E14: غ | F14: 95 | G14: 87 | H14: 91 | I14: 85 | J14: 85 | K14: 85 | L14: 85
A15: 9 | B15: الاسم 9 | C15: الصف الاول | D15: 1/6 | E15: غ | F15: 63 | G15: 55 | H15: 60 | I15: 55 | J15: 55 | K15: 55 | L15: 55
A16: 10 | B16: الاسم 10 | C16: الصف الاول | D16: 1/6 | E16: 68 | F16: 76 | G16: 65 | H16: 63 | I16: 64 | J16: 64 | K16: 64 | L16: 64
A17: 11 | B17: الاسم 11 | C17: الصف الاول | D17: 1/4 | E17: غ | F17: 93 | G17: 83 | H17: 89 | I17: غ | J17: 84 | K17: 84 | L17: 84
A18: 12 | B18: الاسم 12 | C18: الصف الاول | D18: 1/6 | E18: 91 | F18: 90 | G18: 75 | H18: 86 | I18: 72 | J18: 72 | K18: 72 | L18: 72
A19: 13 | B19: الاسم 13 | C19: الصف الاول | D19: 1/6 | E19: 77 | F19: 77 | G19: 69 | H19: 67 | I19: 64 | J19: 64 | K19: 64 | L19: 64
A20: 14 | B20: الاسم 14 | C20: الصف الاول | D20: 1/4 | E20: 76 | F20: 69 | G20: 65 | H20: 61 | I20: 59 | J20: 59 | K20: 59 | L20: 59
A21: 15 | B21: الاسم 15 | C21: الصف الاول | D21: 1/6 | E21: 97 | F21: 96 | G21: 86 | H21: 95 | I21: 96 | J21: 96 | K21: 96 | L21: 96
A22: 16 | B22: الاسم 16 | C22: الصف الاول | D22: 1/6 | E22: 96 | F22: 95 | G22: 90 | H22: 97 | I22: 95 | J22: 95 | K22: 95 | L22: 95
A23: 17 | B23: الاسم 17 | C23: الصف الاول | D23: 1/6 | E23: 87 | F23: 77 | G23: 78 | H23: 76 | I23: 74 | J23: 74 | K23: 74 | L23: 74
A24: 18 | B24: الاسم 18 | C24: الصف الاول | D24: 1/6 | E24: 80 | F24: 80 | G24: 80 | H24: 82 | I24: 65 | J24: 65 | K24: 65 | L24: 65
A25: 19 | B25: الاسم 19 | C25: الصف الاول | D25: 1/6 | E25: 80 | F25: 82 | G25: 87 | H25: 79 | I25: 85 | J25: 85 | K25: 85 | L25: 85
A26: 20 | B26: الاسم 20 | C26: الصف الاول | D26: 1/6 | E26: 96 | F26: 93 | G26: 85 | H26: 89 | I26: 97 | J26: 97 | K26: 97 | L26: 97
A27: 21 | B27: الاسم 21 | C27: الصف الاول | D27: 1/6 | E27: 73 | F27: 73 | G27: 76 | H27: 79 | I27: 62 | J27: 62 | K27: 62 | L27: 62
A28: 22 | B28: الاسم 22 | C28: الصف الاول | D28: 1/6 | E28: 67 | F28: 56 | G28: 67 | H28: 69 | I28: 51 | J28: 51 | K28: 51 | L28: 51
A29: 23 | B29: الاسم 23 | C29: الصف الاول | D29: 1/6 | E29: 79 | F29: 74 | G29: 61 | H29: 80 | I29: 63 | J29: 63 | K29: 63 | L29: 63
A30: 24 | B30: الاسم 24 | C30: الصف الاول | D30: 1/6 | E30: 74 | F30: 81 | G30: 63 | H30: 79 | I30: 76 | J30: 76 | K30: 76 | L30: 76
A31: 25 | B31: الاسم 25 | C31: الصف الاول | D31: 1/6 | E31: 96 | F31: 95 | G31: 95 | H31: 95 | I31: 96 | J31: 96 | K31: 96 | L31: 96
A32: 26 | B32: الاسم 26 | C32: الصف الاول | D32: 1/6 | E32: غ | F32: غ | G32: غ | H32: غ | I32: غ | J32: غ | K32: غ | L32: غ
A33: 27 | B33: الاسم 27 | C33: الصف الاول | D33: 1/6 | E33: 98 | F33: 77 | G33: 90 | H33: 94 | I33: 98 | J33: 98 | K33: 98 | L33: 98
A34: 28 | B34: الاسم 28 | C34: الصف الاول | D34: 1/6 | E34: 71 | F34: 62 | G34: 66 | H34: 67 | I34: 67 | J34: 67 | K34: 67 | L34: 67
A35: 29 | B35: الاسم 29 | C35: الصف الاول | D35: 1/6 | E35: 84 | F35: 79 | G35: 75 | H35: 84 | I35: 76 | J35: 76 | K35: 76 | L35: 76
A36: 30 | B36: الاسم 30 | C36: الصف الاول | D36: 1/6 | E36: 60 | F36: 53 | G36: 72 | H36: 54 | I36: 53 | J36: 53 | K36: 53 | L36: 53
A37: 31 | B37: الاسم 31 | C37: الصف الاول | D37: 1/6 | E37: 92 | F37: 93 | G37: 87 | H37: 93 | I37: 93 | J37: 93 | K37: 93 | L37: 93
A38: 32 | B38: الاسم 32 | C38: الصف الاول | D38: 1/6 | E38: 62 | F38: 71 | G38: 78 | H38: 82 | I38: 60 | J38: 60 | K38: 60 | L38: 60
A39: 33 | B39: الاسم 33 | C39: الصف الاول | D39: 1/6 | E39: 68 | F39: 70 | G39: 66 | H39: 72 | I39: 73 | J39: 73 | K39: 73 | L39: 73
A40: 34 | B40: الاسم 34 | C40: الصف الاول | D40: 1/1 | E40: 73 | F40: 73 | G40: 76 | H40: 79 | I40: 62 | J40: 62 | K40: 62 | L40: 62
A41: 35 | B41: الاسم 35 | C41: الصف الاول | D41: 1/1 | E41: 67 | F41: 56 | G41: 67 | H41: 69 | I41: 51 | J41: 51 | K41: 51 | L41: 51
A42: 36 | B42: الاسم 36 | C42: الصف الاول | D42: 1/1 | E42: 79 | F42: 74 | G42: 61 | H42: 80 | I42: 63 | J42: 63 | K42: 63 | L42: 63
A43: 37 | B43: الاسم 37 | C43: الصف الاول | D43: 1/1 | E43: 74 | F43: 81 | G43: 63 | H43: 79 | I43: 76 | J43: 76 | K43: 76 | L43: 76
A44: 38 | B44: الاسم 38 | C44: الصف الاول | D44: 1/1 | E44: 96 | F44: 95 | G44: 95 | H44: 95 | I44: 96 | J44: 96 | K44: 96 | L44: 96
A45: 39 | B45: الاسم 39 | C45: الصف الاول | D45: 1/1 | E45: غ | F45: غ | G45: غ | H45: غ | I45: غ | J45: غ | K45: غ | L45: غ
A46: 40 | B46: الاسم 40 | C46: الصف الاول | D46: 1/1 | E46: 98 | F46: 77 | G46: 90 | H46: 94 | I46: 98 | J46: 98 | K46: 98 | L46: 98
A47: 41 | B47: الاسم 41 | C47: الصف الاول | D47: 1/1 | E47: 71 | F47: 62 | G47: 66 | H47: 67 | I47: 67 | J47: 67 | K47: 67 | L47: 67
A48: 42 | B48: الاسم 42 | C48: الصف الاول | D48: 1/1 | E48: 84 | F48: 79 | G48: 75 | H48: 84 | I48: 76 | J48: 76 | K48: 76 | L48: 76
A49: 43 | B49: الاسم 43 | C49: الصف الاول | D49: 1/1 | E49: 60 | F49: 53 | G49: 72 | H49: 54 | I49: 53 | J49: 53 | K49: 53 | L49: 53
A50: 44 | B50: الاسم 44 | C50: الصف الاول | D50: 1/1 | E50: 92 | F50: 93 | G50: 87 | H50: 93 | I50: 93 | J50: 93 | K50: 93 | L50: 93
A51: 45 | B51: الاسم 45 | C51: الصف الاول | D51: 1/1 | E51: 62 | F51: 71 | G51: 78 | H51: 82 | I51: 60 | J51: 60 | K51: 60 | L51: 60
A52: 46 | B52: الاسم 46 | C52: الصف الاول | D52: 1/1 | E52: 68 | F52: 70 | G52: 66 | H52: 72 | I52: 73 | J52: 73 | K52: 73 | L52: 73
A53: 47 | B53: الاسم 47 | C53: الصف الثانى | D53: 1/2 | E53: 79 | F53: 74 | G53: 61 | H53: 80 | I53: 63 | J53: 63 | K53: 63 | L53: 63
A54: 48 | B54: الاسم 48 | C54: الصف الثانى | D54: 1/2 | E54: 74 | F54: 81 | G54: 63 | H54: 79 | I54: 76 | J54: 76 | K54: 76 | L54: 76
A55: 49 | B55: الاسم 49 | C55: الصف الثانى | D55: 1/2 | E55: 96 | F55: 95 | G55: 95 | H55: 95 | I55: 96 | J55: 96 | K55: 96 | L55: 96
A56: 50 | B56: الاسم 50 | C56: الصف الثانى | D56: 1/2 | E56: غ | F56: غ | G56: غ | H56: غ | I56: غ | J56: غ | K56: غ | L56: غ
A57: 51 | B57: الاسم 51 | C57: الصف الثانى | D57: 1/2 | E57: 98 | F57: 77 | G57: 90 | H57: 94 | I57: 98 | J57: 98 | K57: 98 | L57: 98
A58: 52 | B58: الاسم 52 | C58: الصف الثانى | D58: 1/2 | E58: 71 | F58: 62 | G58: 66 | H58: 67 | I58: 67 | J58: 67 | K58: 67 | L58: 67
A59: 53 | B59: الاسم 53 | C59: الصف الثانى | D59: 1/2 | E59: 84 | F59: 79 | G59: 75 | H59: 84 | I59: 76 | J59: 76 | K59: 76 | L59: 76
A60: 54 | B60: الاسم 54 | C60: الصف الثانى | D60: 1/2 | E60: 60 | F60: 53 | G60: 72 | H60: 54 | I60: 53 | J60: 53 | K60: 53 | L60: 53
A61: 55 | B61: الاسم 55 | C61: الصف الثانى | D61: 1/2 | E61: 92 | F61: 93 | G61: 87 | H61: 93 | I61: 93 | J61: 93 | K61: 93 | L61: 93
A62: 56 | B62: الاسم 56 | C62: الصف الثانى | D62: 1/2 | E62: 62 | F62: 71 | G62: 78 | H62: 82 | I62: 60 | J62: 60 | K62: 60 | L62: 60
A63: 57 | B63: الاسم 57 | C63: الصف الثانى | D63: 1/2 | E63: 68 | F63: 70 | G63: 66 | H63: 72 | I63: 73 | J63: 73 | K63: 73 | L63: 73
A64: 58 | B64: الاسم 58 | C64: الصف الثالث | D64: 1/3 | E64: 60 | F64: 53 | G64: 72 | H64: 54 | I64: 53 | J64: 53 | K64: 53 | L64: 53
A65: 59 | B65: الاسم 59 | C65: الصف الثالث | D65: 1/3 | E65: 92 | F65: 93 | G65: 87 | H65: 93 | I65: 93 | J65: 93 | K65: 93 | L65: 93
A66: 60 | B66: الاسم 60 | C66: الصف الثالث | D66: 1/3 | E66: 62 | F66: 71 | G66: 78 | H66: 82 | I66: 60 | J66: 60 | K66: 60 | L66: 60
A67: 61 | B67: الاسم 61 | C67: الصف الثالث | D67: 1/3 | E67: 68 | F67: 70 | G67: 66 | H67: 72 | I67: 73 | J67: 73 | K67: 73 | L67: 73
A68: 62 | B68: الاسم 62 | C68: الصف الثالث | D68: 1/3 | E68: 79 | F68: 74 | G68: 61 | H68: 80 | I68: 63 | J68: 63 | K68: 63 | L68: 63
A69: 63 | B69: الاسم 63 | C69: الصف الثالث | D69: 1/3 | E69: 74 | F69: 81 | G69: 63 | H69: 79 | I69: 76 | J69: 76 | K69: 76 | L69: 76
A70: 64 | B70: الاسم 64 | C70: الصف الثالث | D70: 1/3 | E70: 96 | F70: 95 | G70: 95 | H70: 95 | I70: 96 | J70: 96 | K70: 96 | L70: 96
A71: 65 | B71: الاسم 65 | C71: الصف الثالث | D71: 1/3 | E71: غ | F71: غ | G71: غ | H71: غ | I71: غ | J71: غ | K71: غ | L71: غ
A72: 66 | B72: الاسم 66 | C72: الصف الثالث | D72: 1/3 | E72: 98 | F72: 77 | G72: 90 | H72: 94 | I72: 98 | J72: 98 | K72: 98 | L72: 98
A73: 67 | B73: الاسم 67 | C73: الصف الثالث | D73: 1/3 | E73: 71 | F73: 62 | G73: 66 | H73: 67 | I73: 67 | J73: 67 | K73: 67 | L73: 67
A74: 68 | B74: الاسم 68 | C74: الصف الثالث | D74: 1/3 | E74: 84 | F74: 79 | G74: 75 | H74: 84 | I74: 76 | J74: 76 | K74: 76 | L74: 76
A75: 69 | B75: الاسم 69 | C75: الصف الثالث | D75: 1/3 | E75: 60 | F75: 53 | G75: 72 | H75: 54 | I75: 53 | J75: 53 | K75: 53 | L75: 53
A76: 70 | B76: الاسم 70 | C76: الصف الثالث | D76: 1/3 | E76: 92 | F76: 93 | G76: 87 | H76: 93 | I76: 93 | J76: 93 | K76: 93 | L76: 93
A77: 71 | B77: الاسم 71 | C77: الصف الثالث | D77: 1/3 | E77: 62 | F77: 71 | G77: 78 | H77: 82 | I77: 60 | J77: 60 | K77: 60 | L77: 60
A78: 72 | B78: الاسم 72 | C78: الصف الثالث | D78: 1/2 | E78: 68 | F78: 70 | G78: 66 | H78: 72 | I78: 73 | J78: 73 | K78: 73 | L78: 73
A79: 73 | B79: الاسم 73 | C79: الصف الثالث | D79: 1/3 | E79: 68 | F79: 70 | G79: 66 | H79: 72 | I79: 73 | J79: 73 | K79: 73 | L79: 73
A80: 74 | B80: الاسم 74 | C80: الصف الاول | D80: 1/4 | E80: 79 | F80: 74 | G80: 61 | H80: 80 | I80: 63 | J80: 63 | K80: 63 | L80: 63
A81: 75 | B81: الاسم 75 | C81: الصف الرابع | D81: 1/4 | E81: 74 | F81: 81 | G81: 63 | H81: 79 | I81: 76 | J81: 76 | K81: 76 | L81: 76
A82: 76 | B82: الاسم 76 | C82: الصف الرابع | D82: 1/4 | E82: 96 | F82: 95 | G82: 95 | H82: 95 | I82: 96 | J82: 96 | K82: 96 | L82: 96
A83: 77 | B83: الاسم 77 | C83: الصف الرابع | D83: 1/4 | E83: غ | F83: غ | G83: غ | H83: غ | I83: غ | J83: غ | K83: غ | L83: غ
A84: 78 | B84: الاسم 78 | C84: الصف الرابع | D84: 1/4 | E84: 98 | F84: 77 | G84: 90 | H84: 94 | I84: 98 | J84: 98 | K84: 98 | L84: 98
A85: 79 | B85: الاسم 79 | C85: الصف الرابع | D85: 1/4 | E85: 71 | F85: 62 | G85: 66 | H85: 67 | I85: 67 | J85: 67 | K85: 67 | L85: 67
A86: 80 | B86: الاسم 80 | C86: الصف الرابع | D86: 1/4 | E86: 84 | F86: 79 | G86: 75 | H86: 84 | I86: 76 | J86: 76 | K86: 76 | L86: 76
A87: 81 | B87: الاسم 81 | C87: الصف الرابع | D87: 1/4 | E87: 60 | F87: 53 | G87: 72 | H87: 54 | I87: 53 | J87: 53 | K87: 53 | L87: 53
A88: 82 | B88: الاسم 82 | C88: الصف الرابع | D88: 1/4 | E88: 92 | F88: 93 | G88: 87 | H88: 93 | I88: 93 | J88: 93 | K88: 93 | L88: 93
A89: 83 | B89: الاسم 83 | C89: الصف الرابع | D89: 1/4 | E89: 62 | F89: 71 | G89: 78 | H89: 82 | I89: 60 | J89: 60 | K89: 60 | L89: 60
A90: 84 | B90: الاسم 84 | C90: الصف الرابع | D90: 1/4 | E90: 68 | F90: 70 | G90: 66 | H90: 72 | I90: 73 | J90: 73 | K90: 73 | L90: 73
A91: 85
A92: 86
A93: 87
A94: 88
A95: 89
A96: 90
A97: 91
A98: 92
A99: 93
A100: 94
A101: 95
A102: 96
A103: 97
A104: 98
A105: 99
A106: 100
A107: 101
A108: 102
A109: 103
A110: 104
A111: 105
A112: 106
A113: 107
A114: 108
A115: 109
A116: 110
A117: 111
A118: 112
A119: 113
A120: 114
A121: 115
A122: 116
A123: 117
A124: 118
A125: 119
A126: 120
A127: 121
A128: 122
A129: 123
A130: 124
A131: 125
A132: 126
A133: 127
A134: 128
A135: 129
A136: 130
A137: 131
A138: 132
A139: 133
A140: 134
A141: 135
A142: 136
A143: 137
A144: 138
A145: 139
A146: 140
A147: 141
A148: 142
A149: 143
A150: 144
A151: 145
A152: 146
A153: 147
A154: 148
A155: 149
A156: 150
A157: 151
A158: 152
A159: 153
A160: 154
A161: 155
A162: 156
A163: 157
A164: 158
A165: 159
A166: 160
A167: 161
A168: 162
A169: 163
A170: 164
A171: 165
A172: 166
A173: 167
A174: 168
A175: 169
A176: 170
A177: 171
A178: 172
A179: 173
A180: 174
A181: 175
A182: 176
A183: 177
A184: 178
A185: 179
A186: 180
A187: 181
A188: 182
A189: 183
A190: 184
A191: 185
A192: 186
A193: 187
A194: 188
A195: 189
A196: 190
A197: 191
A198: 192
A199: 193
A200: 194
... 306 more rows

Sheet Main
A1: محافظة | N1: مدرسة | AD1: عدد التلاميذ | AF1: =COUNT(B8:B661) -> 570 | AI1: الصفوف | AK1: الفصول | AM1: المواد | AN1: نطاق المادة
A2: إدارة | AD2: الورقة الثانية | AI2: الصف الاول | AJ2: =COUNTIFS(t_الصف,AI2) -> 42 | AK2: 1/1 | AM2: اللغة العربية | AN2: T_عربي
A3: كشف رصد درجات طلاب فصل / | T3: رائد الفصل : | AI3: الصف الثانى | AJ3: =COUNTIFS(t_الصف,AI3) -> 12 | AK3: 2/1 | AM3: الرياضيات | AN3: T_رياضيات
A4: ادخال درجات المواد | E4: اللغة العربية | H4: اللغة الانجليزية | K4: الرياضيات | N4: الدراسات الاجتماعية | Q4: العلوم | T4: التربية الدينية | W4: التربية الفنية | Z4: الحاسب الالى | AC4: =SUM(E4:Q4) -> 0 | AI4: الصف الثالث | AJ4: =COUNTIFS(t_الصف,AI4) -> 16 | AK4: 3/1 | AM4: اللغة الانجليزية | AN4: T_انجليزى
A5: م | B5: الاســــــــــــــــــــم | C5: الصف | D5: الفصل | E5: الدرجة | F5: النسبة | G5: تقدير | H5: الدرجة | I5: النسبة | J5: تقدير | K5: الدرجة | L5: النسبة | M5: تقدير | N5: الدرجة | O5: النسبة | P5: تقدير | Q5: الدرجة | R5: النسبة | S5: تقدير | T5: الدرجة | U5: النسبة | V5: تقدير | W5: الدرجة | X5: النسبة | Y5: تقدير | Z5: الدرجة | AA5: النسبة | AB5: تقدير | AI5: الصف الرابع | AJ5: =COUNTIFS(t_الصف,AI5) -> 10 | AK5: 1/2 | AM5: الدراسات الاجتماعية | AN5: T_دراسات
E6: ='ادخال البيانات'!E4 -> 100 | H6: ='ادخال البيانات'!F4 -> 100 | K6: ='ادخال البيانات'!G4 -> 100 | N6: ='ادخال البيانات'!H4 -> 100 | Q6: ='ادخال البيانات'!I4 -> 80 | T6: ='ادخال البيانات'!J4 -> 100 | W6: ='ادخال البيانات'!K4 -> 100 | Z6: ='ادخال البيانات'!L4 -> 100 | AI6: الصف الخامس | AJ6: =COUNTIFS(t_الصف,AI6) -> 1 | AK6: 2/2 | AM6: العلوم | AN6: T_علوم
B7: الإسم | C7: الصف | D7: الفصل | E7: اللغة العربية | F7: النسبة | H7: اللغة الانجليزية | I7: النسبة | K7: الرياضيات | L7: النسبة | N7: الدراسات الاجتماعية | O7: النسبة | Q7: العلوم | R7: النسبة | T7: التربية الدينية | U7: النسبة | W7: التربية الفنية | X7: النسبة | Z7: الحاسب الالى | AA7: النسبة
A8: ='ادخال البيانات'!A7 -> 1 | B8: ='ادخال البيانات'!B7 -> الاسم 1 | C8: ='ادخال البيانات'!C7 -> الصف السادس | D8: ='ادخال البيانات'!D7 -> 1/1 | E8: ='ادخال البيانات'!E7 -> غ | F8: =IF(B8="","",IF(E8="غ","غ",IF(ISTEXT(E8),0,E8/E$6))) -> غ | G8: =IF(F8="","",IF(F8="غ","غ",VLOOKUP(F8,TTT,2,TRUE))) -> غ | H8: ='ادخال البيانات'!F7 -> غ | I8: =IF(H8="","",IF(H8="غ","غ",IF(ISTEXT(H8),0,H8/H$6))) -> غ | J8: =IF(I8="","",IF(I8="غ","غ",VLOOKUP(I8,TTT,2,TRUE))) -> غ | K8: ='ادخال البيانات'!G7 -> 65 | L8: =IF(K8="","",IF(K8="غ","غ",IF(ISTEXT(K8),0,K8/K$6))) -> 0.65 | M8: =IF(L8="","",IF(L8="غ","غ",VLOOKUP(L8,TTT,2,TRUE))) -> 3 | N8: ='ادخال البيانات'!H7 -> 63 | O8: =IF(N8="","",IF(N8="غ","غ",IF(ISTEXT(N8),0,N8/N$6))) -> 0.63 | P8: =IF(O8="","",IF(O8="غ","غ",VLOOKUP(O8,TTT,2,TRUE))) -> 2 | Q8: ='ادخال البيانات'!I7 -> 66 | R8: =IF(Q8="","",IF(Q8="غ","غ",IF(ISTEXT(Q8),0,Q8/Q$6))) -> 0.825 | S8: =IF(R8="","",IF(R8="غ","غ",VLOOKUP(R8,TTT,2,TRUE))) -> 4 | T8: ='ادخال البيانات'!J7 -> 66 | U8: =IF(T8="","",IF(T8="غ","غ",IF(ISTEXT(T8),0,T8/T$6))) -> 0.66 | V8: =IF(U8="","",IF(U8="غ","غ",VLOOKUP(U8,TTT,2,TRUE))) -> 3 | W8: ='ادخال البيانات'!K7 -> 66 | X8: =IF(W8="","",IF(W8="غ","غ",IF(ISTEXT(W8),0,W8/W$6))) -> 0.66 | Y8: =IF(X8="","",IF(X8="غ","غ",VLOOKUP(X8,TTT,2,TRUE))) -> 3 | Z8: ='ادخال البيانات'!L7 -> 66 | AA8: =IF(Z8="","",IF(Z8="غ","غ",IF(ISTEXT(Z8),0,Z8/Z$6))) -> 0.66 | AB8: =IF(AA8="","",IF(AA8="غ","غ",VLOOKUP(AA8,TTT,2,TRUE))) -> 3 | AE8: الورقة الأولى | AF8: =COUNTA(B8:B37) -> 30 | AI8: الصف السادس | AJ8: =COUNTIFS(t_الصف,AI8) -> 3 | AK8: 3/2 | AM8: التربية الدينية | AN8: T_دين
A9: ='ادخال البيانات'!A8 -> 2 | B9: ='ادخال البيانات'!B8 -> الاسم 2 | C9: ='ادخال البيانات'!C8 -> الصف السادس | D9: ='ادخال البيانات'!D8 -> 1/1 | E9: ='ادخال البيانات'!E8 -> 69 | F9: 0.69 | G9: 3 | H9: ='ادخال البيانات'!F8 -> 65 | I9: =IF(H9="","",IF(H9="غ","غ",IF(ISTEXT(H9),0,H9/H$6))) -> 0.65 | J9: 3 | K9: ='ادخال البيانات'!G8 -> 65 | L9: =IF(K9="","",IF(K9="غ","غ",IF(ISTEXT(K9),0,K9/K$6))) -> 0.65 | M9: 3 | N9: ='ادخال البيانات'!H8 -> 58 | O9: =IF(N9="","",IF(N9="غ","غ",IF(ISTEXT(N9),0,N9/N$6))) -> 0.58 | P9: 2 | Q9: ='ادخال البيانات'!I8 -> 55 | R9: =IF(Q9="","",IF(Q9="غ","غ",IF(ISTEXT(Q9),0,Q9/Q$6))) -> 0.6875 | S9: 3 | T9: ='ادخال البيانات'!J8 -> 55 | U9: =IF(T9="","",IF(T9="غ","غ",IF(ISTEXT(T9),0,T9/T$6))) -> 0.55 | V9: 2 | W9: ='ادخال البيانات'!K8 -> 55 | X9: =IF(W9="","",IF(W9="غ","غ",IF(ISTEXT(W9),0,W9/W$6))) -> 0.55 | Y9: 2 | Z9: ='ادخال البيانات'!L8 -> 55 | AA9: =IF(Z9="","",IF(Z9="غ","غ",IF(ISTEXT(Z9),0,Z9/Z$6))) -> 0.55 | AB9: 2 | AI9: اجمالى | AK9: 1/3 | AM9: التربية الفنية | AN9: T_فنية | AT9: 0 | AU9: 0
A10: ='ادخال البيانات'!A9 -> 3 | B10: ='ادخال البيانات'!B9 -> الاسم 3 | C10: ='ادخال البيانات'!C9 -> الصف السادس | D10: ='ادخال البيانات'!D9 -> 1/1 | E10: ='ادخال البيانات'!E9 -> غ | F10: غ | G10: غ | H10: ='ادخال البيانات'!F9 -> 58 | I10: 0.58 | J10: 2 | K10: ='ادخال البيانات'!G9 -> 75 | L10: 0.75 | M10: 4 | N10: ='ادخال البيانات'!H9 -> 59 | O10: 0.59 | P10: 2 | Q10: ='ادخال البيانات'!I9 -> 50 | R10: 0.625 | S10: 2 | T10: ='ادخال البيانات'!J9 -> 50 | U10: 0.5 | V10: 2 | W10: ='ادخال البيانات'!K9 -> 50 | X10: 0.5 | Y10: 2 | Z10: ='ادخال البيانات'!L9 -> 50 | AA10: 0.5 | AB10: 2 | AK10: 2/3 | AM10: الحاسب الالى | AN10: T_حاسب | AT10: 0.01 | AU10: 1
A11: ='ادخال البيانات'!A10 -> 4 | B11: ='ادخال البيانات'!B10 -> الاسم 4 | C11: ='ادخال البيانات'!C10 -> الصف الخامس | D11: ='ادخال البيانات'!D10 -> 1/1 | E11: ='ادخال البيانات'!E10 -> غ | F11: غ | G11: غ | H11: ='ادخال البيانات'!F10 -> 70 | I11: 0.7 | J11: 3 | K11: ='ادخال البيانات'!G10 -> 69 | L11: 0.69 | M11: 3 | N11: ='ادخال البيانات'!H10 -> 70 | O11: 0.7 | P11: 3 | Q11: ='ادخال البيانات'!I10 -> 56 | R11: 0.7 | S11: 3 | T11: ='ادخال البيانات'!J10 -> 56 | U11: 0.56 | V11: 2 | W11: ='ادخال البيانات'!K10 -> 56 | X11: 0.56 | Y11: 2 | Z11: ='ادخال البيانات'!L10 -> 56 | AA11: 0.56 | AB11: 2 | AK11: 3/3 | AT11: 0.5 | AU11: 2
A12: ='ادخال البيانات'!A11 -> 5 | B12: ='ادخال البيانات'!B11 -> الاسم 5 | C12: ='ادخال البيانات'!C11 -> الصف الثانى | D12: ='ادخال البيانات'!D11 -> 1/5 | E12: ='ادخال البيانات'!E11 -> غ | F12: غ | G12: غ | H12: ='ادخال البيانات'!F11 -> 69 | I12: 0.69 | J12: 3 | K12: ='ادخال البيانات'!G11 -> 65 | L12: 0.65 | M12: 3 | N12: ='ادخال البيانات'!H11 -> 62 | O12: 0.62 | P12: 2 | Q12: ='ادخال البيانات'!I11 -> 57 | R12: 0.7125 | S12: 3 | T12: ='ادخال البيانات'!J11 -> 57 | U12: 0.57 | V12: 2 | W12: ='ادخال البيانات'!K11 -> 57 | X12: 0.57 | Y12: 2 | Z12: ='ادخال البيانات'!L11 -> 57 | AA12: 0.57 | AB12: 2 | AK12: 1/4 | AT12: 0.65 | AU12: 3
A13: ='ادخال البيانات'!A12 -> 6 | B13: ='ادخال البيانات'!B12 -> الاسم 6 | C13: ='ادخال البيانات'!C12 -> الصف الاول | D13: ='ادخال البيانات'!D12 -> 1/5 | E13: ='ادخال البيانات'!E12 -> غ | F13: غ | G13: غ | H13: ='ادخال البيانات'!F12 -> 66 | I13: 0.66 | J13: 3 | K13: ='ادخال البيانات'!G12 -> 72 | L13: 0.72 | M13: 3 | N13: ='ادخال البيانات'!H12 -> 68 | O13: 0.68 | P13: 3 | Q13: ='ادخال البيانات'!I12 -> 60 | R13: 0.75 | S13: 4 | T13: ='ادخال البيانات'!J12 -> 60 | U13: 0.6 | V13: 2 | W13: ='ادخال البيانات'!K12 -> 60 | X13: 0.6 | Y13: 2 | Z13: ='ادخال البيانات'!L12 -> 60 | AA13: 0.6 | AB13: 2 | AK13: 2/4 | AT13: 0.75 | AU13: 4
A14: ='ادخال البيانات'!A13 -> 7 | B14: ='ادخال البيانات'!B13 -> الاسم 7 | C14: ='ادخال البيانات'!C13 -> الصف الاول | D14: ='ادخال البيانات'!D13 -> 1/5 | E14: ='ادخال البيانات'!E13 -> غ | F14: غ | G14: غ | H14: ='ادخال البيانات'!F13 -> 74 | I14: 0.74 | J14: 3 | K14: ='ادخال البيانات'!G13 -> 73 | L14: 0.73 | M14: 3 | N14: ='ادخال البيانات'!H13 -> 81 | O14: 0.81 | P14: 4 | Q14: ='ادخال البيانات'!I13 -> 69 | R14: 0.8625 | S14: 5 | T14: ='ادخال البيانات'!J13 -> 69 | U14: 0.69 | V14: 3 | W14: ='ادخال البيانات'!K13 -> 69 | X14: 0.69 | Y14: 3 | Z14: ='ادخال البيانات'!L13 -> 69 | AA14: 0.69 | AB14: 3 | AK14: 1/5 | AT14: 0.85 | AU14: 5
A15: ='ادخال البيانات'!A14 -> 8 | B15: ='ادخال البيانات'!B14 -> الاسم 8 | C15: ='ادخال البيانات'!C14 -> الصف الاول | D15: ='ادخال البيانات'!D14 -> 1/6 | E15: ='ادخال البيانات'!E14 -> غ | F15: غ | G15: غ | H15: ='ادخال البيانات'!F14 -> 95 | I15: 0.95 | J15: 6 | K15: ='ادخال البيانات'!G14 -> 87 | L15: 0.87 | M15: 5 | N15: ='ادخال البيانات'!H14 -> 91 | O15: 0.91 | P15: 5 | Q15: ='ادخال البيانات'!I14 -> 85 | R15: 1.0625 | S15: 6 | T15: ='ادخال البيانات'!J14 -> 85 | U15: 0.85 | V15: 5 | W15: ='ادخال البيانات'!K14 -> 85 | X15: 0.85 | Y15: 5 | Z15: ='ادخال البيانات'!L14 -> 85 | AA15: 0.85 | AB15: 5 | AK15: 2/5 | AT15: 0.95 | AU15: 6
A16: ='ادخال البيانات'!A15 -> 9 | B16: ='ادخال البيانات'!B15 -> الاسم 9 | C16: ='ادخال البيانات'!C15 -> الصف الاول | D16: ='ادخال البيانات'!D15 -> 1/6 | E16: ='ادخال البيانات'!E15 -> غ | F16: غ | G16: غ | H16: ='ادخال البيانات'!F15 -> 63 | I16: 0.63 | J16: 2 | K16: ='ادخال البيانات'!G15 -> 55 | L16: 0.55 | M16: 2 | N16: ='ادخال البيانات'!H15 -> 60 | O16: 0.6 | P16: 2 | Q16: ='ادخال البيانات'!I15 -> 55 | R16: 0.6875 | S16: 3 | T16: ='ادخال البيانات'!J15 -> 55 | U16: 0.55 | V16: 2 | W16: ='ادخال البيانات'!K15 -> 55 | X16: 0.55 | Y16: 2 | Z16: ='ادخال البيانات'!L15 -> 55 | AA16: 0.55 | AB16: 2 | AK16: 3/5
A17: ='ادخال البيانات'!A16 -> 10 | B17: ='ادخال البيانات'!B16 -> الاسم 10 | C17: ='ادخال البيانات'!C16 -> الصف الاول | D17: ='ادخال البيانات'!D16 -> 1/6 | E17: ='ادخال البيانات'!E16 -> 68 | F17: 0.68 | G17: 3 | H17: ='ادخال البيانات'!F16 -> 76 | I17: 0.76 | J17: 4 | K17: ='ادخال البيانات'!G16 -> 65 | L17: 0.65 | M17: 3 | N17: ='ادخال البيانات'!H16 -> 63 | O17: 0.63 | P17: 2 | Q17: ='ادخال البيانات'!I16 -> 64 | R17: 0.8 | S17: 4 | T17: ='ادخال البيانات'!J16 -> 64 | U17: 0.64 | V17: 2 | W17: ='ادخال البيانات'!K16 -> 64 | X17: 0.64 | Y17: 2 | Z17: ='ادخال البيانات'!L16 -> 64 | AA17: 0.64 | AB17: 2 | AK17: 1/6
A18: ='ادخال البيانات'!A17 -> 11 | B18: ='ادخال البيانات'!B17 -> الاسم 11 | C18: ='ادخال البيانات'!C17 -> الصف الاول | D18: ='ادخال البيانات'!D17 -> 1/4 | E18: ='ادخال البيانات'!E17 -> غ | F18: غ | G18: غ | H18: ='ادخال البيانات'!F17 -> 93 | I18: 0.93 | J18: 5 | K18: ='ادخال البيانات'!G17 -> 83 | L18: 0.83 | M18: 4 | N18: ='ادخال البيانات'!H17 -> 89 | O18: 0.89 | P18: 5 | Q18: ='ادخال البيانات'!I17 -> غ | R18: غ | S18: غ | T18: ='ادخال البيانات'!J17 -> 84 | U18: 0.84 | V18: 4 | W18: ='ادخال البيانات'!K17 -> 84 | X18: 0.84 | Y18: 4 | Z18: ='ادخال البيانات'!L17 -> 84 | AA18: 0.84 | AB18: 4 | AK18: 2/6
A19: ='ادخال البيانات'!A18 -> 12 | B19: ='ادخال البيانات'!B18 -> الاسم 12 | C19: ='ادخال البيانات'!C18 -> الصف الاول | D19: ='ادخال البيانات'!D18 -> 1/6 | E19: ='ادخال البيانات'!E18 -> 91 | F19: 0.91 | G19: 5 | H19: ='ادخال البيانات'!F18 -> 90 | I19: 0.9 | J19: 5 | K19: ='ادخال البيانات'!G18 -> 75 | L19: 0.75 | M19: 4 | N19: ='ادخال البيانات'!H18 -> 86 | O19: 0.86 | P19: 5 | Q19: ='ادخال البيانات'!I18 -> 72 | R19: 0.9 | S19: 5 | T19: ='ادخال البيانات'!J18 -> 72 | U19: 0.72 | V19: 3 | W19: ='ادخال البيانات'!K18 -> 72 | X19: 0.72 | Y19: 3 | Z19: ='ادخال البيانات'!L18 -> 72 | AA19: 0.72 | AB19: 3 | AK19: 3/6
A20: ='ادخال البيانات'!A19 -> 13 | B20: ='ادخال البيانات'!B19 -> الاسم 13 | C20: ='ادخال البيانات'!C19 -> الصف الاول | D20: ='ادخال البيانات'!D19 -> 1/6 | E20: ='ادخال البيانات'!E19 -> 77 | F20: 0.77 | G20: 4 | H20: ='ادخال البيانات'!F19 -> 77 | I20: 0.77 | J20: 4 | K20: ='ادخال البيانات'!G19 -> 69 | L20: 0.69 | M20: 3 | N20: ='ادخال البيانات'!H19 -> 67 | O20: 0.67 | P20: 3 | Q20: ='ادخال البيانات'!I19 -> 64 | R20: 0.8 | S20: 4 | T20: ='ادخال البيانات'!J19 -> 64 | U20: 0.64 | V20: 2 | W20: ='ادخال البيانات'!K19 -> 64 | X20: 0.64 | Y20: 2 | Z20: ='ادخال البيانات'!L19 -> 64 | AA20: 0.64 | AB20: 2
A21: ='ادخال البيانات'!A20 -> 14 | B21: ='ادخال البيانات'!B20 -> الاسم 14 | C21: ='ادخال البيانات'!C20 -> الصف الاول | D21: ='ادخال البيانات'!D20 -> 1/4 | E21: ='ادخال البيانات'!E20 -> 76 | F21: 0.76 | G21: 4 | H21: ='ادخال البيانات'!F20 -> 69 | I21: 0.69 | J21: 3 | K21: ='ادخال البيانات'!G20 -> 65 | L21: 0.65 | M21: 3 | N21: ='ادخال البيانات'!H20 -> 61 | O21: 0.61 | P21: 2 | Q21: ='ادخال البيانات'!I20 -> 59 | R21: 0.7375 | S21: 3 | T21: ='ادخال البيانات'!J20 -> 59 | U21: 0.59 | V21: 2 | W21: ='ادخال البيانات'!K20 -> 59 | X21: 0.59 | Y21: 2 | Z21: ='ادخال البيانات'!L20 -> 59 | AA21: 0.59 | AB21: 2
A22: ='ادخال البيانات'!A21 -> 15 | B22: ='ادخال البيانات'!B21 -> الاسم 15 | C22: ='ادخال البيانات'!C21 -> الصف الاول | D22: ='ادخال البيانات'!D21 -> 1/6 | E22: ='ادخال البيانات'!E21 -> 97 | F22: 0.97 | G22: 6 | H22: ='ادخال البيانات'!F21 -> 96 | I22: 0.96 | J22: 6 | K22: ='ادخال البيانات'!G21 -> 86 | L22: 0.86 | M22: 5 | N22: ='ادخال البيانات'!H21 -> 95 | O22: 0.95 | P22: 6 | Q22: ='ادخال البيانات'!I21 -> 96 | R22: 1.2 | S22: 6 | T22: ='ادخال البيانات'!J21 -> 96 | U22: 0.96 | V22: 6 | W22: ='ادخال البيانات'!K21 -> 96 | X22: 0.96 | Y22: 6 | Z22: ='ادخال البيانات'!L21 -> 96 | AA22: 0.96 | AB22: 6
A23: ='ادخال البيانات'!A22 -> 16 | B23: ='ادخال البيانات'!B22 -> الاسم 16 | C23: ='ادخال البيانات'!C22 -> الصف الاول | D23: ='ادخال البيانات'!D22 -> 1/6 | E23: ='ادخال البيانات'!E22 -> 96 | F23: 0.96 | G23: 6 | H23: ='ادخال البيانات'!F22 -> 95 | I23: 0.95 | J23: 6 | K23: ='ادخال البيانات'!G22 -> 90 | L23: 0.9 | M23: 5 | N23: ='ادخال البيانات'!H22 -> 97 | O23: 0.97 | P23: 6 | Q23: ='ادخال البيانات'!I22 -> 95 | R23: 1.1875 | S23: 6 | T23: ='ادخال البيانات'!J22 -> 95 | U23: 0.95 | V23: 6 | W23: ='ادخال البيانات'!K22 -> 95 | X23: 0.95 | Y23: 6 | Z23: ='ادخال البيانات'!L22 -> 95 | AA23: 0.95 | AB23: 6
A24: ='ادخال البيانات'!A23 -> 17 | B24: ='ادخال البيانات'!B23 -> الاسم 17 | C24: ='ادخال البيانات'!C23 -> الصف الاول | D24: ='ادخال البيانات'!D23 -> 1/6 | E24: ='ادخال البيانات'!E23 -> 87 | F24: 0.87 | G24: 5 | H24: ='ادخال البيانات'!F23 -> 77 | I24: 0.77 | J24: 4 | K24: ='ادخال البيانات'!G23 -> 78 | L24: 0.78 | M24: 4 | N24: ='ادخال البيانات'!H23 -> 76 | O24: 0.76 | P24: 4 | Q24: ='ادخال البيانات'!I23 -> 74 | R24: 0.925 | S24: 5 | T24: ='ادخال البيانات'!J23 -> 74 | U24: 0.74 | V24: 3 | W24: ='ادخال البيانات'!K23 -> 74 | X24: 0.74 | Y24: 3 | Z24: ='ادخال البيانات'!L23 -> 74 | AA24: 0.74 | AB24: 3
A25: ='ادخال البيانات'!A24 -> 18 | B25: ='ادخال البيانات'!B24 -> الاسم 18 | C25: ='ادخال البيانات'!C24 -> الصف الاول | D25: ='ادخال البيانات'!D24 -> 1/6 | E25: ='ادخال البيانات'!E24 -> 80 | F25: 0.8 | G25: 4 | H25: ='ادخال البيانات'!F24 -> 80 | I25: 0.8 | J25: 4 | K25: ='ادخال البيانات'!G24 -> 80 | L25: 0.8 | M25: 4 | N25: ='ادخال البيانات'!H24 -> 82 | O25: 0.82 | P25: 4 | Q25: ='ادخال البيانات'!I24 -> 65 | R25: 0.8125 | S25: 4 | T25: ='ادخال البيانات'!J24 -> 65 | U25: 0.65 | V25: 3 | W25: ='ادخال البيانات'!K24 -> 65 | X25: 0.65 | Y25: 3 | Z25: ='ادخال البيانات'!L24 -> 65 | AA25: 0.65 | AB25: 3
A26: ='ادخال البيانات'!A25 -> 19 | B26: ='ادخال البيانات'!B25 -> الاسم 19 | C26: ='ادخال البيانات'!C25 -> الصف الاول | D26: ='ادخال البيانات'!D25 -> 1/6 | E26: ='ادخال البيانات'!E25 -> 80 | F26: 0.8 | G26: 4 | H26: ='ادخال البيانات'!F25 -> 82 | I26: 0.82 | J26: 4 | K26: ='ادخال البيانات'!G25 -> 87 | L26: 0.87 | M26: 5 | N26: ='ادخال البيانات'!H25 -> 79 | O26: 0.79 | P26: 4 | Q26: ='ادخال البيانات'!I25 -> 85 | R26: 1.0625 | S26: 6 | T26: ='ادخال البيانات'!J25 -> 85 | U26: 0.85 | V26: 5 | W26: ='ادخال البيانات'!K25 -> 85 | X26: 0.85 | Y26: 5 | Z26: ='ادخال البيانات'!L25 -> 85 | AA26: 0.85 | AB26: 5
A27: ='ادخال البيانات'!A26 -> 20 | B27: ='ادخال البيانات'!B26 -> الاسم 20 | C27: ='ادخال البيانات'!C26 -> الصف الاول | D27: ='ادخال البيانات'!D26 -> 1/6 | E27: ='ادخال البيانات'!E26 -> 96 | F27: 0.96 | G27: 6 | H27: ='ادخال البيانات'!F26 -> 93 | I27: 0.93 | J27: 5 | K27: ='ادخال البيانات'!G26 -> 85 | L27: 0.85 | M27: 5 | N27: ='ادخال البيانات'!H26 -> 89 | O27: 0.89 | P27: 5 | Q27: ='ادخال البيانات'!I26 -> 97 | R27: 1.2125 | S27: 6 | T27: ='ادخال البيانات'!J26 -> 97 | U27: 0.97 | V27: 6 | W27: ='ادخال البيانات'!K26 -> 97 | X27: 0.97 | Y27: 6 | Z27: ='ادخال البيانات'!L26 -> 97 | AA27: 0.97 | AB27: 6
A28: ='ادخال البيانات'!A27 -> 21 | B28: ='ادخال البيانات'!B27 -> الاسم 21 | C28: ='ادخال البيانات'!C27 -> الصف الاول | D28: ='ادخال البيانات'!D27 -> 1/6 | E28: ='ادخال البيانات'!E27 -> 73 | F28: 0.73 | G28: 3 | H28: ='ادخال البيانات'!F27 -> 73 | I28: 0.73 | J28: 3 | K28: ='ادخال البيانات'!G27 -> 76 | L28: 0.76 | M28: 4 | N28: ='ادخال البيانات'!H27 -> 79 | O28: 0.79 | P28: 4 | Q28: ='ادخال البيانات'!I27 -> 62 | R28: 0.775 | S28: 4 | T28: ='ادخال البيانات'!J27 -> 62 | U28: 0.62 | V28: 2 | W28: ='ادخال البيانات'!K27 -> 62 | X28: 0.62 | Y28: 2 | Z28: ='ادخال البيانات'!L27 -> 62 | AA28: 0.62 | AB28: 2
A29: ='ادخال البيانات'!A28 -> 22 | B29: ='ادخال البيانات'!B28 -> الاسم 22 | C29: ='ادخال البيانات'!C28 -> الصف الاول | D29: ='ادخال البيانات'!D28 -> 1/6 | E29: ='ادخال البيانات'!E28 -> 67 | F29: 0.67 | G29: 3 | H29: ='ادخال البيانات'!F28 -> 56 | I29: 0.56 | J29: 2 | K29: ='ادخال البيانات'!G28 -> 67 | L29: 0.67 | M29: 3 | N29: ='ادخال البيانات'!H28 -> 69 | O29: 0.69 | P29: 3 | Q29: ='ادخال البيانات'!I28 -> 51 | R29: 0.6375 | S29: 2 | T29: ='ادخال البيانات'!J28 -> 51 | U29: 0.51 | V29: 2 | W29: ='ادخال البيانات'!K28 -> 51 | X29: 0.51 | Y29: 2 | Z29: ='ادخال البيانات'!L28 -> 51 | AA29: 0.51 | AB29: 2
A30: ='ادخال البيانات'!A29 -> 23 | B30: ='ادخال البيانات'!B29 -> الاسم 23 | C30: ='ادخال البيانات'!C29 -> الصف الاول | D30: ='ادخال البيانات'!D29 -> 1/6 | E30: ='ادخال البيانات'!E29 -> 79 | F30: 0.79 | G30: 4 | H30: ='ادخال البيانات'!F29 -> 74 | I30: 0.74 | J30: 3 | K30: ='ادخال البيانات'!G29 -> 61 | L30: 0.61 | M30: 2 | N30: ='ادخال البيانات'!H29 -> 80 | O30: 0.8 | P30: 4 | Q30: ='ادخال البيانات'!I29 -> 63 | R30: 0.7875 | S30: 4 | T30: ='ادخال البيانات'!J29 -> 63 | U30: 0.63 | V30: 2 | W30: ='ادخال البيانات'!K29 -> 63 | X30: 0.63 | Y30: 2 | Z30: ='ادخال البيانات'!L29 -> 63 | AA30: 0.63 | AB30: 2
A31: ='ادخال البيانات'!A30 -> 24 | B31: ='ادخال البيانات'!B30 -> الاسم 24 | C31: ='ادخال البيانات'!C30 -> الصف الاول | D31: ='ادخال البيانات'!D30 -> 1/6 | E31: ='ادخال البيانات'!E30 -> 74 | F31: 0.74 | G31: 3 | H31: ='ادخال البيانات'!F30 -> 81 | I31: 0.81 | J31: 4 | K31: ='ادخال البيانات'!G30 -> 63 | L31: 0.63 | M31: 2 | N31: ='ادخال البيانات'!H30 -> 79 | O31: 0.79 | P31: 4 | Q31: ='ادخال البيانات'!I30 -> 76 | R31: 0.95 | S31: 6 | T31: ='ادخال البيانات'!J30 -> 76 | U31: 0.76 | V31: 4 | W31: ='ادخال البيانات'!K30 -> 76 | X31: 0.76 | Y31: 4 | Z31: ='ادخال البيانات'!L30 -> 76 | AA31: 0.76 | AB31: 4
A32: ='ادخال البيانات'!A31 -> 25 | B32: ='ادخال البيانات'!B31 -> الاسم 25 | C32: ='ادخال البيانات'!C31 -> الصف الاول | D32: ='ادخال البيانات'!D31 -> 1/6 | E32: ='ادخال البيانات'!E31 -> 96 | F32: 0.96 | G32: 6 | H32: ='ادخال البيانات'!F31 -> 95 | I32: 0.95 | J32: 6 | K32: ='ادخال البيانات'!G31 -> 95 | L32: 0.95 | M32: 6 | N32: ='ادخال البيانات'!H31 -> 95 | O32: 0.95 | P32: 6 | Q32: ='ادخال البيانات'!I31 -> 96 | R32: 1.2 | S32: 6 | T32: ='ادخال البيانات'!J31 -> 96 | U32: 0.96 | V32: 6 | W32: ='ادخال البيانات'!K31 -> 96 | X32: 0.96 | Y32: 6 | Z32: ='ادخال البيانات'!L31 -> 96 | AA32: 0.96 | AB32: 6
A33: ='ادخال البيانات'!A32 -> 26 | B33: ='ادخال البيانات'!B32 -> الاسم 26 | C33: ='ادخال البيانات'!C32 -> الصف الاول | D33: ='ادخال البيانات'!D32 -> 1/6 | E33: ='ادخال البيانات'!E32 -> غ | F33: غ | G33: غ | H33: ='ادخال البيانات'!F32 -> غ | I33: غ | J33: غ | K33: ='ادخال البيانات'!G32 -> غ | L33: غ | M33: غ | N33: ='ادخال البيانات'!H32 -> غ | O33: غ | P33: غ | Q33: ='ادخال البيانات'!I32 -> غ | R33: غ | S33: غ | T33: ='ادخال البيانات'!J32 -> غ | U33: غ | V33: غ | W33: ='ادخال البيانات'!K32 -> غ | X33: غ | Y33: غ | Z33: ='ادخال البيانات'!L32 -> غ | AA33: غ | AB33: غ
A34: ='ادخال البيانات'!A33 -> 27 | B34: ='ادخال البيانات'!B33 -> الاسم 27 | C34: ='ادخال البيانات'!C33 -> الصف الاول | D34: ='ادخال البيانات'!D33 -> 1/6 | E34: ='ادخال البيانات'!E33 -> 98 | F34: 0.98 | G34: 6 | H34: ='ادخال البيانات'!F33 -> 77 | I34: 0.77 | J34: 4 | K34: ='ادخال البيانات'!G33 -> 90 | L34: 0.9 | M34: 5 | N34: ='ادخال البيانات'!H33 -> 94 | O34: 0.94 | P34: 5 | Q34: ='ادخال البيانات'!I33 -> 98 | R34: 1.225 | S34: 6 | T34: ='ادخال البيانات'!J33 -> 98 | U34: 0.98 | V34: 6 | W34: ='ادخال البيانات'!K33 -> 98 | X34: 0.98 | Y34: 6 | Z34: ='ادخال البيانات'!L33 -> 98 | AA34: 0.98 | AB34: 6
A35: ='ادخال البيانات'!A34 -> 28 | B35: ='ادخال البيانات'!B34 -> الاسم 28 | C35: ='ادخال البيانات'!C34 -> الصف الاول | D35: ='ادخال البيانات'!D34 -> 1/6 | E35: ='ادخال البيانات'!E34 -> 71 | F35: 0.71 | G35: 3 | H35: ='ادخال البيانات'!F34 -> 62 | I35: 0.62 | J35: 2 | K35: ='ادخال البيانات'!G34 -> 66 | L35: 0.66 | M35: 3 | N35: ='ادخال البيانات'!H34 -> 67 | O35: 0.67 | P35: 3 | Q35: ='ادخال البيانات'!I34 -> 67 | R35: 0.8375 | S35: 4 | T35: ='ادخال البيانات'!J34 -> 67 | U35: 0.67 | V35: 3 | W35: ='ادخال البيانات'!K34 -> 67 | X35: 0.67 | Y35: 3 | Z35: ='ادخال البيانات'!L34 -> 67 | AA35: 0.67 | AB35: 3
A36: ='ادخال البيانات'!A35 -> 29 | B36: ='ادخال البيانات'!B35 -> الاسم 29 | C36: ='ادخال البيانات'!C35 -> الصف الاول | D36: ='ادخال البيانات'!D35 -> 1/6 | E36: ='ادخال البيانات'!E35 -> 84 | F36: 0.84 | G36: 4 | H36: ='ادخال البيانات'!F35 -> 79 | I36: 0.79 | J36: 4 | K36: ='ادخال البيانات'!G35 -> 75 | L36: 0.75 | M36: 4 | N36: ='ادخال البيانات'!H35 -> 84 | O36: 0.84 | P36: 4 | Q36: ='ادخال البيانات'!I35 -> 76 | R36: 0.95 | S36: 6 | T36: ='ادخال البيانات'!J35 -> 76 | U36: 0.76 | V36: 4 | W36: ='ادخال البيانات'!K35 -> 76 | X36: 0.76 | Y36: 4 | Z36: ='ادخال البيانات'!L35 -> 76 | AA36: 0.76 | AB36: 4
A37: ='ادخال البيانات'!A36 -> 30 | B37: ='ادخال البيانات'!B36 -> الاسم 30 | C37: ='ادخال البيانات'!C36 -> الصف الاول | D37: ='ادخال البيانات'!D36 -> 1/6 | E37: ='ادخال البيانات'!E36 -> 60 | F37: 0.6 | G37: 2 | H37: ='ادخال البيانات'!F36 -> 53 | I37: 0.53 | J37: 2 | K37: ='ادخال البيانات'!G36 -> 72 | L37: 0.72 | M37: 3 | N37: ='ادخال البيانات'!H36 -> 54 | O37: 0.54 | P37: 2 | Q37: ='ادخال البيانات'!I36 -> 53 | R37: 0.6625 | S37: 3 | T37: ='ادخال البيانات'!J36 -> 53 | U37: 0.53 | V37: 2 | W37: ='ادخال البيانات'!K36 -> 53 | X37: 0.53 | Y37: 2 | Z37: ='ادخال البيانات'!L36 -> 53 | AA37: 0.53 | AB37: 2
A38: ='ادخال البيانات'!A37 -> 31 | B38: ='ادخال البيانات'!B37 -> الاسم 31 | C38: ='ادخال البيانات'!C37 -> الصف الاول | D38: ='ادخال البيانات'!D37 -> 1/6 | E38: ='ادخال البيانات'!E37 -> 92 | F38: 0.92 | G38: 5 | H38: ='ادخال البيانات'!F37 -> 93 | I38: 0.93 | J38: 5 | K38: ='ادخال البيانات'!G37 -> 87 | L38: 0.87 | M38: 5 | N38: ='ادخال البيانات'!H37 -> 93 | O38: 0.93 | P38: 5 | Q38: ='ادخال البيانات'!I37 -> 93 | R38: 1.1625 | S38: 6 | T38: ='ادخال البيانات'!J37 -> 93 | U38: 0.93 | V38: 5 | W38: ='ادخال البيانات'!K37 -> 93 | X38: 0.93 | Y38: 5 | Z38: ='ادخال البيانات'!L37 -> 93 | AA38: 0.93 | AB38: 5
A39: ='ادخال البيانات'!A38 -> 32 | B39: ='ادخال البيانات'!B38 -> الاسم 32 | C39: ='ادخال البيانات'!C38 -> الصف الاول | D39: ='ادخال البيانات'!D38 -> 1/6 | E39: ='ادخال البيانات'!E38 -> 62 | F39: 0.62 | G39: 2 | H39: ='ادخال البيانات'!F38 -> 71 | I39: 0.71 | J39: 3 | K39: ='ادخال البيانات'!G38 -> 78 | L39: 0.78 | M39: 4 | N39: ='ادخال البيانات'!H38 -> 82 | O39: 0.82 | P39: 4 | Q39: ='ادخال البيانات'!I38 -> 60 | R39: 0.75 | S39: 4 | T39: ='ادخال البيانات'!J38 -> 60 | U39: 0.6 | V39: 2 | W39: ='ادخال البيانات'!K38 -> 60 | X39: 0.6 | Y39: 2 | Z39: ='ادخال البيانات'!L38 -> 60 | AA39: 0.6 | AB39: 2
A40: ='ادخال البيانات'!A39 -> 33 | B40: ='ادخال البيانات'!B39 -> الاسم 33 | C40: ='ادخال البيانات'!C39 -> الصف الاول | D40: ='ادخال البيانات'!D39 -> 1/6 | E40: ='ادخال البيانات'!E39 -> 68 | F40: 0.68 | G40: 3 | H40: ='ادخال البيانات'!F39 -> 70 | I40: 0.7 | J40: 3 | K40: ='ادخال البيانات'!G39 -> 66 | L40: 0.66 | M40: 3 | N40: ='ادخال البيانات'!H39 -> 72 | O40: 0.72 | P40: 3 | Q40: ='ادخال البيانات'!I39 -> 73 | R40: 0.9125 | S40: 5 | T40: ='ادخال البيانات'!J39 -> 73 | U40: 0.73 | V40: 3 | W40: ='ادخال البيانات'!K39 -> 73 | X40: 0.73 | Y40: 3 | Z40: ='ادخال البيانات'!L39 -> 73 | AA40: 0.73 | AB40: 3
A41: ='ادخال البيانات'!A40 -> 34 | B41: ='ادخال البيانات'!B40 -> الاسم 34 | C41: ='ادخال البيانات'!C40 -> الصف الاول | D41: ='ادخال البيانات'!D40 -> 1/1 | E41: ='ادخال البيانات'!E40 -> 73 | F41: 0.73 | G41: 3 | H41: ='ادخال البيانات'!F40 -> 73 | I41: 0.73 | J41: 3 | K41: ='ادخال البيانات'!G40 -> 76 | L41: 0.76 | M41: 4 | N41: ='ادخال البيانات'!H40 -> 79 | O41: 0.79 | P41: 4 | Q41: ='ادخال البيانات'!I40 -> 62 | R41: 0.775 | S41: 4 | T41: ='ادخال البيانات'!J40 -> 62 | U41: 0.62 | V41: 2 | W41: ='ادخال البيانات'!K40 -> 62 | X41: 0.62 | Y41: 2 | Z41: ='ادخال البيانات'!L40 -> 62 | AA41: 0.62 | AB41: 2
A42: ='ادخال البيانات'!A41 -> 35 | B42: ='ادخال البيانات'!B41 -> الاسم 35 | C42: ='ادخال البيانات'!C41 -> الصف الاول | D42: ='ادخال البيانات'!D41 -> 1/1 | E42: ='ادخال البيانات'!E41 -> 67 | F42: 0.67 | G42: 3 | H42: ='ادخال البيانات'!F41 -> 56 | I42: 0.56 | J42: 2 | K42: ='ادخال البيانات'!G41 -> 67 | L42: 0.67 | M42: 3 | N42: ='ادخال البيانات'!H41 -> 69 | O42: 0.69 | P42: 3 | Q42: ='ادخال البيانات'!I41 -> 51 | R42: 0.6375 | S42: 2 | T42: ='ادخال البيانات'!J41 -> 51 | U42: 0.51 | V42: 2 | W42: ='ادخال البيانات'!K41 -> 51 | X42: 0.51 | Y42: 2 | Z42: ='ادخال البيانات'!L41 -> 51 | AA42: 0.51 | AB42: 2
A43: ='ادخال البيانات'!A42 -> 36 | B43: ='ادخال البيانات'!B42 -> الاسم 36 | C43: ='ادخال البيانات'!C42 -> الصف الاول | D43: ='ادخال البيانات'!D42 -> 1/1 | E43: ='ادخال البيانات'!E42 -> 79 | F43: 0.79 | G43: 4 | H43: ='ادخال البيانات'!F42 -> 74 | I43: 0.74 | J43: 3 | K43: ='ادخال البيانات'!G42 -> 61 | L43: 0.61 | M43: 2 | N43: ='ادخال البيانات'!H42 -> 80 | O43: 0.8 | P43: 4 | Q43: ='ادخال البيانات'!I42 -> 63 | R43: 0.7875 | S43: 4 | T43: ='ادخال البيانات'!J42 -> 63 | U43: 0.63 | V43: 2 | W43: ='ادخال البيانات'!K42 -> 63 | X43: 0.63 | Y43: 2 | Z43: ='ادخال البيانات'!L42 -> 63 | AA43: 0.63 | AB43: 2
A44: ='ادخال البيانات'!A43 -> 37 | B44: ='ادخال البيانات'!B43 -> الاسم 37 | C44: ='ادخال البيانات'!C43 -> الصف الاول | D44: ='ادخال البيانات'!D43 -> 1/1 | E44: ='ادخال البيانات'!E43 -> 74 | F44: 0.74 | G44: 3 | H44: ='ادخال البيانات'!F43 -> 81 | I44: 0.81 | J44: 4 | K44: ='ادخال البيانات'!G43 -> 63 | L44: 0.63 | M44: 2 | N44: ='ادخال البيانات'!H43 -> 79 | O44: 0.79 | P44: 4 | Q44: ='ادخال البيانات'!I43 -> 76 | R44: 0.95 | S44: 6 | T44: ='ادخال البيانات'!J43 -> 76 | U44: 0.76 | V44: 4 | W44: ='ادخال البيانات'!K43 -> 76 | X44: 0.76 | Y44: 4 | Z44: ='ادخال البيانات'!L43 -> 76 | AA44: 0.76 | AB44: 4
A45: ='ادخال البيانات'!A44 -> 38 | B45: ='ادخال البيانات'!B44 -> الاسم 38 | C45: ='ادخال البيانات'!C44 -> الصف الاول | D45: ='ادخال البيانات'!D44 -> 1/1 | E45: ='ادخال البيانات'!E44 -> 96 | F45: 0.96 | G45: 6 | H45: ='ادخال البيانات'!F44 -> 95 | I45: 0.95 | J45: 6 | K45: ='ادخال البيانات'!G44 -> 95 | L45: 0.95 | M45: 6 | N45: ='ادخال البيانات'!H44 -> 95 | O45: 0.95 | P45: 6 | Q45: ='ادخال البيانات'!I44 -> 96 | R45: 1.2 | S45: 6 | T45: ='ادخال البيانات'!J44 -> 96 | U45: 0.96 | V45: 6 | W45: ='ادخال البيانات'!K44 -> 96 | X45: 0.96 | Y45: 6 | Z45: ='ادخال البيانات'!L44 -> 96 | AA45: 0.96 | AB45: 6
A46: ='ادخال البيانات'!A45 -> 39 | B46: ='ادخال البيانات'!B45 -> الاسم 39 | C46: ='ادخال البيانات'!C45 -> الصف الاول | D46: ='ادخال البيانات'!D45 -> 1/1 | E46: ='ادخال البيانات'!E45 -> غ | F46: غ | G46: غ | H46: ='ادخال البيانات'!F45 -> غ | I46: غ | J46: غ | K46: ='ادخال البيانات'!G45 -> غ | L46: غ | M46: غ | N46: ='ادخال البيانات'!H45 -> غ | O46: غ | P46: غ | Q46: ='ادخال البيانات'!I45 -> غ | R46: غ | S46: غ | T46: ='ادخال البيانات'!J45 -> غ | U46: غ | V46: غ | W46: ='ادخال البيانات'!K45 -> غ | X46: غ | Y46: غ | Z46: ='ادخال البيانات'!L45 -> غ | AA46: غ | AB46: غ
A47: ='ادخال البيانات'!A46 -> 40 | B47: ='ادخال البيانات'!B46 -> الاسم 40 | C47: ='ادخال البيانات'!C46 -> الصف الاول | D47: ='ادخال البيانات'!D46 -> 1/1 | E47: ='ادخال البيانات'!E46 -> 98 | F47: 0.98 | G47: 6 | H47: ='ادخال البيانات'!F46 -> 77 | I47: 0.77 | J47: 4 | K47: ='ادخال البيانات'!G46 -> 90 | L47: 0.9 | M47: 5 | N47: ='ادخال البيانات'!H46 -> 94 | O47: 0.94 | P47: 5 | Q47: ='ادخال البيانات'!I46 -> 98 | R47: 1.225 | S47: 6 | T47: ='ادخال البيانات'!J46 -> 98 | U47: 0.98 | V47: 6 | W47: ='ادخال البيانات'!K46 -> 98 | X47: 0.98 | Y47: 6 | Z47: ='ادخال البيانات'!L46 -> 98 | AA47: 0.98 | AB47: 6
A48: ='ادخال البيانات'!A47 -> 41 | B48: ='ادخال البيانات'!B47 -> الاسم 41 | C48: ='ادخال البيانات'!C47 -> الصف الاول | D48: ='ادخال البيانات'!D47 -> 1/1 | E48: ='ادخال البيانات'!E47 -> 71 | F48: 0.71 | G48: 3 | H48: ='ادخال البيانات'!F47 -> 62 | I48: 0.62 | J48: 2 | K48: ='ادخال البيانات'!G47 -> 66 | L48: 0.66 | M48: 3 | N48: ='ادخال البيانات'!H47 -> 67 | O48: 0.67 | P48: 3 | Q48: ='ادخال البيانات'!I47 -> 67 | R48: 0.8375 | S48: 4 | T48: ='ادخال البيانات'!J47 -> 67 | U48: 0.67 | V48: 3 | W48: ='ادخال البيانات'!K47 -> 67 | X48: 0.67 | Y48: 3 | Z48: ='ادخال البيانات'!L47 -> 67 | AA48: 0.67 | AB48: 3
A49: ='ادخال البيانات'!A48 -> 42 | B49: ='ادخال البيانات'!B48 -> الاسم 42 | C49: ='ادخال البيانات'!C48 -> الصف الاول | D49: ='ادخال البيانات'!D48 -> 1/1 | E49: ='ادخال البيانات'!E48 -> 84 | F49: 0.84 | G49: 4 | H49: ='ادخال البيانات'!F48 -> 79 | I49: 0.79 | J49: 4 | K49: ='ادخال البيانات'!G48 -> 75 | L49: 0.75 | M49: 4 | N49: ='ادخال البيانات'!H48 -> 84 | O49: 0.84 | P49: 4 | Q49: ='ادخال البيانات'!I48 -> 76 | R49: 0.95 | S49: 6 | T49: ='ادخال البيانات'!J48 -> 76 | U49: 0.76 | V49: 4 | W49: ='ادخال البيانات'!K48 -> 76 | X49: 0.76 | Y49: 4 | Z49: ='ادخال البيانات'!L48 -> 76 | AA49: 0.76 | AB49: 4
A50: ='ادخال البيانات'!A49 -> 43 | B50: ='ادخال البيانات'!B49 -> الاسم 43 | C50: ='ادخال البيانات'!C49 -> الصف الاول | D50: ='ادخال البيانات'!D49 -> 1/1 | E50: ='ادخال البيانات'!E49 -> 60 | F50: 0.6 | G50: 2 | H50: ='ادخال البيانات'!F49 -> 53 | I50: 0.53 | J50: 2 | K50: ='ادخال البيانات'!G49 -> 72 | L50: 0.72 | M50: 3 | N50: ='ادخال البيانات'!H49 -> 54 | O50: 0.54 | P50: 2 | Q50: ='ادخال البيانات'!I49 -> 53 | R50: 0.6625 | S50: 3 | T50: ='ادخال البيانات'!J49 -> 53 | U50: 0.53 | V50: 2 | W50: ='ادخال البيانات'!K49 -> 53 | X50: 0.53 | Y50: 2 | Z50: ='ادخال البيانات'!L49 -> 53 | AA50: 0.53 | AB50: 2
A51: ='ادخال البيانات'!A50 -> 44 | B51: ='ادخال البيانات'!B50 -> الاسم 44 | C51: ='ادخال البيانات'!C50 -> الصف الاول | D51: ='ادخال البيانات'!D50 -> 1/1 | E51: ='ادخال البيانات'!E50 -> 92 | F51: 0.92 | G51: 5 | H51: ='ادخال البيانات'!F50 -> 93 | I51: 0.93 | J51: 5 | K51: ='ادخال البيانات'!G50 -> 87 | L51: 0.87 | M51: 5 | N51: ='ادخال البيانات'!H50 -> 93 | O51: 0.93 | P51: 5 | Q51: ='ادخال البيانات'!I50 -> 93 | R51: 1.1625 | S51: 6 | T51: ='ادخال البيانات'!J50 -> 93 | U51: 0.93 | V51: 5 | W51: ='ادخال البيانات'!K50 -> 93 | X51: 0.93 | Y51: 5 | Z51: ='ادخال البيانات'!L50 -> 93 | AA51: 0.93 | AB51: 5
A52: ='ادخال البيانات'!A51 -> 45 | B52: ='ادخال البيانات'!B51 -> الاسم 45 | C52: ='ادخال البيانات'!C51 -> الصف الاول | D52: ='ادخال البيانات'!D51 -> 1/1 | E52: ='ادخال البيانات'!E51 -> 62 | F52: 0.62 | G52: 2 | H52: ='ادخال البيانات'!F51 -> 71 | I52: 0.71 | J52: 3 | K52: ='ادخال البيانات'!G51 -> 78 | L52: 0.78 | M52: 4 | N52: ='ادخال البيانات'!H51 -> 82 | O52: 0.82 | P52: 4 | Q52: ='ادخال البيانات'!I51 -> 60 | R52: 0.75 | S52: 4 | T52: ='ادخال البيانات'!J51 -> 60 | U52: 0.6 | V52: 2 | W52: ='ادخال البيانات'!K51 -> 60 | X52: 0.6 | Y52: 2 | Z52: ='ادخال البيانات'!L51 -> 60 | AA52: 0.6 | AB52: 2
A53: ='ادخال البيانات'!A52 -> 46 | B53: ='ادخال البيانات'!B52 -> الاسم 46 | C53: ='ادخال البيانات'!C52 -> الصف الاول | D53: ='ادخال البيانات'!D52 -> 1/1 | E53: ='ادخال البيانات'!E52 -> 68 | F53: 0.68 | G53: 3 | H53: ='ادخال البيانات'!F52 -> 70 | I53: 0.7 | J53: 3 | K53: ='ادخال البيانات'!G52 -> 66 | L53: 0.66 | M53: 3 | N53: ='ادخال البيانات'!H52 -> 72 | O53: 0.72 | P53: 3 | Q53: ='ادخال البيانات'!I52 -> 73 | R53: 0.9125 | S53: 5 | T53: ='ادخال البيانات'!J52 -> 73 | U53: 0.73 | V53: 3 | W53: ='ادخال البيانات'!K52 -> 73 | X53: 0.73 | Y53: 3 | Z53: ='ادخال البيانات'!L52 -> 73 | AA53: 0.73 | AB53: 3
A54: ='ادخال البيانات'!A53 -> 47 | B54: ='ادخال البيانات'!B53 -> الاسم 47 | C54: ='ادخال البيانات'!C53 -> الصف الثانى | D54: ='ادخال البيانات'!D53 -> 1/2 | E54: ='ادخال البيانات'!E53 -> 79 | F54: 0.79 | G54: 4 | H54: ='ادخال البيانات'!F53 -> 74 | I54: 0.74 | J54: 3 | K54: ='ادخال البيانات'!G53 -> 61 | L54: 0.61 | M54: 2 | N54: ='ادخال البيانات'!H53 -> 80 | O54: 0.8 | P54: 4 | Q54: ='ادخال البيانات'!I53 -> 63 | R54: 0.7875 | S54: 4 | T54: ='ادخال البيانات'!J53 -> 63 | U54: 0.63 | V54: 2 | W54: ='ادخال البيانات'!K53 -> 63 | X54: 0.63 | Y54: 2 | Z54: ='ادخال البيانات'!L53 -> 63 | AA54: 0.63 | AB54: 2
A55: ='ادخال البيانات'!A54 -> 48 | B55: ='ادخال البيانات'!B54 -> الاسم 48 | C55: ='ادخال البيانات'!C54 -> الصف الثانى | D55: ='ادخال البيانات'!D54 -> 1/2 | E55: ='ادخال البيانات'!E54 -> 74 | F55: 0.74 | G55: 3 | H55: ='ادخال البيانات'!F54 -> 81 | I55: 0.81 | J55: 4 | K55: ='ادخال البيانات'!G54 -> 63 | L55: 0.63 | M55: 2 | N55: ='ادخال البيانات'!H54 -> 79 | O55: 0.79 | P55: 4 | Q55: ='ادخال البيانات'!I54 -> 76 | R55: 0.95 | S55: 6 | T55: ='ادخال البيانات'!J54 -> 76 | U55: 0.76 | V55: 4 | W55: ='ادخال البيانات'!K54 -> 76 | X55: 0.76 | Y55: 4 | Z55: ='ادخال البيانات'!L54 -> 76 | AA55: 0.76 | AB55: 4
A56: ='ادخال البيانات'!A55 -> 49 | B56: ='ادخال البيانات'!B55 -> الاسم 49 | C56: ='ادخال البيانات'!C55 -> الصف الثانى | D56: ='ادخال البيانات'!D55 -> 1/2 | E56: ='ادخال البيانات'!E55 -> 96 | F56: 0.96 | G56: 6 | H56: ='ادخال البيانات'!F55 -> 95 | I56: 0.95 | J56: 6 | K56: ='ادخال البيانات'!G55 -> 95 | L56: 0.95 | M56: 6 | N56: ='ادخال البيانات'!H55 -> 95 | O56: 0.95 | P56: 6 | Q56: ='ادخال البيانات'!I55 -> 96 | R56: 1.2 | S56: 6 | T56: ='ادخال البيانات'!J55 -> 96 | U56: 0.96 | V56: 6 | W56: ='ادخال البيانات'!K55 -> 96 | X56: 0.96 | Y56: 6 | Z56: ='ادخال البيانات'!L55 -> 96 | AA56: 0.96 | AB56: 6
A57: ='ادخال البيانات'!A56 -> 50 | B57: ='ادخال البيانات'!B56 -> الاسم 50 | C57: ='ادخال البيانات'!C56 -> الصف الثانى | D57: ='ادخال البيانات'!D56 -> 1/2 | E57: ='ادخال البيانات'!E56 -> غ | F57: غ | G57: غ | H57: ='ادخال البيانات'!F56 -> غ | I57: غ | J57: غ | K57: ='ادخال البيانات'!G56 -> غ | L57: غ | M57: غ | N57: ='ادخال البيانات'!H56 -> غ | O57: غ | P57: غ | Q57: ='ادخال البيانات'!I56 -> غ | R57: غ | S57: غ | T57: ='ادخال البيانات'!J56 -> غ | U57: غ | V57: غ | W57: ='ادخال البيانات'!K56 -> غ | X57: غ | Y57: غ | Z57: ='ادخال البيانات'!L56 -> غ | AA57: غ | AB57: غ
A58: ='ادخال البيانات'!A57 -> 51 | B58: ='ادخال البيانات'!B57 -> الاسم 51 | C58: ='ادخال البيانات'!C57 -> الصف الثانى | D58: ='ادخال البيانات'!D57 -> 1/2 | E58: ='ادخال البيانات'!E57 -> 98 | F58: 0.98 | G58: 6 | H58: ='ادخال البيانات'!F57 -> 77 | I58: 0.77 | J58: 4 | K58: ='ادخال البيانات'!G57 -> 90 | L58: 0.9 | M58: 5 | N58: ='ادخال البيانات'!H57 -> 94 | O58: 0.94 | P58: 5 | Q58: ='ادخال البيانات'!I57 -> 98 | R58: 1.225 | S58: 6 | T58: ='ادخال البيانات'!J57 -> 98 | U58: 0.98 | V58: 6 | W58: ='ادخال البيانات'!K57 -> 98 | X58: 0.98 | Y58: 6 | Z58: ='ادخال البيانات'!L57 -> 98 | AA58: 0.98 | AB58: 6
A59: ='ادخال البيانات'!A58 -> 52 | B59: ='ادخال البيانات'!B58 -> الاسم 52 | C59: ='ادخال البيانات'!C58 -> الصف الثانى | D59: ='ادخال البيانات'!D58 -> 1/2 | E59: ='ادخال البيانات'!E58 -> 71 | F59: 0.71 | G59: 3 | H59: ='ادخال البيانات'!F58 -> 62 | I59: 0.62 | J59: 2 | K59: ='ادخال البيانات'!G58 -> 66 | L59: 0.66 | M59: 3 | N59: ='ادخال البيانات'!H58 -> 67 | O59: 0.67 | P59: 3 | Q59: ='ادخال البيانات'!I58 -> 67 | R59: 0.8375 | S59: 4 | T59: ='ادخال البيانات'!J58 -> 67 | U59: 0.67 | V59: 3 | W59: ='ادخال البيانات'!K58 -> 67 | X59: 0.67 | Y59: 3 | Z59: ='ادخال البيانات'!L58 -> 67 | AA59: 0.67 | AB59: 3
A60: ='ادخال البيانات'!A59 -> 53 | B60: ='ادخال البيانات'!B59 -> الاسم 53 | C60: ='ادخال البيانات'!C59 -> الصف الثانى | D60: ='ادخال البيانات'!D59 -> 1/2 | E60: ='ادخال البيانات'!E59 -> 84 | F60: 0.84 | G60: 4 | H60: ='ادخال البيانات'!F59 -> 79 | I60: 0.79 | J60: 4 | K60: ='ادخال البيانات'!G59 -> 75 | L60: 0.75 | M60: 4 | N60: ='ادخال البيانات'!H59 -> 84 | O60: 0.84 | P60: 4 | Q60: ='ادخال البيانات'!I59 -> 76 | R60: 0.95 | S60: 6 | T60: ='ادخال البيانات'!J59 -> 76 | U60: 0.76 | V60: 4 | W60: ='ادخال البيانات'!K59 -> 76 | X60: 0.76 | Y60: 4 | Z60: ='ادخال البيانات'!L59 -> 76 | AA60: 0.76 | AB60: 4
A61: ='ادخال البيانات'!A60 -> 54 | B61: ='ادخال البيانات'!B60 -> الاسم 54 | C61: ='ادخال البيانات'!C60 -> الصف الثانى | D61: ='ادخال البيانات'!D60 -> 1/2 | E61: ='ادخال البيانات'!E60 -> 60 | F61: 0.6 | G61: 2 | H61: ='ادخال البيانات'!F60 -> 53 | I61: 0.53 | J61: 2 | K61: ='ادخال البيانات'!G60 -> 72 | L61: 0.72 | M61: 3 | N61: ='ادخال البيانات'!H60 -> 54 | O61: 0.54 | P61: 2 | Q61: ='ادخال البيانات'!I60 -> 53 | R61: 0.6625 | S61: 3 | T61: ='ادخال البيانات'!J60 -> 53 | U61: 0.53 | V61: 2 | W61: ='ادخال البيانات'!K60 -> 53 | X61: 0.53 | Y61: 2 | Z61: ='ادخال البيانات'!L60 -> 53 | AA61: 0.53 | AB61: 2
A62: ='ادخال البيانات'!A61 -> 55 | B62: ='ادخال البيانات'!B61 -> الاسم 55 | C62: ='ادخال البيانات'!C61 -> الصف الثانى | D62: ='ادخال البيانات'!D61 -> 1/2 | E62: ='ادخال البيانات'!E61 -> 92 | F62: 0.92 | G62: 5 | H62: ='ادخال البيانات'!F61 -> 93 | I62: 0.93 | J62: 5 | K62: ='ادخال البيانات'!G61 -> 87 | L62: 0.87 | M62: 5 | N62: ='ادخال البيانات'!H61 -> 93 | O62: 0.93 | P62: 5 | Q62: ='ادخال البيانات'!I61 -> 93 | R62: 1.1625 | S62: 6 | T62: ='ادخال البيانات'!J61 -> 93 | U62: 0.93 | V62: 5 | W62: ='ادخال البيانات'!K61 -> 93 | X62: 0.93 | Y62: 5 | Z62: ='ادخال البيانات'!L61 -> 93 | AA62: 0.93 | AB62: 5
A63: ='ادخال البيانات'!A62 -> 56 | B63: ='ادخال البيانات'!B62 -> الاسم 56 | C63: ='ادخال البيانات'!C62 -> الصف الثانى | D63: ='ادخال البيانات'!D62 -> 1/2 | E63: ='ادخال البيانات'!E62 -> 62 | F63: 0.62 | G63: 2 | H63: ='ادخال البيانات'!F62 -> 71 | I63: 0.71 | J63: 3 | K63: ='ادخال البيانات'!G62 -> 78 | L63: 0.78 | M63: 4 | N63: ='ادخال البيانات'!H62 -> 82 | O63: 0.82 | P63: 4 | Q63: ='ادخال البيانات'!I62 -> 60 | R63: 0.75 | S63: 4 | T63: ='ادخال البيانات'!J62 -> 60 | U63: 0.6 | V63: 2 | W63: ='ادخال البيانات'!K62 -> 60 | X63: 0.6 | Y63: 2 | Z63: ='ادخال البيانات'!L62 -> 60 | AA63: 0.6 | AB63: 2
A64: ='ادخال البيانات'!A63 -> 57 | B64: ='ادخال البيانات'!B63 -> الاسم 57 | C64: ='ادخال البيانات'!C63 -> الصف الثانى | D64: ='ادخال البيانات'!D63 -> 1/2 | E64: ='ادخال البيانات'!E63 -> 68 | F64: 0.68 | G64: 3 | H64: ='ادخال البيانات'!F63 -> 70 | I64: 0.7 | J64: 3 | K64: ='ادخال البيانات'!G63 -> 66 | L64: 0.66 | M64: 3 | N64: ='ادخال البيانات'!H63 -> 72 | O64: 0.72 | P64: 3 | Q64: ='ادخال البيانات'!I63 -> 73 | R64: 0.9125 | S64: 5 | T64: ='ادخال البيانات'!J63 -> 73 | U64: 0.73 | V64: 3 | W64: ='ادخال البيانات'!K63 -> 73 | X64: 0.73 | Y64: 3 | Z64: ='ادخال البيانات'!L63 -> 73 | AA64: 0.73 | AB64: 3
A65: ='ادخال البيانات'!A64 -> 58 | B65: ='ادخال البيانات'!B64 -> الاسم 58 | C65: ='ادخال البيانات'!C64 -> الصف الثالث | D65: ='ادخال البيانات'!D64 -> 1/3 | E65: ='ادخال البيانات'!E64 -> 60 | F65: 0.6 | G65: 2 | H65: ='ادخال البيانات'!F64 -> 53 | I65: 0.53 | J65: 2 | K65: ='ادخال البيانات'!G64 -> 72 | L65: 0.72 | M65: 3 | N65: ='ادخال البيانات'!H64 -> 54 | O65: 0.54 | P65: 2 | Q65: ='ادخال البيانات'!I64 -> 53 | R65: 0.6625 | S65: 3 | T65: ='ادخال البيانات'!J64 -> 53 | U65: 0.53 | V65: 2 | W65: ='ادخال البيانات'!K64 -> 53 | X65: 0.53 | Y65: 2 | Z65: ='ادخال البيانات'!L64 -> 53 | AA65: 0.53 | AB65: 2
A66: ='ادخال البيانات'!A65 -> 59 | B66: ='ادخال البيانات'!B65 -> الاسم 59 | C66: ='ادخال البيانات'!C65 -> الصف الثالث | D66: ='ادخال البيانات'!D65 -> 1/3 | E66: ='ادخال البيانات'!E65 -> 92 | F66: 0.92 | G66: 5 | H66: ='ادخال البيانات'!F65 -> 93 | I66: 0.93 | J66: 5 | K66: ='ادخال البيانات'!G65 -> 87 | L66: 0.87 | M66: 5 | N66: ='ادخال البيانات'!H65 -> 93 | O66: 0.93 | P66: 5 | Q66: ='ادخال البيانات'!I65 -> 93 | R66: 1.1625 | S66: 6 | T66: ='ادخال البيانات'!J65 -> 93 | U66: 0.93 | V66: 5 | W66: ='ادخال البيانات'!K65 -> 93 | X66: 0.93 | Y66: 5 | Z66: ='ادخال البيانات'!L65 -> 93 | AA66: 0.93 | AB66: 5
A67: ='ادخال البيانات'!A66 -> 60 | B67: ='ادخال البيانات'!B66 -> الاسم 60 | C67: ='ادخال البيانات'!C66 -> الصف الثالث | D67: ='ادخال البيانات'!D66 -> 1/3 | E67: ='ادخال البيانات'!E66 -> 62 | F67: 0.62 | G67: 2 | H67: ='ادخال البيانات'!F66 -> 71 | I67: 0.71 | J67: 3 | K67: ='ادخال البيانات'!G66 -> 78 | L67: 0.78 | M67: 4 | N67: ='ادخال البيانات'!H66 -> 82 | O67: 0.82 | P67: 4 | Q67: ='ادخال البيانات'!I66 -> 60 | R67: 0.75 | S67: 4 | T67: ='ادخال البيانات'!J66 -> 60 | U67: 0.6 | V67: 2 | W67: ='ادخال البيانات'!K66 -> 60 | X67: 0.6 | Y67: 2 | Z67: ='ادخال البيانات'!L66 -> 60 | AA67: 0.6 | AB67: 2
A68: ='ادخال البيانات'!A67 -> 61 | B68: ='ادخال البيانات'!B67 -> الاسم 61 | C68: ='ادخال البيانات'!C67 -> الصف الثالث | D68: ='ادخال البيانات'!D67 -> 1/3 | E68: ='ادخال البيانات'!E67 -> 68 | F68: 0.68 | G68: 3 | H68: ='ادخال البيانات'!F67 -> 70 | I68: 0.7 | J68: 3 | K68: ='ادخال البيانات'!G67 -> 66 | L68: 0.66 | M68: 3 | N68: ='ادخال البيانات'!H67 -> 72 | O68: 0.72 | P68: 3 | Q68: ='ادخال البيانات'!I67 -> 73 | R68: 0.9125 | S68: 5 | T68: ='ادخال البيانات'!J67 -> 73 | U68: 0.73 | V68: 3 | W68: ='ادخال البيانات'!K67 -> 73 | X68: 0.73 | Y68: 3 | Z68: ='ادخال البيانات'!L67 -> 73 | AA68: 0.73 | AB68: 3
A69: ='ادخال البيانات'!A68 -> 62 | B69: ='ادخال البيانات'!B68 -> الاسم 62 | C69: ='ادخال البيانات'!C68 -> الصف الثالث | D69: ='ادخال البيانات'!D68 -> 1/3 | E69: ='ادخال البيانات'!E68 -> 79 | F69: 0.79 | G69: 4 | H69: ='ادخال البيانات'!F68 -> 74 | I69: 0.74 | J69: 3 | K69: ='ادخال البيانات'!G68 -> 61 | L69: 0.61 | M69: 2 | N69: ='ادخال البيانات'!H68 -> 80 | O69: 0.8 | P69: 4 | Q69: ='ادخال البيانات'!I68 -> 63 | R69: 0.7875 | S69: 4 | T69: ='ادخال البيانات'!J68 -> 63 | U69: 0.63 | V69: 2 | W69: ='ادخال البيانات'!K68 -> 63 | X69: 0.63 | Y69: 2 | Z69: ='ادخال البيانات'!L68 -> 63 | AA69: 0.63 | AB69: 2
A70: ='ادخال البيانات'!A69 -> 63 | B70: ='ادخال البيانات'!B69 -> الاسم 63 | C70: ='ادخال البيانات'!C69 -> الصف الثالث | D70: ='ادخال البيانات'!D69 -> 1/3 | E70: ='ادخال البيانات'!E69 -> 74 | F70: 0.74 | G70: 3 | H70: ='ادخال البيانات'!F69 -> 81 | I70: 0.81 | J70: 4 | K70: ='ادخال البيانات'!G69 -> 63 | L70: 0.63 | M70: 2 | N70: ='ادخال البيانات'!H69 -> 79 | O70: 0.79 | P70: 4 | Q70: ='ادخال البيانات'!I69 -> 76 | R70: 0.95 | S70: 6 | T70: ='ادخال البيانات'!J69 -> 76 | U70: 0.76 | V70: 4 | W70: ='ادخال البيانات'!K69 -> 76 | X70: 0.76 | Y70: 4 | Z70: ='ادخال البيانات'!L69 -> 76 | AA70: 0.76 | AB70: 4
A71: ='ادخال البيانات'!A70 -> 64 | B71: ='ادخال البيانات'!B70 -> الاسم 64 | C71: ='ادخال البيانات'!C70 -> الصف الثالث | D71: ='ادخال البيانات'!D70 -> 1/3 | E71: ='ادخال البيانات'!E70 -> 96 | F71: 0.96 | G71: 6 | H71: ='ادخال البيانات'!F70 -> 95 | I71: 0.95 | J71: 6 | K71: ='ادخال البيانات'!G70 -> 95 | L71: 0.95 | M71: 6 | N71: ='ادخال البيانات'!H70 -> 95 | O71: 0.95 | P71: 6 | Q71: ='ادخال البيانات'!I70 -> 96 | R71: 1.2 | S71: 6 | T71: ='ادخال البيانات'!J70 -> 96 | U71: 0.96 | V71: 6 | W71: ='ادخال البيانات'!K70 -> 96 | X71: 0.96 | Y71: 6 | Z71: ='ادخال البيانات'!L70 -> 96 | AA71: 0.96 | AB71: 6
A72: ='ادخال البيانات'!A71 -> 65 | B72: ='ادخال البيانات'!B71 -> الاسم 65 | C72: ='ادخال البيانات'!C71 -> الصف الثالث | D72: ='ادخال البيانات'!D71 -> 1/3 | E72: ='ادخال البيانات'!E71 -> غ | F72: =IF(B72="","",IF(E72="غ","غ",IF(ISTEXT(E72),0,E72/E$6))) -> غ | G72: =IF(F72="","",IF(F72="غ","غ",VLOOKUP(F72,TTT,2,TRUE))) -> غ | H72: ='ادخال البيانات'!F71 -> غ | I72: غ | J72: =IF(I72="","",IF(I72="غ","غ",VLOOKUP(I72,TTT,2,TRUE))) -> غ | K72: ='ادخال البيانات'!G71 -> غ | L72: غ | M72: =IF(L72="","",IF(L72="غ","غ",VLOOKUP(L72,TTT,2,TRUE))) -> غ | N72: ='ادخال البيانات'!H71 -> غ | O72: غ | P72: =IF(O72="","",IF(O72="غ","غ",VLOOKUP(O72,TTT,2,TRUE))) -> غ | Q72: ='ادخال البيانات'!I71 -> غ | R72: غ | S72: =IF(R72="","",IF(R72="غ","غ",VLOOKUP(R72,TTT,2,TRUE))) -> غ | T72: ='ادخال البيانات'!J71 -> غ | U72: غ | V72: =IF(U72="","",IF(U72="غ","غ",VLOOKUP(U72,TTT,2,TRUE))) -> غ | W72: ='ادخال البيانات'!K71 -> غ | X72: غ | Y72: =IF(X72="","",IF(X72="غ","غ",VLOOKUP(X72,TTT,2,TRUE))) -> غ | Z72: ='ادخال البيانات'!L71 -> غ | AA72: غ | AB72: =IF(AA72="","",IF(AA72="غ","غ",VLOOKUP(AA72,TTT,2,TRUE))) -> غ
A73: ='ادخال البيانات'!A72 -> 66 | B73: ='ادخال البيانات'!B72 -> الاسم 66 | C73: ='ادخال البيانات'!C72 -> الصف الثالث | D73: ='ادخال البيانات'!D72 -> 1/3 | E73: ='ادخال البيانات'!E72 -> 98 | F73: 0.98 | G73: 6 | H73: ='ادخال البيانات'!F72 -> 77 | I73: =IF(H73="","",IF(H73="غ","غ",IF(ISTEXT(H73),0,H73/H$6))) -> 0.77 | J73: 4 | K73: ='ادخال البيانات'!G72 -> 90 | L73: =IF(K73="","",IF(K73="غ","غ",IF(ISTEXT(K73),0,K73/K$6))) -> 0.9 | M73: 5 | N73: ='ادخال البيانات'!H72 -> 94 | O73: =IF(N73="","",IF(N73="غ","غ",IF(ISTEXT(N73),0,N73/N$6))) -> 0.94 | P73: 5 | Q73: ='ادخال البيانات'!I72 -> 98 | R73: =IF(Q73="","",IF(Q73="غ","غ",IF(ISTEXT(Q73),0,Q73/Q$6))) -> 1.225 | S73: 6 | T73: ='ادخال البيانات'!J72 -> 98 | U73: =IF(T73="","",IF(T73="غ","غ",IF(ISTEXT(T73),0,T73/T$6))) -> 0.98 | V73: 6 | W73: ='ادخال البيانات'!K72 -> 98 | X73: =IF(W73="","",IF(W73="غ","غ",IF(ISTEXT(W73),0,W73/W$6))) -> 0.98 | Y73: 6 | Z73: ='ادخال البيانات'!L72 -> 98 | AA73: =IF(Z73="","",IF(Z73="غ","غ",IF(ISTEXT(Z73),0,Z73/Z$6))) -> 0.98 | AB73: 6
A74: ='ادخال البيانات'!A73 -> 67 | B74: ='ادخال البيانات'!B73 -> الاسم 67 | C74: ='ادخال البيانات'!C73 -> الصف الثالث | D74: ='ادخال البيانات'!D73 -> 1/3 | E74: ='ادخال البيانات'!E73 -> 71 | F74: 0.71 | G74: 3 | H74: ='ادخال البيانات'!F73 -> 62 | I74: 0.62 | J74: 2 | K74: ='ادخال البيانات'!G73 -> 66 | L74: 0.66 | M74: 3 | N74: ='ادخال البيانات'!H73 -> 67 | O74: 0.67 | P74: 3 | Q74: ='ادخال البيانات'!I73 -> 67 | R74: 0.8375 | S74: 4 | T74: ='ادخال البيانات'!J73 -> 67 | U74: 0.67 | V74: 3 | W74: ='ادخال البيانات'!K73 -> 67 | X74: 0.67 | Y74: 3 | Z74: ='ادخال البيانات'!L73 -> 67 | AA74: 0.67 | AB74: 3
A75: ='ادخال البيانات'!A74 -> 68 | B75: ='ادخال البيانات'!B74 -> الاسم 68 | C75: ='ادخال البيانات'!C74 -> الصف الثالث | D75: ='ادخال البيانات'!D74 -> 1/3 | E75: ='ادخال البيانات'!E74 -> 84 | F75: 0.84 | G75: 4 | H75: ='ادخال البيانات'!F74 -> 79 | I75: 0.79 | J75: 4 | K75: ='ادخال البيانات'!G74 -> 75 | L75: 0.75 | M75: 4 | N75: ='ادخال البيانات'!H74 -> 84 | O75: 0.84 | P75: 4 | Q75: ='ادخال البيانات'!I74 -> 76 | R75: 0.95 | S75: 6 | T75: ='ادخال البيانات'!J74 -> 76 | U75: 0.76 | V75: 4 | W75: ='ادخال البيانات'!K74 -> 76 | X75: 0.76 | Y75: 4 | Z75: ='ادخال البيانات'!L74 -> 76 | AA75: 0.76 | AB75: 4
A76: ='ادخال البيانات'!A75 -> 69 | B76: ='ادخال البيانات'!B75 -> الاسم 69 | C76: ='ادخال البيانات'!C75 -> الصف الثالث | D76: ='ادخال البيانات'!D75 -> 1/3 | E76: ='ادخال البيانات'!E75 -> 60 | F76: 0.6 | G76: 2 | H76: ='ادخال البيانات'!F75 -> 53 | I76: 0.53 | J76: 2 | K76: ='ادخال البيانات'!G75 -> 72 | L76: 0.72 | M76: 3 | N76: ='ادخال البيانات'!H75 -> 54 | O76: 0.54 | P76: 2 | Q76: ='ادخال البيانات'!I75 -> 53 | R76: 0.6625 | S76: 3 | T76: ='ادخال البيانات'!J75 -> 53 | U76: 0.53 | V76: 2 | W76: ='ادخال البيانات'!K75 -> 53 | X76: 0.53 | Y76: 2 | Z76: ='ادخال البيانات'!L75 -> 53 | AA76: 0.53 | AB76: 2
A77: ='ادخال البيانات'!A76 -> 70 | B77: ='ادخال البيانات'!B76 -> الاسم 70 | C77: ='ادخال البيانات'!C76 -> الصف الثالث | D77: ='ادخال البيانات'!D76 -> 1/3 | E77: ='ادخال البيانات'!E76 -> 92 | F77: 0.92 | G77: 5 | H77: ='ادخال البيانات'!F76 -> 93 | I77: 0.93 | J77: 5 | K77: ='ادخال البيانات'!G76 -> 87 | L77: 0.87 | M77: 5 | N77: ='ادخال البيانات'!H76 -> 93 | O77: 0.93 | P77: 5 | Q77: ='ادخال البيانات'!I76 -> 93 | R77: 1.1625 | S77: 6 | T77: ='ادخال البيانات'!J76 -> 93 | U77: 0.93 | V77: 5 | W77: ='ادخال البيانات'!K76 -> 93 | X77: 0.93 | Y77: 5 | Z77: ='ادخال البيانات'!L76 -> 93 | AA77: 0.93 | AB77: 5
A78: ='ادخال البيانات'!A77 -> 71 | B78: ='ادخال البيانات'!B77 -> الاسم 71 | C78: ='ادخال البيانات'!C77 -> الصف الثالث | D78: ='ادخال البيانات'!D77 -> 1/3 | E78: ='ادخال البيانات'!E77 -> 62 | F78: 0.62 | G78: 2 | H78: ='ادخال البيانات'!F77 -> 71 | I78: 0.71 | J78: 3 | K78: ='ادخال البيانات'!G77 -> 78 | L78: 0.78 | M78: 4 | N78: ='ادخال البيانات'!H77 -> 82 | O78: 0.82 | P78: 4 | Q78: ='ادخال البيانات'!I77 -> 60 | R78: 0.75 | S78: 4 | T78: ='ادخال البيانات'!J77 -> 60 | U78: 0.6 | V78: 2 | W78: ='ادخال البيانات'!K77 -> 60 | X78: 0.6 | Y78: 2 | Z78: ='ادخال البيانات'!L77 -> 60 | AA78: 0.6 | AB78: 2
A79: ='ادخال البيانات'!A78 -> 72 | B79: ='ادخال البيانات'!B78 -> الاسم 72 | C79: ='ادخال البيانات'!C78 -> الصف الثالث | D79: ='ادخال البيانات'!D78 -> 1/2 | E79: ='ادخال البيانات'!E78 -> 68 | F79: 0.68 | G79: 3 | H79: ='ادخال البيانات'!F78 -> 70 | I79: 0.7 | J79: 3 | K79: ='ادخال البيانات'!G78 -> 66 | L79: 0.66 | M79: 3 | N79: ='ادخال البيانات'!H78 -> 72 | O79: 0.72 | P79: 3 | Q79: ='ادخال البيانات'!I78 -> 73 | R79: 0.9125 | S79: 5 | T79: ='ادخال البيانات'!J78 -> 73 | U79: 0.73 | V79: 3 | W79: ='ادخال البيانات'!K78 -> 73 | X79: 0.73 | Y79: 3 | Z79: ='ادخال البيانات'!L78 -> 73 | AA79: 0.73 | AB79: 3
A80: ='ادخال البيانات'!A79 -> 73 | B80: ='ادخال البيانات'!B79 -> الاسم 73 | C80: ='ادخال البيانات'!C79 -> الصف الثالث | D80: ='ادخال البيانات'!D79 -> 1/3 | E80: ='ادخال البيانات'!E79 -> 68 | F80: 0.68 | G80: 3 | H80: ='ادخال البيانات'!F79 -> 70 | I80: 0.7 | J80: 3 | K80: ='ادخال البيانات'!G79 -> 66 | L80: 0.66 | M80: 3 | N80: ='ادخال البيانات'!H79 -> 72 | O80: 0.72 | P80: 3 | Q80: ='ادخال البيانات'!I79 -> 73 | R80: 0.9125 | S80: 5 | T80: ='ادخال البيانات'!J79 -> 73 | U80: 0.73 | V80: 3 | W80: ='ادخال البيانات'!K79 -> 73 | X80: 0.73 | Y80: 3 | Z80: ='ادخال البيانات'!L79 -> 73 | AA80: 0.73 | AB80: 3
A81: ='ادخال البيانات'!A80 -> 74 | B81: ='ادخال البيانات'!B80 -> الاسم 74 | C81: ='ادخال البيانات'!C80 -> الصف الاول | D81: ='ادخال البيانات'!D80 -> 1/4 | E81: ='ادخال البيانات'!E80 -> 79 | F81: 0.79 | G81: 4 | H81: ='ادخال البيانات'!F80 -> 74 | I81: 0.74 | J81: 3 | K81: ='ادخال البيانات'!G80 -> 61 | L81: 0.61 | M81: 2 | N81: ='ادخال البيانات'!H80 -> 80 | O81: 0.8 | P81: 4 | Q81: ='ادخال البيانات'!I80 -> 63 | R81: 0.7875 | S81: 4 | T81: ='ادخال البيانات'!J80 -> 63 | U81: 0.63 | V81: 2 | W81: ='ادخال البيانات'!K80 -> 63 | X81: 0.63 | Y81: 2 | Z81: ='ادخال البيانات'!L80 -> 63 | AA81: 0.63 | AB81: 2
A82: ='ادخال البيانات'!A81 -> 75 | B82: ='ادخال البيانات'!B81 -> الاسم 75 | C82: ='ادخال البيانات'!C81 -> الصف الرابع | D82: ='ادخال البيانات'!D81 -> 1/4 | E82: ='ادخال البيانات'!E81 -> 74 | F82: 0.74 | G82: 3 | H82: ='ادخال البيانات'!F81 -> 81 | I82: 0.81 | J82: 4 | K82: ='ادخال البيانات'!G81 -> 63 | L82: 0.63 | M82: 2 | N82: ='ادخال البيانات'!H81 -> 79 | O82: 0.79 | P82: 4 | Q82: ='ادخال البيانات'!I81 -> 76 | R82: 0.95 | S82: 6 | T82: ='ادخال البيانات'!J81 -> 76 | U82: 0.76 | V82: 4 | W82: ='ادخال البيانات'!K81 -> 76 | X82: 0.76 | Y82: 4 | Z82: ='ادخال البيانات'!L81 -> 76 | AA82: 0.76 | AB82: 4
A83: ='ادخال البيانات'!A82 -> 76 | B83: ='ادخال البيانات'!B82 -> الاسم 76 | C83: ='ادخال البيانات'!C82 -> الصف الرابع | D83: ='ادخال البيانات'!D82 -> 1/4 | E83: ='ادخال البيانات'!E82 -> 96 | F83: 0.96 | G83: 6 | H83: ='ادخال البيانات'!F82 -> 95 | I83: 0.95 | J83: 6 | K83: ='ادخال البيانات'!G82 -> 95 | L83: 0.95 | M83: 6 | N83: ='ادخال البيانات'!H82 -> 95 | O83: 0.95 | P83: 6 | Q83: ='ادخال البيانات'!I82 -> 96 | R83: 1.2 | S83: 6 | T83: ='ادخال البيانات'!J82 -> 96 | U83: 0.96 | V83: 6 | W83: ='ادخال البيانات'!K82 -> 96 | X83: 0.96 | Y83: 6 | Z83: ='ادخال البيانات'!L82 -> 96 | AA83: 0.96 | AB83: 6
A84: ='ادخال البيانات'!A83 -> 77 | B84: ='ادخال البيانات'!B83 -> الاسم 77 | C84: ='ادخال البيانات'!C83 -> الصف الرابع | D84: ='ادخال البيانات'!D83 -> 1/4 | E84: ='ادخال البيانات'!E83 -> غ | F84: غ | G84: غ | H84: ='ادخال البيانات'!F83 -> غ | I84: غ | J84: غ | K84: ='ادخال البيانات'!G83 -> غ | L84: غ | M84: غ | N84: ='ادخال البيانات'!H83 -> غ | O84: غ | P84: غ | Q84: ='ادخال البيانات'!I83 -> غ | R84: غ | S84: غ | T84: ='ادخال البيانات'!J83 -> غ | U84: غ | V84: غ | W84: ='ادخال البيانات'!K83 -> غ | X84: غ | Y84: غ | Z84: ='ادخال البيانات'!L83 -> غ | AA84: غ | AB84: غ
A85: ='ادخال البيانات'!A84 -> 78 | B85: ='ادخال البيانات'!B84 -> الاسم 78 | C85: ='ادخال البيانات'!C84 -> الصف الرابع | D85: ='ادخال البيانات'!D84 -> 1/4 | E85: ='ادخال البيانات'!E84 -> 98 | F85: 0.98 | G85: 6 | H85: ='ادخال البيانات'!F84 -> 77 | I85: 0.77 | J85: 4 | K85: ='ادخال البيانات'!G84 -> 90 | L85: 0.9 | M85: 5 | N85: ='ادخال البيانات'!H84 -> 94 | O85: 0.94 | P85: 5 | Q85: ='ادخال البيانات'!I84 -> 98 | R85: 1.225 | S85: 6 | T85: ='ادخال البيانات'!J84 -> 98 | U85: 0.98 | V85: 6 | W85: ='ادخال البيانات'!K84 -> 98 | X85: 0.98 | Y85: 6 | Z85: ='ادخال البيانات'!L84 -> 98 | AA85: 0.98 | AB85: 6
A86: ='ادخال البيانات'!A85 -> 79 | B86: ='ادخال البيانات'!B85 -> الاسم 79 | C86: ='ادخال البيانات'!C85 -> الصف الرابع | D86: ='ادخال البيانات'!D85 -> 1/4 | E86: ='ادخال البيانات'!E85 -> 71 | F86: 0.71 | G86: 3 | H86: ='ادخال البيانات'!F85 -> 62 | I86: 0.62 | J86: 2 | K86: ='ادخال البيانات'!G85 -> 66 | L86: 0.66 | M86: 3 | N86: ='ادخال البيانات'!H85 -> 67 | O86: 0.67 | P86: 3 | Q86: ='ادخال البيانات'!I85 -> 67 | R86: 0.8375 | S86: 4 | T86: ='ادخال البيانات'!J85 -> 67 | U86: 0.67 | V86: 3 | W86: ='ادخال البيانات'!K85 -> 67 | X86: 0.67 | Y86: 3 | Z86: ='ادخال البيانات'!L85 -> 67 | AA86: 0.67 | AB86: 3
A87: ='ادخال البيانات'!A86 -> 80 | B87: ='ادخال البيانات'!B86 -> الاسم 80 | C87: ='ادخال البيانات'!C86 -> الصف الرابع | D87: ='ادخال البيانات'!D86 -> 1/4 | E87: ='ادخال البيانات'!E86 -> 84 | F87: 0.84 | G87: 4 | H87: ='ادخال البيانات'!F86 -> 79 | I87: 0.79 | J87: 4 | K87: ='ادخال البيانات'!G86 -> 75 | L87: 0.75 | M87: 4 | N87: ='ادخال البيانات'!H86 -> 84 | O87: 0.84 | P87: 4 | Q87: ='ادخال البيانات'!I86 -> 76 | R87: 0.95 | S87: 6 | T87: ='ادخال البيانات'!J86 -> 76 | U87: 0.76 | V87: 4 | W87: ='ادخال البيانات'!K86 -> 76 | X87: 0.76 | Y87: 4 | Z87: ='ادخال البيانات'!L86 -> 76 | AA87: 0.76 | AB87: 4
A88: ='ادخال البيانات'!A87 -> 81 | B88: ='ادخال البيانات'!B87 -> الاسم 81 | C88: ='ادخال البيانات'!C87 -> الصف الرابع | D88: ='ادخال البيانات'!D87 -> 1/4 | E88: ='ادخال البيانات'!E87 -> 60 | F88: 0.6 | G88: 2 | H88: ='ادخال البيانات'!F87 -> 53 | I88: 0.53 | J88: 2 | K88: ='ادخال البيانات'!G87 -> 72 | L88: 0.72 | M88: 3 | N88: ='ادخال البيانات'!H87 -> 54 | O88: 0.54 | P88: 2 | Q88: ='ادخال البيانات'!I87 -> 53 | R88: 0.6625 | S88: 3 | T88: ='ادخال البيانات'!J87 -> 53 | U88: 0.53 | V88: 2 | W88: ='ادخال البيانات'!K87 -> 53 | X88: 0.53 | Y88: 2 | Z88: ='ادخال البيانات'!L87 -> 53 | AA88: 0.53 | AB88: 2
A89: ='ادخال البيانات'!A88 -> 82 | B89: ='ادخال البيانات'!B88 -> الاسم 82 | C89: ='ادخال البيانات'!C88 -> الصف الرابع | D89: ='ادخال البيانات'!D88 -> 1/4 | E89: ='ادخال البيانات'!E88 -> 92 | F89: 0.92 | G89: 5 | H89: ='ادخال البيانات'!F88 -> 93 | I89: 0.93 | J89: 5 | K89: ='ادخال البيانات'!G88 -> 87 | L89: 0.87 | M89: 5 | N89: ='ادخال البيانات'!H88 -> 93 | O89: 0.93 | P89: 5 | Q89: ='ادخال البيانات'!I88 -> 93 | R89: 1.1625 | S89: 6 | T89: ='ادخال البيانات'!J88 -> 93 | U89: 0.93 | V89: 5 | W89: ='ادخال البيانات'!K88 -> 93 | X89: 0.93 | Y89: 5 | Z89: ='ادخال البيانات'!L88 -> 93 | AA89: 0.93 | AB89: 5
A90: ='ادخال البيانات'!A89 -> 83 | B90: ='ادخال البيانات'!B89 -> الاسم 83 | C90: ='ادخال البيانات'!C89 -> الصف الرابع | D90: ='ادخال البيانات'!D89 -> 1/4 | E90: ='ادخال البيانات'!E89 -> 62 | F90: 0.62 | G90: 2 | H90: ='ادخال البيانات'!F89 -> 71 | I90: 0.71 | J90: 3 | K90: ='ادخال البيانات'!G89 -> 78 | L90: 0.78 | M90: 4 | N90: ='ادخال البيانات'!H89 -> 82 | O90: 0.82 | P90: 4 | Q90: ='ادخال البيانات'!I89 -> 60 | R90: 0.75 | S90: 4 | T90: ='ادخال البيانات'!J89 -> 60 | U90: 0.6 | V90: 2 | W90: ='ادخال البيانات'!K89 -> 60 | X90: 0.6 | Y90: 2 | Z90: ='ادخال البيانات'!L89 -> 60 | AA90: 0.6 | AB90: 2
A91: ='ادخال البيانات'!A90 -> 84 | B91: ='ادخال البيانات'!B90 -> الاسم 84 | C91: ='ادخال البيانات'!C90 -> الصف الرابع | D91: ='ادخال البيانات'!D90 -> 1/4 | E91: ='ادخال البيانات'!E90 -> 68 | F91: 0.68 | G91: 3 | H91: ='ادخال البيانات'!F90 -> 70 | I91: 0.7 | J91: 3 | K91: ='ادخال البيانات'!G90 -> 66 | L91: 0.66 | M91: 3 | N91: ='ادخال البيانات'!H90 -> 72 | O91: 0.72 | P91: 3 | Q91: ='ادخال البيانات'!I90 -> 73 | R91: 0.9125 | S91: 5 | T91: ='ادخال البيانات'!J90 -> 73 | U91: 0.73 | V91: 3 | W91: ='ادخال البيانات'!K90 -> 73 | X91: 0.73 | Y91: 3 | Z91: ='ادخال البيانات'!L90 -> 73 | AA91: 0.73 | AB91: 3
A92: ='ادخال البيانات'!A91 -> 85 | B92: ='ادخال البيانات'!B91 -> 0 | C92: ='ادخال البيانات'!C91 -> 0 | D92: ='ادخال البيانات'!D91 -> 0 | E92: ='ادخال البيانات'!E91 -> 0 | F92: 0 | G92: 0 | H92: ='ادخال البيانات'!F91 -> 0 | I92: 0 | J92: 0 | K92: ='ادخال البيانات'!G91 -> 0 | L92: 0 | M92: 0 | N92: ='ادخال البيانات'!H91 -> 0 | O92: 0 | P92: 0 | Q92: ='ادخال البيانات'!I91 -> 0 | R92: 0 | S92: 0 | T92: ='ادخال البيانات'!J91 -> 0 | U92: 0 | V92: 0 | W92: ='ادخال البيانات'!K91 -> 0 | X92: 0 | Y92: 0 | Z92: ='ادخال البيانات'!L91 -> 0 | AA92: 0 | AB92: 0
A93: ='ادخال البيانات'!A92 -> 86 | B93: ='ادخال البيانات'!B92 -> 0 | C93: ='ادخال البيانات'!C92 -> 0 | D93: ='ادخال البيانات'!D92 -> 0 | E93: ='ادخال البيانات'!E92 -> 0 | F93: 0 | G93: 0 | H93: ='ادخال البيانات'!F92 -> 0 | I93: 0 | J93: 0 | K93: ='ادخال البيانات'!G92 -> 0 | L93: 0 | M93: 0 | N93: ='ادخال البيانات'!H92 -> 0 | O93: 0 | P93: 0 | Q93: ='ادخال البيانات'!I92 -> 0 | R93: 0 | S93: 0 | T93: ='ادخال البيانات'!J92 -> 0 | U93: 0 | V93: 0 | W93: ='ادخال البيانات'!K92 -> 0 | X93: 0 | Y93: 0 | Z93: ='ادخال البيانات'!L92 -> 0 | AA93: 0 | AB93: 0
A94: ='ادخال البيانات'!A93 -> 87 | B94: ='ادخال البيانات'!B93 -> 0 | C94: ='ادخال البيانات'!C93 -> 0 | D94: ='ادخال البيانات'!D93 -> 0 | E94: ='ادخال البيانات'!E93 -> 0 | F94: 0 | G94: 0 | H94: ='ادخال البيانات'!F93 -> 0 | I94: 0 | J94: 0 | K94: ='ادخال البيانات'!G93 -> 0 | L94: 0 | M94: 0 | N94: ='ادخال البيانات'!H93 -> 0 | O94: 0 | P94: 0 | Q94: ='ادخال البيانات'!I93 -> 0 | R94: 0 | S94: 0 | T94: ='ادخال البيانات'!J93 -> 0 | U94: 0 | V94: 0 | W94: ='ادخال البيانات'!K93 -> 0 | X94: 0 | Y94: 0 | Z94: ='ادخال البيانات'!L93 -> 0 | AA94: 0 | AB94: 0
A95: ='ادخال البيانات'!A94 -> 88 | B95: ='ادخال البيانات'!B94 -> 0 | C95: ='ادخال البيانات'!C94 -> 0 | D95: ='ادخال البيانات'!D94 -> 0 | E95: ='ادخال البيانات'!E94 -> 0 | F95: 0 | G95: 0 | H95: ='ادخال البيانات'!F94 -> 0 | I95: 0 | J95: 0 | K95: ='ادخال البيانات'!G94 -> 0 | L95: 0 | M95: 0 | N95: ='ادخال البيانات'!H94 -> 0 | O95: 0 | P95: 0 | Q95: ='ادخال البيانات'!I94 -> 0 | R95: 0 | S95: 0 | T95: ='ادخال البيانات'!J94 -> 0 | U95: 0 | V95: 0 | W95: ='ادخال البيانات'!K94 -> 0 | X95: 0 | Y95: 0 | Z95: ='ادخال البيانات'!L94 -> 0 | AA95: 0 | AB95: 0
A96: ='ادخال البيانات'!A95 -> 89 | B96: ='ادخال البيانات'!B95 -> 0 | C96: ='ادخال البيانات'!C95 -> 0 | D96: ='ادخال البيانات'!D95 -> 0 | E96: ='ادخال البيانات'!E95 -> 0 | F96: 0 | G96: 0 | H96: ='ادخال البيانات'!F95 -> 0 | I96: 0 | J96: 0 | K96: ='ادخال البيانات'!G95 -> 0 | L96: 0 | M96: 0 | N96: ='ادخال البيانات'!H95 -> 0 | O96: 0 | P96: 0 | Q96: ='ادخال البيانات'!I95 -> 0 | R96: 0 | S96: 0 | T96: ='ادخال البيانات'!J95 -> 0 | U96: 0 | V96: 0 | W96: ='ادخال البيانات'!K95 -> 0 | X96: 0 | Y96: 0 | Z96: ='ادخال البيانات'!L95 -> 0 | AA96: 0 | AB96: 0
A97: ='ادخال البيانات'!A96 -> 90 | B97: ='ادخال البيانات'!B96 -> 0 | C97: ='ادخال البيانات'!C96 -> 0 | D97: ='ادخال البيانات'!D96 -> 0 | E97: ='ادخال البيانات'!E96 -> 0 | F97: 0 | G97: 0 | H97: ='ادخال البيانات'!F96 -> 0 | I97: 0 | J97: 0 | K97: ='ادخال البيانات'!G96 -> 0 | L97: 0 | M97: 0 | N97: ='ادخال البيانات'!H96 -> 0 | O97: 0 | P97: 0 | Q97: ='ادخال البيانات'!I96 -> 0 | R97: 0 | S97: 0 | T97: ='ادخال البيانات'!J96 -> 0 | U97: 0 | V97: 0 | W97: ='ادخال البيانات'!K96 -> 0 | X97: 0 | Y97: 0 | Z97: ='ادخال البيانات'!L96 -> 0 | AA97: 0 | AB97: 0
A98: ='ادخال البيانات'!A97 -> 91 | B98: ='ادخال البيانات'!B97 -> 0 | C98: ='ادخال البيانات'!C97 -> 0 | D98: ='ادخال البيانات'!D97 -> 0 | E98: ='ادخال البيانات'!E97 -> 0 | F98: 0 | G98: 0 | H98: ='ادخال البيانات'!F97 -> 0 | I98: 0 | J98: 0 | K98: ='ادخال البيانات'!G97 -> 0 | L98: 0 | M98: 0 | N98: ='ادخال البيانات'!H97 -> 0 | O98: 0 | P98: 0 | Q98: ='ادخال البيانات'!I97 -> 0 | R98: 0 | S98: 0 | T98: ='ادخال البيانات'!J97 -> 0 | U98: 0 | V98: 0 | W98: ='ادخال البيانات'!K97 -> 0 | X98: 0 | Y98: 0 | Z98: ='ادخال البيانات'!L97 -> 0 | AA98: 0 | AB98: 0
A99: ='ادخال البيانات'!A98 -> 92 | B99: ='ادخال البيانات'!B98 -> 0 | C99: ='ادخال البيانات'!C98 -> 0 | D99: ='ادخال البيانات'!D98 -> 0 | E99: ='ادخال البيانات'!E98 -> 0 | F99: 0 | G99: 0 | H99: ='ادخال البيانات'!F98 -> 0 | I99: 0 | J99: 0 | K99: ='ادخال البيانات'!G98 -> 0 | L99: 0 | M99: 0 | N99: ='ادخال البيانات'!H98 -> 0 | O99: 0 | P99: 0 | Q99: ='ادخال البيانات'!I98 -> 0 | R99: 0 | S99: 0 | T99: ='ادخال البيانات'!J98 -> 0 | U99: 0 | V99: 0 | W99: ='ادخال البيانات'!K98 -> 0 | X99: 0 | Y99: 0 | Z99: ='ادخال البيانات'!L98 -> 0 | AA99: 0 | AB99: 0
A100: ='ادخال البيانات'!A99 -> 93 | B100: ='ادخال البيانات'!B99 -> 0 | C100: ='ادخال البيانات'!C99 -> 0 | D100: ='ادخال البيانات'!D99 -> 0 | E100: ='ادخال البيانات'!E99 -> 0 | F100: 0 | G100: 0 | H100: ='ادخال البيانات'!F99 -> 0 | I100: 0 | J100: 0 | K100: ='ادخال البيانات'!G99 -> 0 | L100: 0 | M100: 0 | N100: ='ادخال البيانات'!H99 -> 0 | O100: 0 | P100: 0 | Q100: ='ادخال البيانات'!I99 -> 0 | R100: 0 | S100: 0 | T100: ='ادخال البيانات'!J99 -> 0 | U100: 0 | V100: 0 | W100: ='ادخال البيانات'!K99 -> 0 | X100: 0 | Y100: 0 | Z100: ='ادخال البيانات'!L99 -> 0 | AA100: 0 | AB100: 0
A101: ='ادخال البيانات'!A100 -> 94 | B101: ='ادخال البيانات'!B100 -> 0 | C101: ='ادخال البيانات'!C100 -> 0 | D101: ='ادخال البيانات'!D100 -> 0 | E101: ='ادخال البيانات'!E100 -> 0 | F101: 0 | G101: 0 | H101: ='ادخال البيانات'!F100 -> 0 | I101: 0 | J101: 0 | K101: ='ادخال البيانات'!G100 -> 0 | L101: 0 | M101: 0 | N101: ='ادخال البيانات'!H100 -> 0 | O101: 0 | P101: 0 | Q101: ='ادخال البيانات'!I100 -> 0 | R101: 0 | S101: 0 | T101: ='ادخال البيانات'!J100 -> 0 | U101: 0 | V101: 0 | W101: ='ادخال البيانات'!K100 -> 0 | X101: 0 | Y101: 0 | Z101: ='ادخال البيانات'!L100 -> 0 | AA101: 0 | AB101: 0
A102: ='ادخال البيانات'!A101 -> 95 | B102: ='ادخال البيانات'!B101 -> 0 | C102: ='ادخال البيانات'!C101 -> 0 | D102: ='ادخال البيانات'!D101 -> 0 | E102: ='ادخال البيانات'!E101 -> 0 | F102: 0 | G102: 0 | H102: ='ادخال البيانات'!F101 -> 0 | I102: 0 | J102: 0 | K102: ='ادخال البيانات'!G101 -> 0 | L102: 0 | M102: 0 | N102: ='ادخال البيانات'!H101 -> 0 | O102: 0 | P102: 0 | Q102: ='ادخال البيانات'!I101 -> 0 | R102: 0 | S102: 0 | T102: ='ادخال البيانات'!J101 -> 0 | U102: 0 | V102: 0 | W102: ='ادخال البيانات'!K101 -> 0 | X102: 0 | Y102: 0 | Z102: ='ادخال البيانات'!L101 -> 0 | AA102: 0 | AB102: 0
A103: ='ادخال البيانات'!A102 -> 96 | B103: ='ادخال البيانات'!B102 -> 0 | C103: ='ادخال البيانات'!C102 -> 0 | D103: ='ادخال البيانات'!D102 -> 0 | E103: ='ادخال البيانات'!E102 -> 0 | F103: 0 | G103: 0 | H103: ='ادخال البيانات'!F102 -> 0 | I103: 0 | J103: 0 | K103: ='ادخال البيانات'!G102 -> 0 | L103: 0 | M103: 0 | N103: ='ادخال البيانات'!H102 -> 0 | O103: 0 | P103: 0 | Q103: ='ادخال البيانات'!I102 -> 0 | R103: 0 | S103: 0 | T103: ='ادخال البيانات'!J102 -> 0 | U103: 0 | V103: 0 | W103: ='ادخال البيانات'!K102 -> 0 | X103: 0 | Y103: 0 | Z103: ='ادخال البيانات'!L102 -> 0 | AA103: 0 | AB103: 0
A104: ='ادخال البيانات'!A103 -> 97 | B104: ='ادخال البيانات'!B103 -> 0 | C104: ='ادخال البيانات'!C103 -> 0 | D104: ='ادخال البيانات'!D103 -> 0 | E104: ='ادخال البيانات'!E103 -> 0 | F104: 0 | G104: 0 | H104: ='ادخال البيانات'!F103 -> 0 | I104: 0 | J104: 0 | K104: ='ادخال البيانات'!G103 -> 0 | L104: 0 | M104: 0 | N104: ='ادخال البيانات'!H103 -> 0 | O104: 0 | P104: 0 | Q104: ='ادخال البيانات'!I103 -> 0 | R104: 0 | S104: 0 | T104: ='ادخال البيانات'!J103 -> 0 | U104: 0 | V104: 0 | W104: ='ادخال البيانات'!K103 -> 0 | X104: 0 | Y104: 0 | Z104: ='ادخال البيانات'!L103 -> 0 | AA104: 0 | AB104: 0
A105: ='ادخال البيانات'!A104 -> 98 | B105: ='ادخال البيانات'!B104 -> 0 | C105: ='ادخال البيانات'!C104 -> 0 | D105: ='ادخال البيانات'!D104 -> 0 | E105: ='ادخال البيانات'!E104 -> 0 | F105: 0 | G105: 0 | H105: ='ادخال البيانات'!F104 -> 0 | I105: 0 | J105: 0 | K105: ='ادخال البيانات'!G104 -> 0 | L105: 0 | M105: 0 | N105: ='ادخال البيانات'!H104 -> 0 | O105: 0 | P105: 0 | Q105: ='ادخال البيانات'!I104 -> 0 | R105: 0 | S105: 0 | T105: ='ادخال البيانات'!J104 -> 0 | U105: 0 | V105: 0 | W105: ='ادخال البيانات'!K104 -> 0 | X105: 0 | Y105: 0 | Z105: ='ادخال البيانات'!L104 -> 0 | AA105: 0 | AB105: 0
A106: ='ادخال البيانات'!A105 -> 99 | B106: ='ادخال البيانات'!B105 -> 0 | C106: ='ادخال البيانات'!C105 -> 0 | D106: ='ادخال البيانات'!D105 -> 0 | E106: ='ادخال البيانات'!E105 -> 0 | F106: 0 | G106: 0 | H106: ='ادخال البيانات'!F105 -> 0 | I106: 0 | J106: 0 | K106: ='ادخال البيانات'!G105 -> 0 | L106: 0 | M106: 0 | N106: ='ادخال البيانات'!H105 -> 0 | O106: 0 | P106: 0 | Q106: ='ادخال البيانات'!I105 -> 0 | R106: 0 | S106: 0 | T106: ='ادخال البيانات'!J105 -> 0 | U106: 0 | V106: 0 | W106: ='ادخال البيانات'!K105 -> 0 | X106: 0 | Y106: 0 | Z106: ='ادخال البيانات'!L105 -> 0 | AA106: 0 | AB106: 0
A107: ='ادخال البيانات'!A106 -> 100 | B107: ='ادخال البيانات'!B106 -> 0 | C107: ='ادخال البيانات'!C106 -> 0 | D107: ='ادخال البيانات'!D106 -> 0 | E107: ='ادخال البيانات'!E106 -> 0 | F107: 0 | G107: 0 | H107: ='ادخال البيانات'!F106 -> 0 | I107: 0 | J107: 0 | K107: ='ادخال البيانات'!G106 -> 0 | L107: 0 | M107: 0 | N107: ='ادخال البيانات'!H106 -> 0 | O107: 0 | P107: 0 | Q107: ='ادخال البيانات'!I106 -> 0 | R107: 0 | S107: 0 | T107: ='ادخال البيانات'!J106 -> 0 | U107: 0 | V107: 0 | W107: ='ادخال البيانات'!K106 -> 0 | X107: 0 | Y107: 0 | Z107: ='ادخال البيانات'!L106 -> 0 | AA107: 0 | AB107: 0
A108: ='ادخال البيانات'!A107 -> 101 | B108: ='ادخال البيانات'!B107 -> 0 | C108: ='ادخال البيانات'!C107 -> 0 | D108: ='ادخال البيانات'!D107 -> 0 | E108: ='ادخال البيانات'!E107 -> 0 | F108: 0 | G108: 0 | H108: ='ادخال البيانات'!F107 -> 0 | I108: 0 | J108: 0 | K108: ='ادخال البيانات'!G107 -> 0 | L108: 0 | M108: 0 | N108: ='ادخال البيانات'!H107 -> 0 | O108: 0 | P108: 0 | Q108: ='ادخال البيانات'!I107 -> 0 | R108: 0 | S108: 0 | T108: ='ادخال البيانات'!J107 -> 0 | U108: 0 | V108: 0 | W108: ='ادخال البيانات'!K107 -> 0 | X108: 0 | Y108: 0 | Z108: ='ادخال البيانات'!L107 -> 0 | AA108: 0 | AB108: 0
A109: ='ادخال البيانات'!A108 -> 102 | B109: ='ادخال البيانات'!B108 -> 0 | C109: ='ادخال البيانات'!C108 -> 0 | D109: ='ادخال البيانات'!D108 -> 0 | E109: ='ادخال البيانات'!E108 -> 0 | F109: 0 | G109: 0 | H109: ='ادخال البيانات'!F108 -> 0 | I109: 0 | J109: 0 | K109: ='ادخال البيانات'!G108 -> 0 | L109: 0 | M109: 0 | N109: ='ادخال البيانات'!H108 -> 0 | O109: 0 | P109: 0 | Q109: ='ادخال البيانات'!I108 -> 0 | R109: 0 | S109: 0 | T109: ='ادخال البيانات'!J108 -> 0 | U109: 0 | V109: 0 | W109: ='ادخال البيانات'!K108 -> 0 | X109: 0 | Y109: 0 | Z109: ='ادخال البيانات'!L108 -> 0 | AA109: 0 | AB109: 0
A110: ='ادخال البيانات'!A109 -> 103 | B110: ='ادخال البيانات'!B109 -> 0 | C110: ='ادخال البيانات'!C109 -> 0 | D110: ='ادخال البيانات'!D109 -> 0 | E110: ='ادخال البيانات'!E109 -> 0 | F110: 0 | G110: 0 | H110: ='ادخال البيانات'!F109 -> 0 | I110: 0 | J110: 0 | K110: ='ادخال البيانات'!G109 -> 0 | L110: 0 | M110: 0 | N110: ='ادخال البيانات'!H109 -> 0 | O110: 0 | P110: 0 | Q110: ='ادخال البيانات'!I109 -> 0 | R110: 0 | S110: 0 | T110: ='ادخال البيانات'!J109 -> 0 | U110: 0 | V110: 0 | W110: ='ادخال البيانات'!K109 -> 0 | X110: 0 | Y110: 0 | Z110: ='ادخال البيانات'!L109 -> 0 | AA110: 0 | AB110: 0
A111: ='ادخال البيانات'!A110 -> 104 | B111: ='ادخال البيانات'!B110 -> 0 | C111: ='ادخال البيانات'!C110 -> 0 | D111: ='ادخال البيانات'!D110 -> 0 | E111: ='ادخال البيانات'!E110 -> 0 | F111: 0 | G111: 0 | H111: ='ادخال البيانات'!F110 -> 0 | I111: 0 | J111: 0 | K111: ='ادخال البيانات'!G110 -> 0 | L111: 0 | M111: 0 | N111: ='ادخال البيانات'!H110 -> 0 | O111: 0 | P111: 0 | Q111: ='ادخال البيانات'!I110 -> 0 | R111: 0 | S111: 0 | T111: ='ادخال البيانات'!J110 -> 0 | U111: 0 | V111: 0 | W111: ='ادخال البيانات'!K110 -> 0 | X111: 0 | Y111: 0 | Z111: ='ادخال البيانات'!L110 -> 0 | AA111: 0 | AB111: 0
A112: ='ادخال البيانات'!A111 -> 105 | B112: ='ادخال البيانات'!B111 -> 0 | C112: ='ادخال البيانات'!C111 -> 0 | D112: ='ادخال البيانات'!D111 -> 0 | E112: ='ادخال البيانات'!E111 -> 0 | F112: 0 | G112: 0 | H112: ='ادخال البيانات'!F111 -> 0 | I112: 0 | J112: 0 | K112: ='ادخال البيانات'!G111 -> 0 | L112: 0 | M112: 0 | N112: ='ادخال البيانات'!H111 -> 0 | O112: 0 | P112: 0 | Q112: ='ادخال البيانات'!I111 -> 0 | R112: 0 | S112: 0 | T112: ='ادخال البيانات'!J111 -> 0 | U112: 0 | V112: 0 | W112: ='ادخال البيانات'!K111 -> 0 | X112: 0 | Y112: 0 | Z112: ='ادخال البيانات'!L111 -> 0 | AA112: 0 | AB112: 0
A113: ='ادخال البيانات'!A112 -> 106 | B113: ='ادخال البيانات'!B112 -> 0 | C113: ='ادخال البيانات'!C112 -> 0 | D113: ='ادخال البيانات'!D112 -> 0 | E113: ='ادخال البيانات'!E112 -> 0 | F113: 0 | G113: 0 | H113: ='ادخال البيانات'!F112 -> 0 | I113: 0 | J113: 0 | K113: ='ادخال البيانات'!G112 -> 0 | L113: 0 | M113: 0 | N113: ='ادخال البيانات'!H112 -> 0 | O113: 0 | P113: 0 | Q113: ='ادخال البيانات'!I112 -> 0 | R113: 0 | S113: 0 | T113: ='ادخال البيانات'!J112 -> 0 | U113: 0 | V113: 0 | W113: ='ادخال البيانات'!K112 -> 0 | X113: 0 | Y113: 0 | Z113: ='ادخال البيانات'!L112 -> 0 | AA113: 0 | AB113: 0
A114: ='ادخال البيانات'!A113 -> 107 | B114: ='ادخال البيانات'!B113 -> 0 | C114: ='ادخال البيانات'!C113 -> 0 | D114: ='ادخال البيانات'!D113 -> 0 | E114: ='ادخال البيانات'!E113 -> 0 | F114: 0 | G114: 0 | H114: ='ادخال البيانات'!F113 -> 0 | I114: 0 | J114: 0 | K114: ='ادخال البيانات'!G113 -> 0 | L114: 0 | M114: 0 | N114: ='ادخال البيانات'!H113 -> 0 | O114: 0 | P114: 0 | Q114: ='ادخال البيانات'!I113 -> 0 | R114: 0 | S114: 0 | T114: ='ادخال البيانات'!J113 -> 0 | U114: 0 | V114: 0 | W114: ='ادخال البيانات'!K113 -> 0 | X114: 0 | Y114: 0 | Z114: ='ادخال البيانات'!L113 -> 0 | AA114: 0 | AB114: 0
A115: ='ادخال البيانات'!A114 -> 108 | B115: ='ادخال البيانات'!B114 -> 0 | C115: ='ادخال البيانات'!C114 -> 0 | D115: ='ادخال البيانات'!D114 -> 0 | E115: ='ادخال البيانات'!E114 -> 0 | F115: 0 | G115: 0 | H115: ='ادخال البيانات'!F114 -> 0 | I115: 0 | J115: 0 | K115: ='ادخال البيانات'!G114 -> 0 | L115: 0 | M115: 0 | N115: ='ادخال البيانات'!H114 -> 0 | O115: 0 | P115: 0 | Q115: ='ادخال البيانات'!I114 -> 0 | R115: 0 | S115: 0 | T115: ='ادخال البيانات'!J114 -> 0 | U115: 0 | V115: 0 | W115: ='ادخال البيانات'!K114 -> 0 | X115: 0 | Y115: 0 | Z115: ='ادخال البيانات'!L114 -> 0 | AA115: 0 | AB115: 0
A116: ='ادخال البيانات'!A115 -> 109 | B116: ='ادخال البيانات'!B115 -> 0 | C116: ='ادخال البيانات'!C115 -> 0 | D116: ='ادخال البيانات'!D115 -> 0 | E116: ='ادخال البيانات'!E115 -> 0 | F116: 0 | G116: 0 | H116: ='ادخال البيانات'!F115 -> 0 | I116: 0 | J116: 0 | K116: ='ادخال البيانات'!G115 -> 0 | L116: 0 | M116: 0 | N116: ='ادخال البيانات'!H115 -> 0 | O116: 0 | P116: 0 | Q116: ='ادخال البيانات'!I115 -> 0 | R116: 0 | S116: 0 | T116: ='ادخال البيانات'!J115 -> 0 | U116: 0 | V116: 0 | W116: ='ادخال البيانات'!K115 -> 0 | X116: 0 | Y116: 0 | Z116: ='ادخال البيانات'!L115 -> 0 | AA116: 0 | AB116: 0
A117: ='ادخال البيانات'!A116 -> 110 | B117: ='ادخال البيانات'!B116 -> 0 | C117: ='ادخال البيانات'!C116 -> 0 | D117: ='ادخال البيانات'!D116 -> 0 | E117: ='ادخال البيانات'!E116 -> 0 | F117: 0 | G117: 0 | H117: ='ادخال البيانات'!F116 -> 0 | I117: 0 | J117: 0 | K117: ='ادخال البيانات'!G116 -> 0 | L117: 0 | M117: 0 | N117: ='ادخال البيانات'!H116 -> 0 | O117: 0 | P117: 0 | Q117: ='ادخال البيانات'!I116 -> 0 | R117: 0 | S117: 0 | T117: ='ادخال البيانات'!J116 -> 0 | U117: 0 | V117: 0 | W117: ='ادخال البيانات'!K116 -> 0 | X117: 0 | Y117: 0 | Z117: ='ادخال البيانات'!L116 -> 0 | AA117: 0 | AB117: 0
A118: ='ادخال البيانات'!A117 -> 111 | B118: ='ادخال البيانات'!B117 -> 0 | C118: ='ادخال البيانات'!C117 -> 0 | D118: ='ادخال البيانات'!D117 -> 0 | E118: ='ادخال البيانات'!E117 -> 0 | F118: 0 | G118: 0 | H118: ='ادخال البيانات'!F117 -> 0 | I118: 0 | J118: 0 | K118: ='ادخال البيانات'!G117 -> 0 | L118: 0 | M118: 0 | N118: ='ادخال البيانات'!H117 -> 0 | O118: 0 | P118: 0 | Q118: ='ادخال البيانات'!I117 -> 0 | R118: 0 | S118: 0 | T118: ='ادخال البيانات'!J117 -> 0 | U118: 0 | V118: 0 | W118: ='ادخال البيانات'!K117 -> 0 | X118: 0 | Y118: 0 | Z118: ='ادخال البيانات'!L117 -> 0 | AA118: 0 | AB118: 0
A119: ='ادخال البيانات'!A118 -> 112 | B119: ='ادخال البيانات'!B118 -> 0 | C119: ='ادخال البيانات'!C118 -> 0 | D119: ='ادخال البيانات'!D118 -> 0 | E119: ='ادخال البيانات'!E118 -> 0 | F119: 0 | G119: 0 | H119: ='ادخال البيانات'!F118 -> 0 | I119: 0 | J119: 0 | K119: ='ادخال البيانات'!G118 -> 0 | L119: 0 | M119: 0 | N119: ='ادخال البيانات'!H118 -> 0 | O119: 0 | P119: 0 | Q119: ='ادخال البيانات'!I118 -> 0 | R119: 0 | S119: 0 | T119: ='ادخال البيانات'!J118 -> 0 | U119: 0 | V119: 0 | W119: ='ادخال البيانات'!K118 -> 0 | X119: 0 | Y119: 0 | Z119: ='ادخال البيانات'!L118 -> 0 | AA119: 0 | AB119: 0
A120: ='ادخال البيانات'!A119 -> 113 | B120: ='ادخال البيانات'!B119 -> 0 | C120: ='ادخال البيانات'!C119 -> 0 | D120: ='ادخال البيانات'!D119 -> 0 | E120: ='ادخال البيانات'!E119 -> 0 | F120: 0 | G120: 0 | H120: ='ادخال البيانات'!F119 -> 0 | I120: 0 | J120: 0 | K120: ='ادخال البيانات'!G119 -> 0 | L120: 0 | M120: 0 | N120: ='ادخال البيانات'!H119 -> 0 | O120: 0 | P120: 0 | Q120: ='ادخال البيانات'!I119 -> 0 | R120: 0 | S120: 0 | T120: ='ادخال البيانات'!J119 -> 0 | U120: 0 | V120: 0 | W120: ='ادخال البيانات'!K119 -> 0 | X120: 0 | Y120: 0 | Z120: ='ادخال البيانات'!L119 -> 0 | AA120: 0 | AB120: 0
A121: ='ادخال البيانات'!A120 -> 114 | B121: ='ادخال البيانات'!B120 -> 0 | C121: ='ادخال البيانات'!C120 -> 0 | D121: ='ادخال البيانات'!D120 -> 0 | E121: ='ادخال البيانات'!E120 -> 0 | F121: 0 | G121: 0 | H121: ='ادخال البيانات'!F120 -> 0 | I121: 0 | J121: 0 | K121: ='ادخال البيانات'!G120 -> 0 | L121: 0 | M121: 0 | N121: ='ادخال البيانات'!H120 -> 0 | O121: 0 | P121: 0 | Q121: ='ادخال البيانات'!I120 -> 0 | R121: 0 | S121: 0 | T121: ='ادخال البيانات'!J120 -> 0 | U121: 0 | V121: 0 | W121: ='ادخال البيانات'!K120 -> 0 | X121: 0 | Y121: 0 | Z121: ='ادخال البيانات'!L120 -> 0 | AA121: 0 | AB121: 0
A122: ='ادخال البيانات'!A121 -> 115 | B122: ='ادخال البيانات'!B121 -> 0 | C122: ='ادخال البيانات'!C121 -> 0 | D122: ='ادخال البيانات'!D121 -> 0 | E122: ='ادخال البيانات'!E121 -> 0 | F122: 0 | G122: 0 | H122: ='ادخال البيانات'!F121 -> 0 | I122: 0 | J122: 0 | K122: ='ادخال البيانات'!G121 -> 0 | L122: 0 | M122: 0 | N122: ='ادخال البيانات'!H121 -> 0 | O122: 0 | P122: 0 | Q122: ='ادخال البيانات'!I121 -> 0 | R122: 0 | S122: 0 | T122: ='ادخال البيانات'!J121 -> 0 | U122: 0 | V122: 0 | W122: ='ادخال البيانات'!K121 -> 0 | X122: 0 | Y122: 0 | Z122: ='ادخال البيانات'!L121 -> 0 | AA122: 0 | AB122: 0
A123: ='ادخال البيانات'!A122 -> 116 | B123: ='ادخال البيانات'!B122 -> 0 | C123: ='ادخال البيانات'!C122 -> 0 | D123: ='ادخال البيانات'!D122 -> 0 | E123: ='ادخال البيانات'!E122 -> 0 | F123: 0 | G123: 0 | H123: ='ادخال البيانات'!F122 -> 0 | I123: 0 | J123: 0 | K123: ='ادخال البيانات'!G122 -> 0 | L123: 0 | M123: 0 | N123: ='ادخال البيانات'!H122 -> 0 | O123: 0 | P123: 0 | Q123: ='ادخال البيانات'!I122 -> 0 | R123: 0 | S123: 0 | T123: ='ادخال البيانات'!J122 -> 0 | U123: 0 | V123: 0 | W123: ='ادخال البيانات'!K122 -> 0 | X123: 0 | Y123: 0 | Z123: ='ادخال البيانات'!L122 -> 0 | AA123: 0 | AB123: 0
A124: ='ادخال البيانات'!A123 -> 117 | B124: ='ادخال البيانات'!B123 -> 0 | C124: ='ادخال البيانات'!C123 -> 0 | D124: ='ادخال البيانات'!D123 -> 0 | E124: ='ادخال البيانات'!E123 -> 0 | F124: 0 | G124: 0 | H124: ='ادخال البيانات'!F123 -> 0 | I124: 0 | J124: 0 | K124: ='ادخال البيانات'!G123 -> 0 | L124: 0 | M124: 0 | N124: ='ادخال البيانات'!H123 -> 0 | O124: 0 | P124: 0 | Q124: ='ادخال البيانات'!I123 -> 0 | R124: 0 | S124: 0 | T124: ='ادخال البيانات'!J123 -> 0 | U124: 0 | V124: 0 | W124: ='ادخال البيانات'!K123 -> 0 | X124: 0 | Y124: 0 | Z124: ='ادخال البيانات'!L123 -> 0 | AA124: 0 | AB124: 0
A125: ='ادخال البيانات'!A124 -> 118 | B125: ='ادخال البيانات'!B124 -> 0 | C125: ='ادخال البيانات'!C124 -> 0 | D125: ='ادخال البيانات'!D124 -> 0 | E125: ='ادخال البيانات'!E124 -> 0 | F125: 0 | G125: 0 | H125: ='ادخال البيانات'!F124 -> 0 | I125: 0 | J125: 0 | K125: ='ادخال البيانات'!G124 -> 0 | L125: 0 | M125: 0 | N125: ='ادخال البيانات'!H124 -> 0 | O125: 0 | P125: 0 | Q125: ='ادخال البيانات'!I124 -> 0 | R125: 0 | S125: 0 | T125: ='ادخال البيانات'!J124 -> 0 | U125: 0 | V125: 0 | W125: ='ادخال البيانات'!K124 -> 0 | X125: 0 | Y125: 0 | Z125: ='ادخال البيانات'!L124 -> 0 | AA125: 0 | AB125: 0
A126: ='ادخال البيانات'!A125 -> 119 | B126: ='ادخال البيانات'!B125 -> 0 | C126: ='ادخال البيانات'!C125 -> 0 | D126: ='ادخال البيانات'!D125 -> 0 | E126: ='ادخال البيانات'!E125 -> 0 | F126: 0 | G126: 0 | H126: ='ادخال البيانات'!F125 -> 0 | I126: 0 | J126: 0 | K126: ='ادخال البيانات'!G125 -> 0 | L126: 0 | M126: 0 | N126: ='ادخال البيانات'!H125 -> 0 | O126: 0 | P126: 0 | Q126: ='ادخال البيانات'!I125 -> 0 | R126: 0 | S126: 0 | T126: ='ادخال البيانات'!J125 -> 0 | U126: 0 | V126: 0 | W126: ='ادخال البيانات'!K125 -> 0 | X126: 0 | Y126: 0 | Z126: ='ادخال البيانات'!L125 -> 0 | AA126: 0 | AB126: 0
A127: ='ادخال البيانات'!A126 -> 120 | B127: ='ادخال البيانات'!B126 -> 0 | C127: ='ادخال البيانات'!C126 -> 0 | D127: ='ادخال البيانات'!D126 -> 0 | E127: ='ادخال البيانات'!E126 -> 0 | F127: 0 | G127: 0 | H127: ='ادخال البيانات'!F126 -> 0 | I127: 0 | J127: 0 | K127: ='ادخال البيانات'!G126 -> 0 | L127: 0 | M127: 0 | N127: ='ادخال البيانات'!H126 -> 0 | O127: 0 | P127: 0 | Q127: ='ادخال البيانات'!I126 -> 0 | R127: 0 | S127: 0 | T127: ='ادخال البيانات'!J126 -> 0 | U127: 0 | V127: 0 | W127: ='ادخال البيانات'!K126 -> 0 | X127: 0 | Y127: 0 | Z127: ='ادخال البيانات'!L126 -> 0 | AA127: 0 | AB127: 0
A128: ='ادخال البيانات'!A127 -> 121 | B128: ='ادخال البيانات'!B127 -> 0 | C128: ='ادخال البيانات'!C127 -> 0 | D128: ='ادخال البيانات'!D127 -> 0 | E128: ='ادخال البيانات'!E127 -> 0 | F128: 0 | G128: 0 | H128: ='ادخال البيانات'!F127 -> 0 | I128: 0 | J128: 0 | K128: ='ادخال البيانات'!G127 -> 0 | L128: 0 | M128: 0 | N128: ='ادخال البيانات'!H127 -> 0 | O128: 0 | P128: 0 | Q128: ='ادخال البيانات'!I127 -> 0 | R128: 0 | S128: 0 | T128: ='ادخال البيانات'!J127 -> 0 | U128: 0 | V128: 0 | W128: ='ادخال البيانات'!K127 -> 0 | X128: 0 | Y128: 0 | Z128: ='ادخال البيانات'!L127 -> 0 | AA128: 0 | AB128: 0
A129: ='ادخال البيانات'!A128 -> 122 | B129: ='ادخال البيانات'!B128 -> 0 | C129: ='ادخال البيانات'!C128 -> 0 | D129: ='ادخال البيانات'!D128 -> 0 | E129: ='ادخال البيانات'!E128 -> 0 | F129: 0 | G129: 0 | H129: ='ادخال البيانات'!F128 -> 0 | I129: 0 | J129: 0 | K129: ='ادخال البيانات'!G128 -> 0 | L129: 0 | M129: 0 | N129: ='ادخال البيانات'!H128 -> 0 | O129: 0 | P129: 0 | Q129: ='ادخال البيانات'!I128 -> 0 | R129: 0 | S129: 0 | T129: ='ادخال البيانات'!J128 -> 0 | U129: 0 | V129: 0 | W129: ='ادخال البيانات'!K128 -> 0 | X129: 0 | Y129: 0 | Z129: ='ادخال البيانات'!L128 -> 0 | AA129: 0 | AB129: 0
A130: ='ادخال البيانات'!A129 -> 123 | B130: ='ادخال البيانات'!B129 -> 0 | C130: ='ادخال البيانات'!C129 -> 0 | D130: ='ادخال البيانات'!D129 -> 0 | E130: ='ادخال البيانات'!E129 -> 0 | F130: 0 | G130: 0 | H130: ='ادخال البيانات'!F129 -> 0 | I130: 0 | J130: 0 | K130: ='ادخال البيانات'!G129 -> 0 | L130: 0 | M130: 0 | N130: ='ادخال البيانات'!H129 -> 0 | O130: 0 | P130: 0 | Q130: ='ادخال البيانات'!I129 -> 0 | R130: 0 | S130: 0 | T130: ='ادخال البيانات'!J129 -> 0 | U130: 0 | V130: 0 | W130: ='ادخال البيانات'!K129 -> 0 | X130: 0 | Y130: 0 | Z130: ='ادخال البيانات'!L129 -> 0 | AA130: 0 | AB130: 0
A131: ='ادخال البيانات'!A130 -> 124 | B131: ='ادخال البيانات'!B130 -> 0 | C131: ='ادخال البيانات'!C130 -> 0 | D131: ='ادخال البيانات'!D130 -> 0 | E131: ='ادخال البيانات'!E130 -> 0 | F131: 0 | G131: 0 | H131: ='ادخال البيانات'!F130 -> 0 | I131: 0 | J131: 0 | K131: ='ادخال البيانات'!G130 -> 0 | L131: 0 | M131: 0 | N131: ='ادخال البيانات'!H130 -> 0 | O131: 0 | P131: 0 | Q131: ='ادخال البيانات'!I130 -> 0 | R131: 0 | S131: 0 | T131: ='ادخال البيانات'!J130 -> 0 | U131: 0 | V131: 0 | W131: ='ادخال البيانات'!K130 -> 0 | X131: 0 | Y131: 0 | Z131: ='ادخال البيانات'!L130 -> 0 | AA131: 0 | AB131: 0
A132: ='ادخال البيانات'!A131 -> 125 | B132: ='ادخال البيانات'!B131 -> 0 | C132: ='ادخال البيانات'!C131 -> 0 | D132: ='ادخال البيانات'!D131 -> 0 | E132: ='ادخال البيانات'!E131 -> 0 | F132: 0 | G132: 0 | H132: ='ادخال البيانات'!F131 -> 0 | I132: 0 | J132: 0 | K132: ='ادخال البيانات'!G131 -> 0 | L132: 0 | M132: 0 | N132: ='ادخال البيانات'!H131 -> 0 | O132: 0 | P132: 0 | Q132: ='ادخال البيانات'!I131 -> 0 | R132: 0 | S132: 0 | T132: ='ادخال البيانات'!J131 -> 0 | U132: 0 | V132: 0 | W132: ='ادخال البيانات'!K131 -> 0 | X132: 0 | Y132: 0 | Z132: ='ادخال البيانات'!L131 -> 0 | AA132: 0 | AB132: 0
A133: ='ادخال البيانات'!A132 -> 126 | B133: ='ادخال البيانات'!B132 -> 0 | C133: ='ادخال البيانات'!C132 -> 0 | D133: ='ادخال البيانات'!D132 -> 0 | E133: ='ادخال البيانات'!E132 -> 0 | F133: 0 | G133: 0 | H133: ='ادخال البيانات'!F132 -> 0 | I133: 0 | J133: 0 | K133: ='ادخال البيانات'!G132 -> 0 | L133: 0 | M133: 0 | N133: ='ادخال البيانات'!H132 -> 0 | O133: 0 | P133: 0 | Q133: ='ادخال البيانات'!I132 -> 0 | R133: 0 | S133: 0 | T133: ='ادخال البيانات'!J132 -> 0 | U133: 0 | V133: 0 | W133: ='ادخال البيانات'!K132 -> 0 | X133: 0 | Y133: 0 | Z133: ='ادخال البيانات'!L132 -> 0 | AA133: 0 | AB133: 0
A134: ='ادخال البيانات'!A133 -> 127 | B134: ='ادخال البيانات'!B133 -> 0 | C134: ='ادخال البيانات'!C133 -> 0 | D134: ='ادخال البيانات'!D133 -> 0 | E134: ='ادخال البيانات'!E133 -> 0 | F134: 0 | G134: 0 | H134: ='ادخال البيانات'!F133 -> 0 | I134: 0 | J134: 0 | K134: ='ادخال البيانات'!G133 -> 0 | L134: 0 | M134: 0 | N134: ='ادخال البيانات'!H133 -> 0 | O134: 0 | P134: 0 | Q134: ='ادخال البيانات'!I133 -> 0 | R134: 0 | S134: 0 | T134: ='ادخال البيانات'!J133 -> 0 | U134: 0 | V134: 0 | W134: ='ادخال البيانات'!K133 -> 0 | X134: 0 | Y134: 0 | Z134: ='ادخال البيانات'!L133 -> 0 | AA134: 0 | AB134: 0
A135: ='ادخال البيانات'!A134 -> 128 | B135: ='ادخال البيانات'!B134 -> 0 | C135: ='ادخال البيانات'!C134 -> 0 | D135: ='ادخال البيانات'!D134 -> 0 | E135: ='ادخال البيانات'!E134 -> 0 | F135: 0 | G135: 0 | H135: ='ادخال البيانات'!F134 -> 0 | I135: 0 | J135: 0 | K135: ='ادخال البيانات'!G134 -> 0 | L135: 0 | M135: 0 | N135: ='ادخال البيانات'!H134 -> 0 | O135: 0 | P135: 0 | Q135: ='ادخال البيانات'!I134 -> 0 | R135: 0 | S135: 0 | T135: ='ادخال البيانات'!J134 -> 0 | U135: 0 | V135: 0 | W135: ='ادخال البيانات'!K134 -> 0 | X135: 0 | Y135: 0 | Z135: ='ادخال البيانات'!L134 -> 0 | AA135: 0 | AB135: 0
A136: ='ادخال البيانات'!A135 -> 129 | B136: ='ادخال البيانات'!B135 -> 0 | C136: ='ادخال البيانات'!C135 -> 0 | D136: ='ادخال البيانات'!D135 -> 0 | E136: ='ادخال البيانات'!E135 -> 0 | F136: =IF(B136="","",IF(E136="غ","غ",IF(ISTEXT(E136),0,E136/E$6))) -> 0 | G136: =IF(F136="","",IF(F136="غ","غ",VLOOKUP(F136,TTT,2,TRUE))) -> 0 | H136: ='ادخال البيانات'!F135 -> 0 | I136: 0 | J136: =IF(I136="","",IF(I136="غ","غ",VLOOKUP(I136,TTT,2,TRUE))) -> 0 | K136: ='ادخال البيانات'!G135 -> 0 | L136: 0 | M136: =IF(L136="","",IF(L136="غ","غ",VLOOKUP(L136,TTT,2,TRUE))) -> 0 | N136: ='ادخال البيانات'!H135 -> 0 | O136: 0 | P136: =IF(O136="","",IF(O136="غ","غ",VLOOKUP(O136,TTT,2,TRUE))) -> 0 | Q136: ='ادخال البيانات'!I135 -> 0 | R136: 0 | S136: =IF(R136="","",IF(R136="غ","غ",VLOOKUP(R136,TTT,2,TRUE))) -> 0 | T136: ='ادخال البيانات'!J135 -> 0 | U136: 0 | V136: =IF(U136="","",IF(U136="غ","غ",VLOOKUP(U136,TTT,2,TRUE))) -> 0 | W136: ='ادخال البيانات'!K135 -> 0 | X136: 0 | Y136: =IF(X136="","",IF(X136="غ","غ",VLOOKUP(X136,TTT,2,TRUE))) -> 0 | Z136: ='ادخال البيانات'!L135 -> 0 | AA136: 0 | AB136: =IF(AA136="","",IF(AA136="غ","غ",VLOOKUP(AA136,TTT,2,TRUE))) -> 0
A137: ='ادخال البيانات'!A136 -> 130 | B137: ='ادخال البيانات'!B136 -> 0 | C137: ='ادخال البيانات'!C136 -> 0 | D137: ='ادخال البيانات'!D136 -> 0 | E137: ='ادخال البيانات'!E136 -> 0 | F137: 0 | G137: 0 | H137: ='ادخال البيانات'!F136 -> 0 | I137: =IF(H137="","",IF(H137="غ","غ",IF(ISTEXT(H137),0,H137/H$6))) -> 0 | J137: 0 | K137: ='ادخال البيانات'!G136 -> 0 | L137: =IF(K137="","",IF(K137="غ","غ",IF(ISTEXT(K137),0,K137/K$6))) -> 0 | M137: 0 | N137: ='ادخال البيانات'!H136 -> 0 | O137: =IF(N137="","",IF(N137="غ","غ",IF(ISTEXT(N137),0,N137/N$6))) -> 0 | P137: 0 | Q137: ='ادخال البيانات'!I136 -> 0 | R137: =IF(Q137="","",IF(Q137="غ","غ",IF(ISTEXT(Q137),0,Q137/Q$6))) -> 0 | S137: 0 | T137: ='ادخال البيانات'!J136 -> 0 | U137: =IF(T137="","",IF(T137="غ","غ",IF(ISTEXT(T137),0,T137/T$6))) -> 0 | V137: 0 | W137: ='ادخال البيانات'!K136 -> 0 | X137: =IF(W137="","",IF(W137="غ","غ",IF(ISTEXT(W137),0,W137/W$6))) -> 0 | Y137: 0 | Z137: ='ادخال البيانات'!L136 -> 0 | AA137: =IF(Z137="","",IF(Z137="غ","غ",IF(ISTEXT(Z137),0,Z137/Z$6))) -> 0 | AB137: 0
A138: ='ادخال البيانات'!A137 -> 131 | B138: ='ادخال البيانات'!B137 -> 0 | C138: ='ادخال البيانات'!C137 -> 0 | D138: ='ادخال البيانات'!D137 -> 0 | E138: ='ادخال البيانات'!E137 -> 0 | F138: 0 | G138: 0 | H138: ='ادخال البيانات'!F137 -> 0 | I138: 0 | J138: 0 | K138: ='ادخال البيانات'!G137 -> 0 | L138: 0 | M138: 0 | N138: ='ادخال البيانات'!H137 -> 0 | O138: 0 | P138: 0 | Q138: ='ادخال البيانات'!I137 -> 0 | R138: 0 | S138: 0 | T138: ='ادخال البيانات'!J137 -> 0 | U138: 0 | V138: 0 | W138: ='ادخال البيانات'!K137 -> 0 | X138: 0 | Y138: 0 | Z138: ='ادخال البيانات'!L137 -> 0 | AA138: 0 | AB138: 0
A139: ='ادخال البيانات'!A138 -> 132 | B139: ='ادخال البيانات'!B138 -> 0 | C139: ='ادخال البيانات'!C138 -> 0 | D139: ='ادخال البيانات'!D138 -> 0 | E139: ='ادخال البيانات'!E138 -> 0 | F139: 0 | G139: 0 | H139: ='ادخال البيانات'!F138 -> 0 | I139: 0 | J139: 0 | K139: ='ادخال البيانات'!G138 -> 0 | L139: 0 | M139: 0 | N139: ='ادخال البيانات'!H138 -> 0 | O139: 0 | P139: 0 | Q139: ='ادخال البيانات'!I138 -> 0 | R139: 0 | S139: 0 | T139: ='ادخال البيانات'!J138 -> 0 | U139: 0 | V139: 0 | W139: ='ادخال البيانات'!K138 -> 0 | X139: 0 | Y139: 0 | Z139: ='ادخال البيانات'!L138 -> 0 | AA139: 0 | AB139: 0
A140: ='ادخال البيانات'!A139 -> 133 | B140: ='ادخال البيانات'!B139 -> 0 | C140: ='ادخال البيانات'!C139 -> 0 | D140: ='ادخال البيانات'!D139 -> 0 | E140: ='ادخال البيانات'!E139 -> 0 | F140: 0 | G140: 0 | H140: ='ادخال البيانات'!F139 -> 0 | I140: 0 | J140: 0 | K140: ='ادخال البيانات'!G139 -> 0 | L140: 0 | M140: 0 | N140: ='ادخال البيانات'!H139 -> 0 | O140: 0 | P140: 0 | Q140: ='ادخال البيانات'!I139 -> 0 | R140: 0 | S140: 0 | T140: ='ادخال البيانات'!J139 -> 0 | U140: 0 | V140: 0 | W140: ='ادخال البيانات'!K139 -> 0 | X140: 0 | Y140: 0 | Z140: ='ادخال البيانات'!L139 -> 0 | AA140: 0 | AB140: 0
A141: ='ادخال البيانات'!A140 -> 134 | B141: ='ادخال البيانات'!B140 -> 0 | C141: ='ادخال البيانات'!C140 -> 0 | D141: ='ادخال البيانات'!D140 -> 0 | E141: ='ادخال البيانات'!E140 -> 0 | F141: 0 | G141: 0 | H141: ='ادخال البيانات'!F140 -> 0 | I141: 0 | J141: 0 | K141: ='ادخال البيانات'!G140 -> 0 | L141: 0 | M141: 0 | N141: ='ادخال البيانات'!H140 -> 0 | O141: 0 | P141: 0 | Q141: ='ادخال البيانات'!I140 -> 0 | R141: 0 | S141: 0 | T141: ='ادخال البيانات'!J140 -> 0 | U141: 0 | V141: 0 | W141: ='ادخال البيانات'!K140 -> 0 | X141: 0 | Y141: 0 | Z141: ='ادخال البيانات'!L140 -> 0 | AA141: 0 | AB141: 0
A142: ='ادخال البيانات'!A141 -> 135 | B142: ='ادخال البيانات'!B141 -> 0 | C142: ='ادخال البيانات'!C141 -> 0 | D142: ='ادخال البيانات'!D141 -> 0 | E142: ='ادخال البيانات'!E141 -> 0 | F142: 0 | G142: 0 | H142: ='ادخال البيانات'!F141 -> 0 | I142: 0 | J142: 0 | K142: ='ادخال البيانات'!G141 -> 0 | L142: 0 | M142: 0 | N142: ='ادخال البيانات'!H141 -> 0 | O142: 0 | P142: 0 | Q142: ='ادخال البيانات'!I141 -> 0 | R142: 0 | S142: 0 | T142: ='ادخال البيانات'!J141 -> 0 | U142: 0 | V142: 0 | W142: ='ادخال البيانات'!K141 -> 0 | X142: 0 | Y142: 0 | Z142: ='ادخال البيانات'!L141 -> 0 | AA142: 0 | AB142: 0
A143: ='ادخال البيانات'!A142 -> 136 | B143: ='ادخال البيانات'!B142 -> 0 | C143: ='ادخال البيانات'!C142 -> 0 | D143: ='ادخال البيانات'!D142 -> 0 | E143: ='ادخال البيانات'!E142 -> 0 | F143: 0 | G143: 0 | H143: ='ادخال البيانات'!F142 -> 0 | I143: 0 | J143: 0 | K143: ='ادخال البيانات'!G142 -> 0 | L143: 0 | M143: 0 | N143: ='ادخال البيانات'!H142 -> 0 | O143: 0 | P143: 0 | Q143: ='ادخال البيانات'!I142 -> 0 | R143: 0 | S143: 0 | T143: ='ادخال البيانات'!J142 -> 0 | U143: 0 | V143: 0 | W143: ='ادخال البيانات'!K142 -> 0 | X143: 0 | Y143: 0 | Z143: ='ادخال البيانات'!L142 -> 0 | AA143: 0 | AB143: 0
A144: ='ادخال البيانات'!A143 -> 137 | B144: ='ادخال البيانات'!B143 -> 0 | C144: ='ادخال البيانات'!C143 -> 0 | D144: ='ادخال البيانات'!D143 -> 0 | E144: ='ادخال البيانات'!E143 -> 0 | F144: 0 | G144: 0 | H144: ='ادخال البيانات'!F143 -> 0 | I144: 0 | J144: 0 | K144: ='ادخال البيانات'!G143 -> 0 | L144: 0 | M144: 0 | N144: ='ادخال البيانات'!H143 -> 0 | O144: 0 | P144: 0 | Q144: ='ادخال البيانات'!I143 -> 0 | R144: 0 | S144: 0 | T144: ='ادخال البيانات'!J143 -> 0 | U144: 0 | V144: 0 | W144: ='ادخال البيانات'!K143 -> 0 | X144: 0 | Y144: 0 | Z144: ='ادخال البيانات'!L143 -> 0 | AA144: 0 | AB144: 0
A145: ='ادخال البيانات'!A144 -> 138 | B145: ='ادخال البيانات'!B144 -> 0 | C145: ='ادخال البيانات'!C144 -> 0 | D145: ='ادخال البيانات'!D144 -> 0 | E145: ='ادخال البيانات'!E144 -> 0 | F145: 0 | G145: 0 | H145: ='ادخال البيانات'!F144 -> 0 | I145: 0 | J145: 0 | K145: ='ادخال البيانات'!G144 -> 0 | L145: 0 | M145: 0 | N145: ='ادخال البيانات'!H144 -> 0 | O145: 0 | P145: 0 | Q145: ='ادخال البيانات'!I144 -> 0 | R145: 0 | S145: 0 | T145: ='ادخال البيانات'!J144 -> 0 | U145: 0 | V145: 0 | W145: ='ادخال البيانات'!K144 -> 0 | X145: 0 | Y145: 0 | Z145: ='ادخال البيانات'!L144 -> 0 | AA145: 0 | AB145: 0
A146: ='ادخال البيانات'!A145 -> 139 | B146: ='ادخال البيانات'!B145 -> 0 | C146: ='ادخال البيانات'!C145 -> 0 | D146: ='ادخال البيانات'!D145 -> 0 | E146: ='ادخال البيانات'!E145 -> 0 | F146: 0 | G146: 0 | H146: ='ادخال البيانات'!F145 -> 0 | I146: 0 | J146: 0 | K146: ='ادخال البيانات'!G145 -> 0 | L146: 0 | M146: 0 | N146: ='ادخال البيانات'!H145 -> 0 | O146: 0 | P146: 0 | Q146: ='ادخال البيانات'!I145 -> 0 | R146: 0 | S146: 0 | T146: ='ادخال البيانات'!J145 -> 0 | U146: 0 | V146: 0 | W146: ='ادخال البيانات'!K145 -> 0 | X146: 0 | Y146: 0 | Z146: ='ادخال البيانات'!L145 -> 0 | AA146: 0 | AB146: 0
A147: ='ادخال البيانات'!A146 -> 140 | B147: ='ادخال البيانات'!B146 -> 0 | C147: ='ادخال البيانات'!C146 -> 0 | D147: ='ادخال البيانات'!D146 -> 0 | E147: ='ادخال البيانات'!E146 -> 0 | F147: 0 | G147: 0 | H147: ='ادخال البيانات'!F146 -> 0 | I147: 0 | J147: 0 | K147: ='ادخال البيانات'!G146 -> 0 | L147: 0 | M147: 0 | N147: ='ادخال البيانات'!H146 -> 0 | O147: 0 | P147: 0 | Q147: ='ادخال البيانات'!I146 -> 0 | R147: 0 | S147: 0 | T147: ='ادخال البيانات'!J146 -> 0 | U147: 0 | V147: 0 | W147: ='ادخال البيانات'!K146 -> 0 | X147: 0 | Y147: 0 | Z147: ='ادخال البيانات'!L146 -> 0 | AA147: 0 | AB147: 0
A148: ='ادخال البيانات'!A147 -> 141 | B148: ='ادخال البيانات'!B147 -> 0 | C148: ='ادخال البيانات'!C147 -> 0 | D148: ='ادخال البيانات'!D147 -> 0 | E148: ='ادخال البيانات'!E147 -> 0 | F148: 0 | G148: 0 | H148: ='ادخال البيانات'!F147 -> 0 | I148: 0 | J148: 0 | K148: ='ادخال البيانات'!G147 -> 0 | L148: 0 | M148: 0 | N148: ='ادخال البيانات'!H147 -> 0 | O148: 0 | P148: 0 | Q148: ='ادخال البيانات'!I147 -> 0 | R148: 0 | S148: 0 | T148: ='ادخال البيانات'!J147 -> 0 | U148: 0 | V148: 0 | W148: ='ادخال البيانات'!K147 -> 0 | X148: 0 | Y148: 0 | Z148: ='ادخال البيانات'!L147 -> 0 | AA148: 0 | AB148: 0
A149: ='ادخال البيانات'!A148 -> 142 | B149: ='ادخال البيانات'!B148 -> 0 | C149: ='ادخال البيانات'!C148 -> 0 | D149: ='ادخال البيانات'!D148 -> 0 | E149: ='ادخال البيانات'!E148 -> 0 | F149: 0 | G149: 0 | H149: ='ادخال البيانات'!F148 -> 0 | I149: 0 | J149: 0 | K149: ='ادخال البيانات'!G148 -> 0 | L149: 0 | M149: 0 | N149: ='ادخال البيانات'!H148 -> 0 | O149: 0 | P149: 0 | Q149: ='ادخال البيانات'!I148 -> 0 | R149: 0 | S149: 0 | T149: ='ادخال البيانات'!J148 -> 0 | U149: 0 | V149: 0 | W149: ='ادخال البيانات'!K148 -> 0 | X149: 0 | Y149: 0 | Z149: ='ادخال البيانات'!L148 -> 0 | AA149: 0 | AB149: 0
A150: ='ادخال البيانات'!A149 -> 143 | B150: ='ادخال البيانات'!B149 -> 0 | C150: ='ادخال البيانات'!C149 -> 0 | D150: ='ادخال البيانات'!D149 -> 0 | E150: ='ادخال البيانات'!E149 -> 0 | F150: 0 | G150: 0 | H150: ='ادخال البيانات'!F149 -> 0 | I150: 0 | J150: 0 | K150: ='ادخال البيانات'!G149 -> 0 | L150: 0 | M150: 0 | N150: ='ادخال البيانات'!H149 -> 0 | O150: 0 | P150: 0 | Q150: ='ادخال البيانات'!I149 -> 0 | R150: 0 | S150: 0 | T150: ='ادخال البيانات'!J149 -> 0 | U150: 0 | V150: 0 | W150: ='ادخال البيانات'!K149 -> 0 | X150: 0 | Y150: 0 | Z150: ='ادخال البيانات'!L149 -> 0 | AA150: 0 | AB150: 0
A151: ='ادخال البيانات'!A150 -> 144 | B151: ='ادخال البيانات'!B150 -> 0 | C151: ='ادخال البيانات'!C150 -> 0 | D151: ='ادخال البيانات'!D150 -> 0 | E151: ='ادخال البيانات'!E150 -> 0 | F151: 0 | G151: 0 | H151: ='ادخال البيانات'!F150 -> 0 | I151: 0 | J151: 0 | K151: ='ادخال البيانات'!G150 -> 0 | L151: 0 | M151: 0 | N151: ='ادخال البيانات'!H150 -> 0 | O151: 0 | P151: 0 | Q151: ='ادخال البيانات'!I150 -> 0 | R151: 0 | S151: 0 | T151: ='ادخال البيانات'!J150 -> 0 | U151: 0 | V151: 0 | W151: ='ادخال البيانات'!K150 -> 0 | X151: 0 | Y151: 0 | Z151: ='ادخال البيانات'!L150 -> 0 | AA151: 0 | AB151: 0
A152: ='ادخال البيانات'!A151 -> 145 | B152: ='ادخال البيانات'!B151 -> 0 | C152: ='ادخال البيانات'!C151 -> 0 | D152: ='ادخال البيانات'!D151 -> 0 | E152: ='ادخال البيانات'!E151 -> 0 | F152: 0 | G152: 0 | H152: ='ادخال البيانات'!F151 -> 0 | I152: 0 | J152: 0 | K152: ='ادخال البيانات'!G151 -> 0 | L152: 0 | M152: 0 | N152: ='ادخال البيانات'!H151 -> 0 | O152: 0 | P152: 0 | Q152: ='ادخال البيانات'!I151 -> 0 | R152: 0 | S152: 0 | T152: ='ادخال البيانات'!J151 -> 0 | U152: 0 | V152: 0 | W152: ='ادخال البيانات'!K151 -> 0 | X152: 0 | Y152: 0 | Z152: ='ادخال البيانات'!L151 -> 0 | AA152: 0 | AB152: 0
A153: ='ادخال البيانات'!A152 -> 146 | B153: ='ادخال البيانات'!B152 -> 0 | C153: ='ادخال البيانات'!C152 -> 0 | D153: ='ادخال البيانات'!D152 -> 0 | E153: ='ادخال البيانات'!E152 -> 0 | F153: 0 | G153: 0 | H153: ='ادخال البيانات'!F152 -> 0 | I153: 0 | J153: 0 | K153: ='ادخال البيانات'!G152 -> 0 | L153: 0 | M153: 0 | N153: ='ادخال البيانات'!H152 -> 0 | O153: 0 | P153: 0 | Q153: ='ادخال البيانات'!I152 -> 0 | R153: 0 | S153: 0 | T153: ='ادخال البيانات'!J152 -> 0 | U153: 0 | V153: 0 | W153: ='ادخال البيانات'!K152 -> 0 | X153: 0 | Y153: 0 | Z153: ='ادخال البيانات'!L152 -> 0 | AA153: 0 | AB153: 0
A154: ='ادخال البيانات'!A153 -> 147 | B154: ='ادخال البيانات'!B153 -> 0 | C154: ='ادخال البيانات'!C153 -> 0 | D154: ='ادخال البيانات'!D153 -> 0 | E154: ='ادخال البيانات'!E153 -> 0 | F154: 0 | G154: 0 | H154: ='ادخال البيانات'!F153 -> 0 | I154: 0 | J154: 0 | K154: ='ادخال البيانات'!G153 -> 0 | L154: 0 | M154: 0 | N154: ='ادخال البيانات'!H153 -> 0 | O154: 0 | P154: 0 | Q154: ='ادخال البيانات'!I153 -> 0 | R154: 0 | S154: 0 | T154: ='ادخال البيانات'!J153 -> 0 | U154: 0 | V154: 0 | W154: ='ادخال البيانات'!K153 -> 0 | X154: 0 | Y154: 0 | Z154: ='ادخال البيانات'!L153 -> 0 | AA154: 0 | AB154: 0
A155: ='ادخال البيانات'!A154 -> 148 | B155: ='ادخال البيانات'!B154 -> 0 | C155: ='ادخال البيانات'!C154 -> 0 | D155: ='ادخال البيانات'!D154 -> 0 | E155: ='ادخال البيانات'!E154 -> 0 | F155: 0 | G155: 0 | H155: ='ادخال البيانات'!F154 -> 0 | I155: 0 | J155: 0 | K155: ='ادخال البيانات'!G154 -> 0 | L155: 0 | M155: 0 | N155: ='ادخال البيانات'!H154 -> 0 | O155: 0 | P155: 0 | Q155: ='ادخال البيانات'!I154 -> 0 | R155: 0 | S155: 0 | T155: ='ادخال البيانات'!J154 -> 0 | U155: 0 | V155: 0 | W155: ='ادخال البيانات'!K154 -> 0 | X155: 0 | Y155: 0 | Z155: ='ادخال البيانات'!L154 -> 0 | AA155: 0 | AB155: 0
A156: ='ادخال البيانات'!A155 -> 149 | B156: ='ادخال البيانات'!B155 -> 0 | C156: ='ادخال البيانات'!C155 -> 0 | D156: ='ادخال البيانات'!D155 -> 0 | E156: ='ادخال البيانات'!E155 -> 0 | F156: 0 | G156: 0 | H156: ='ادخال البيانات'!F155 -> 0 | I156: 0 | J156: 0 | K156: ='ادخال البيانات'!G155 -> 0 | L156: 0 | M156: 0 | N156: ='ادخال البيانات'!H155 -> 0 | O156: 0 | P156: 0 | Q156: ='ادخال البيانات'!I155 -> 0 | R156: 0 | S156: 0 | T156: ='ادخال البيانات'!J155 -> 0 | U156: 0 | V156: 0 | W156: ='ادخال البيانات'!K155 -> 0 | X156: 0 | Y156: 0 | Z156: ='ادخال البيانات'!L155 -> 0 | AA156: 0 | AB156: 0
A157: ='ادخال البيانات'!A156 -> 150 | B157: ='ادخال البيانات'!B156 -> 0 | C157: ='ادخال البيانات'!C156 -> 0 | D157: ='ادخال البيانات'!D156 -> 0 | E157: ='ادخال البيانات'!E156 -> 0 | F157: 0 | G157: 0 | H157: ='ادخال البيانات'!F156 -> 0 | I157: 0 | J157: 0 | K157: ='ادخال البيانات'!G156 -> 0 | L157: 0 | M157: 0 | N157: ='ادخال البيانات'!H156 -> 0 | O157: 0 | P157: 0 | Q157: ='ادخال البيانات'!I156 -> 0 | R157: 0 | S157: 0 | T157: ='ادخال البيانات'!J156 -> 0 | U157: 0 | V157: 0 | W157: ='ادخال البيانات'!K156 -> 0 | X157: 0 | Y157: 0 | Z157: ='ادخال البيانات'!L156 -> 0 | AA157: 0 | AB157: 0
A158: ='ادخال البيانات'!A157 -> 151 | B158: ='ادخال البيانات'!B157 -> 0 | C158: ='ادخال البيانات'!C157 -> 0 | D158: ='ادخال البيانات'!D157 -> 0 | E158: ='ادخال البيانات'!E157 -> 0 | F158: 0 | G158: 0 | H158: ='ادخال البيانات'!F157 -> 0 | I158: 0 | J158: 0 | K158: ='ادخال البيانات'!G157 -> 0 | L158: 0 | M158: 0 | N158: ='ادخال البيانات'!H157 -> 0 | O158: 0 | P158: 0 | Q158: ='ادخال البيانات'!I157 -> 0 | R158: 0 | S158: 0 | T158: ='ادخال البيانات'!J157 -> 0 | U158: 0 | V158: 0 | W158: ='ادخال البيانات'!K157 -> 0 | X158: 0 | Y158: 0 | Z158: ='ادخال البيانات'!L157 -> 0 | AA158: 0 | AB158: 0
A159: ='ادخال البيانات'!A158 -> 152 | B159: ='ادخال البيانات'!B158 -> 0 | C159: ='ادخال البيانات'!C158 -> 0 | D159: ='ادخال البيانات'!D158 -> 0 | E159: ='ادخال البيانات'!E158 -> 0 | F159: 0 | G159: 0 | H159: ='ادخال البيانات'!F158 -> 0 | I159: 0 | J159: 0 | K159: ='ادخال البيانات'!G158 -> 0 | L159: 0 | M159: 0 | N159: ='ادخال البيانات'!H158 -> 0 | O159: 0 | P159: 0 | Q159: ='ادخال البيانات'!I158 -> 0 | R159: 0 | S159: 0 | T159: ='ادخال البيانات'!J158 -> 0 | U159: 0 | V159: 0 | W159: ='ادخال البيانات'!K158 -> 0 | X159: 0 | Y159: 0 | Z159: ='ادخال البيانات'!L158 -> 0 | AA159: 0 | AB159: 0
A160: ='ادخال البيانات'!A159 -> 153 | B160: ='ادخال البيانات'!B159 -> 0 | C160: ='ادخال البيانات'!C159 -> 0 | D160: ='ادخال البيانات'!D159 -> 0 | E160: ='ادخال البيانات'!E159 -> 0 | F160: 0 | G160: 0 | H160: ='ادخال البيانات'!F159 -> 0 | I160: 0 | J160: 0 | K160: ='ادخال البيانات'!G159 -> 0 | L160: 0 | M160: 0 | N160: ='ادخال البيانات'!H159 -> 0 | O160: 0 | P160: 0 | Q160: ='ادخال البيانات'!I159 -> 0 | R160: 0 | S160: 0 | T160: ='ادخال البيانات'!J159 -> 0 | U160: 0 | V160: 0 | W160: ='ادخال البيانات'!K159 -> 0 | X160: 0 | Y160: 0 | Z160: ='ادخال البيانات'!L159 -> 0 | AA160: 0 | AB160: 0
A161: ='ادخال البيانات'!A160 -> 154 | B161: ='ادخال البيانات'!B160 -> 0 | C161: ='ادخال البيانات'!C160 -> 0 | D161: ='ادخال البيانات'!D160 -> 0 | E161: ='ادخال البيانات'!E160 -> 0 | F161: 0 | G161: 0 | H161: ='ادخال البيانات'!F160 -> 0 | I161: 0 | J161: 0 | K161: ='ادخال البيانات'!G160 -> 0 | L161: 0 | M161: 0 | N161: ='ادخال البيانات'!H160 -> 0 | O161: 0 | P161: 0 | Q161: ='ادخال البيانات'!I160 -> 0 | R161: 0 | S161: 0 | T161: ='ادخال البيانات'!J160 -> 0 | U161: 0 | V161: 0 | W161: ='ادخال البيانات'!K160 -> 0 | X161: 0 | Y161: 0 | Z161: ='ادخال البيانات'!L160 -> 0 | AA161: 0 | AB161: 0
A162: ='ادخال البيانات'!A161 -> 155 | B162: ='ادخال البيانات'!B161 -> 0 | C162: ='ادخال البيانات'!C161 -> 0 | D162: ='ادخال البيانات'!D161 -> 0 | E162: ='ادخال البيانات'!E161 -> 0 | F162: 0 | G162: 0 | H162: ='ادخال البيانات'!F161 -> 0 | I162: 0 | J162: 0 | K162: ='ادخال البيانات'!G161 -> 0 | L162: 0 | M162: 0 | N162: ='ادخال البيانات'!H161 -> 0 | O162: 0 | P162: 0 | Q162: ='ادخال البيانات'!I161 -> 0 | R162: 0 | S162: 0 | T162: ='ادخال البيانات'!J161 -> 0 | U162: 0 | V162: 0 | W162: ='ادخال البيانات'!K161 -> 0 | X162: 0 | Y162: 0 | Z162: ='ادخال البيانات'!L161 -> 0 | AA162: 0 | AB162: 0
A163: ='ادخال البيانات'!A162 -> 156 | B163: ='ادخال البيانات'!B162 -> 0 | C163: ='ادخال البيانات'!C162 -> 0 | D163: ='ادخال البيانات'!D162 -> 0 | E163: ='ادخال البيانات'!E162 -> 0 | F163: 0 | G163: 0 | H163: ='ادخال البيانات'!F162 -> 0 | I163: 0 | J163: 0 | K163: ='ادخال البيانات'!G162 -> 0 | L163: 0 | M163: 0 | N163: ='ادخال البيانات'!H162 -> 0 | O163: 0 | P163: 0 | Q163: ='ادخال البيانات'!I162 -> 0 | R163: 0 | S163: 0 | T163: ='ادخال البيانات'!J162 -> 0 | U163: 0 | V163: 0 | W163: ='ادخال البيانات'!K162 -> 0 | X163: 0 | Y163: 0 | Z163: ='ادخال البيانات'!L162 -> 0 | AA163: 0 | AB163: 0
A164: ='ادخال البيانات'!A163 -> 157 | B164: ='ادخال البيانات'!B163 -> 0 | C164: ='ادخال البيانات'!C163 -> 0 | D164: ='ادخال البيانات'!D163 -> 0 | E164: ='ادخال البيانات'!E163 -> 0 | F164: 0 | G164: 0 | H164: ='ادخال البيانات'!F163 -> 0 | I164: 0 | J164: 0 | K164: ='ادخال البيانات'!G163 -> 0 | L164: 0 | M164: 0 | N164: ='ادخال البيانات'!H163 -> 0 | O164: 0 | P164: 0 | Q164: ='ادخال البيانات'!I163 -> 0 | R164: 0 | S164: 0 | T164: ='ادخال البيانات'!J163 -> 0 | U164: 0 | V164: 0 | W164: ='ادخال البيانات'!K163 -> 0 | X164: 0 | Y164: 0 | Z164: ='ادخال البيانات'!L163 -> 0 | AA164: 0 | AB164: 0
A165: ='ادخال البيانات'!A164 -> 158 | B165: ='ادخال البيانات'!B164 -> 0 | C165: ='ادخال البيانات'!C164 -> 0 | D165: ='ادخال البيانات'!D164 -> 0 | E165: ='ادخال البيانات'!E164 -> 0 | F165: 0 | G165: 0 | H165: ='ادخال البيانات'!F164 -> 0 | I165: 0 | J165: 0 | K165: ='ادخال البيانات'!G164 -> 0 | L165: 0 | M165: 0 | N165: ='ادخال البيانات'!H164 -> 0 | O165: 0 | P165: 0 | Q165: ='ادخال البيانات'!I164 -> 0 | R165: 0 | S165: 0 | T165: ='ادخال البيانات'!J164 -> 0 | U165: 0 | V165: 0 | W165: ='ادخال البيانات'!K164 -> 0 | X165: 0 | Y165: 0 | Z165: ='ادخال البيانات'!L164 -> 0 | AA165: 0 | AB165: 0
A166: ='ادخال البيانات'!A165 -> 159 | B166: ='ادخال البيانات'!B165 -> 0 | C166: ='ادخال البيانات'!C165 -> 0 | D166: ='ادخال البيانات'!D165 -> 0 | E166: ='ادخال البيانات'!E165 -> 0 | F166: 0 | G166: 0 | H166: ='ادخال البيانات'!F165 -> 0 | I166: 0 | J166: 0 | K166: ='ادخال البيانات'!G165 -> 0 | L166: 0 | M166: 0 | N166: ='ادخال البيانات'!H165 -> 0 | O166: 0 | P166: 0 | Q166: ='ادخال البيانات'!I165 -> 0 | R166: 0 | S166: 0 | T166: ='ادخال البيانات'!J165 -> 0 | U166: 0 | V166: 0 | W166: ='ادخال البيانات'!K165 -> 0 | X166: 0 | Y166: 0 | Z166: ='ادخال البيانات'!L165 -> 0 | AA166: 0 | AB166: 0
A167: ='ادخال البيانات'!A166 -> 160 | B167: ='ادخال البيانات'!B166 -> 0 | C167: ='ادخال البيانات'!C166 -> 0 | D167: ='ادخال البيانات'!D166 -> 0 | E167: ='ادخال البيانات'!E166 -> 0 | F167: 0 | G167: 0 | H167: ='ادخال البيانات'!F166 -> 0 | I167: 0 | J167: 0 | K167: ='ادخال البيانات'!G166 -> 0 | L167: 0 | M167: 0 | N167: ='ادخال البيانات'!H166 -> 0 | O167: 0 | P167: 0 | Q167: ='ادخال البيانات'!I166 -> 0 | R167: 0 | S167: 0 | T167: ='ادخال البيانات'!J166 -> 0 | U167: 0 | V167: 0 | W167: ='ادخال البيانات'!K166 -> 0 | X167: 0 | Y167: 0 | Z167: ='ادخال البيانات'!L166 -> 0 | AA167: 0 | AB167: 0
A168: ='ادخال البيانات'!A167 -> 161 | B168: ='ادخال البيانات'!B167 -> 0 | C168: ='ادخال البيانات'!C167 -> 0 | D168: ='ادخال البيانات'!D167 -> 0 | E168: ='ادخال البيانات'!E167 -> 0 | F168: 0 | G168: 0 | H168: ='ادخال البيانات'!F167 -> 0 | I168: 0 | J168: 0 | K168: ='ادخال البيانات'!G167 -> 0 | L168: 0 | M168: 0 | N168: ='ادخال البيانات'!H167 -> 0 | O168: 0 | P168: 0 | Q168: ='ادخال البيانات'!I167 -> 0 | R168: 0 | S168: 0 | T168: ='ادخال البيانات'!J167 -> 0 | U168: 0 | V168: 0 | W168: ='ادخال البيانات'!K167 -> 0 | X168: 0 | Y168: 0 | Z168: ='ادخال البيانات'!L167 -> 0 | AA168: 0 | AB168: 0
A169: ='ادخال البيانات'!A168 -> 162 | B169: ='ادخال البيانات'!B168 -> 0 | C169: ='ادخال البيانات'!C168 -> 0 | D169: ='ادخال البيانات'!D168 -> 0 | E169: ='ادخال البيانات'!E168 -> 0 | F169: 0 | G169: 0 | H169: ='ادخال البيانات'!F168 -> 0 | I169: 0 | J169: 0 | K169: ='ادخال البيانات'!G168 -> 0 | L169: 0 | M169: 0 | N169: ='ادخال البيانات'!H168 -> 0 | O169: 0 | P169: 0 | Q169: ='ادخال البيانات'!I168 -> 0 | R169: 0 | S169: 0 | T169: ='ادخال البيانات'!J168 -> 0 | U169: 0 | V169: 0 | W169: ='ادخال البيانات'!K168 -> 0 | X169: 0 | Y169: 0 | Z169: ='ادخال البيانات'!L168 -> 0 | AA169: 0 | AB169: 0
A170: ='ادخال البيانات'!A169 -> 163 | B170: ='ادخال البيانات'!B169 -> 0 | C170: ='ادخال البيانات'!C169 -> 0 | D170: ='ادخال البيانات'!D169 -> 0 | E170: ='ادخال البيانات'!E169 -> 0 | F170: 0 | G170: 0 | H170: ='ادخال البيانات'!F169 -> 0 | I170: 0 | J170: 0 | K170: ='ادخال البيانات'!G169 -> 0 | L170: 0 | M170: 0 | N170: ='ادخال البيانات'!H169 -> 0 | O170: 0 | P170: 0 | Q170: ='ادخال البيانات'!I169 -> 0 | R170: 0 | S170: 0 | T170: ='ادخال البيانات'!J169 -> 0 | U170: 0 | V170: 0 | W170: ='ادخال البيانات'!K169 -> 0 | X170: 0 | Y170: 0 | Z170: ='ادخال البيانات'!L169 -> 0 | AA170: 0 | AB170: 0
A171: ='ادخال البيانات'!A170 -> 164 | B171: ='ادخال البيانات'!B170 -> 0 | C171: ='ادخال البيانات'!C170 -> 0 | D171: ='ادخال البيانات'!D170 -> 0 | E171: ='ادخال البيانات'!E170 -> 0 | F171: 0 | G171: 0 | H171: ='ادخال البيانات'!F170 -> 0 | I171: 0 | J171: 0 | K171: ='ادخال البيانات'!G170 -> 0 | L171: 0 | M171: 0 | N171: ='ادخال البيانات'!H170 -> 0 | O171: 0 | P171: 0 | Q171: ='ادخال البيانات'!I170 -> 0 | R171: 0 | S171: 0 | T171: ='ادخال البيانات'!J170 -> 0 | U171: 0 | V171: 0 | W171: ='ادخال البيانات'!K170 -> 0 | X171: 0 | Y171: 0 | Z171: ='ادخال البيانات'!L170 -> 0 | AA171: 0 | AB171: 0
A172: ='ادخال البيانات'!A171 -> 165 | B172: ='ادخال البيانات'!B171 -> 0 | C172: ='ادخال البيانات'!C171 -> 0 | D172: ='ادخال البيانات'!D171 -> 0 | E172: ='ادخال البيانات'!E171 -> 0 | F172: 0 | G172: 0 | H172: ='ادخال البيانات'!F171 -> 0 | I172: 0 | J172: 0 | K172: ='ادخال البيانات'!G171 -> 0 | L172: 0 | M172: 0 | N172: ='ادخال البيانات'!H171 -> 0 | O172: 0 | P172: 0 | Q172: ='ادخال البيانات'!I171 -> 0 | R172: 0 | S172: 0 | T172: ='ادخال البيانات'!J171 -> 0 | U172: 0 | V172: 0 | W172: ='ادخال البيانات'!K171 -> 0 | X172: 0 | Y172: 0 | Z172: ='ادخال البيانات'!L171 -> 0 | AA172: 0 | AB172: 0
A173: ='ادخال البيانات'!A172 -> 166 | B173: ='ادخال البيانات'!B172 -> 0 | C173: ='ادخال البيانات'!C172 -> 0 | D173: ='ادخال البيانات'!D172 -> 0 | E173: ='ادخال البيانات'!E172 -> 0 | F173: 0 | G173: 0 | H173: ='ادخال البيانات'!F172 -> 0 | I173: 0 | J173: 0 | K173: ='ادخال البيانات'!G172 -> 0 | L173: 0 | M173: 0 | N173: ='ادخال البيانات'!H172 -> 0 | O173: 0 | P173: 0 | Q173: ='ادخال البيانات'!I172 -> 0 | R173: 0 | S173: 0 | T173: ='ادخال البيانات'!J172 -> 0 | U173: 0 | V173: 0 | W173: ='ادخال البيانات'!K172 -> 0 | X173: 0 | Y173: 0 | Z173: ='ادخال البيانات'!L172 -> 0 | AA173: 0 | AB173: 0
A174: ='ادخال البيانات'!A173 -> 167 | B174: ='ادخال البيانات'!B173 -> 0 | C174: ='ادخال البيانات'!C173 -> 0 | D174: ='ادخال البيانات'!D173 -> 0 | E174: ='ادخال البيانات'!E173 -> 0 | F174: 0 | G174: 0 | H174: ='ادخال البيانات'!F173 -> 0 | I174: 0 | J174: 0 | K174: ='ادخال البيانات'!G173 -> 0 | L174: 0 | M174: 0 | N174: ='ادخال البيانات'!H173 -> 0 | O174: 0 | P174: 0 | Q174: ='ادخال البيانات'!I173 -> 0 | R174: 0 | S174: 0 | T174: ='ادخال البيانات'!J173 -> 0 | U174: 0 | V174: 0 | W174: ='ادخال البيانات'!K173 -> 0 | X174: 0 | Y174: 0 | Z174: ='ادخال البيانات'!L173 -> 0 | AA174: 0 | AB174: 0
A175: ='ادخال البيانات'!A174 -> 168 | B175: ='ادخال البيانات'!B174 -> 0 | C175: ='ادخال البيانات'!C174 -> 0 | D175: ='ادخال البيانات'!D174 -> 0 | E175: ='ادخال البيانات'!E174 -> 0 | F175: 0 | G175: 0 | H175: ='ادخال البيانات'!F174 -> 0 | I175: 0 | J175: 0 | K175: ='ادخال البيانات'!G174 -> 0 | L175: 0 | M175: 0 | N175: ='ادخال البيانات'!H174 -> 0 | O175: 0 | P175: 0 | Q175: ='ادخال البيانات'!I174 -> 0 | R175: 0 | S175: 0 | T175: ='ادخال البيانات'!J174 -> 0 | U175: 0 | V175: 0 | W175: ='ادخال البيانات'!K174 -> 0 | X175: 0 | Y175: 0 | Z175: ='ادخال البيانات'!L174 -> 0 | AA175: 0 | AB175: 0
A176: ='ادخال البيانات'!A175 -> 169 | B176: ='ادخال البيانات'!B175 -> 0 | C176: ='ادخال البيانات'!C175 -> 0 | D176: ='ادخال البيانات'!D175 -> 0 | E176: ='ادخال البيانات'!E175 -> 0 | F176: 0 | G176: 0 | H176: ='ادخال البيانات'!F175 -> 0 | I176: 0 | J176: 0 | K176: ='ادخال البيانات'!G175 -> 0 | L176: 0 | M176: 0 | N176: ='ادخال البيانات'!H175 -> 0 | O176: 0 | P176: 0 | Q176: ='ادخال البيانات'!I175 -> 0 | R176: 0 | S176: 0 | T176: ='ادخال البيانات'!J175 -> 0 | U176: 0 | V176: 0 | W176: ='ادخال البيانات'!K175 -> 0 | X176: 0 | Y176: 0 | Z176: ='ادخال البيانات'!L175 -> 0 | AA176: 0 | AB176: 0
A177: ='ادخال البيانات'!A176 -> 170 | B177: ='ادخال البيانات'!B176 -> 0 | C177: ='ادخال البيانات'!C176 -> 0 | D177: ='ادخال البيانات'!D176 -> 0 | E177: ='ادخال البيانات'!E176 -> 0 | F177: 0 | G177: 0 | H177: ='ادخال البيانات'!F176 -> 0 | I177: 0 | J177: 0 | K177: ='ادخال البيانات'!G176 -> 0 | L177: 0 | M177: 0 | N177: ='ادخال البيانات'!H176 -> 0 | O177: 0 | P177: 0 | Q177: ='ادخال البيانات'!I176 -> 0 | R177: 0 | S177: 0 | T177: ='ادخال البيانات'!J176 -> 0 | U177: 0 | V177: 0 | W177: ='ادخال البيانات'!K176 -> 0 | X177: 0 | Y177: 0 | Z177: ='ادخال البيانات'!L176 -> 0 | AA177: 0 | AB177: 0
A178: ='ادخال البيانات'!A177 -> 171 | B178: ='ادخال البيانات'!B177 -> 0 | C178: ='ادخال البيانات'!C177 -> 0 | D178: ='ادخال البيانات'!D177 -> 0 | E178: ='ادخال البيانات'!E177 -> 0 | F178: 0 | G178: 0 | H178: ='ادخال البيانات'!F177 -> 0 | I178: 0 | J178: 0 | K178: ='ادخال البيانات'!G177 -> 0 | L178: 0 | M178: 0 | N178: ='ادخال البيانات'!H177 -> 0 | O178: 0 | P178: 0 | Q178: ='ادخال البيانات'!I177 -> 0 | R178: 0 | S178: 0 | T178: ='ادخال البيانات'!J177 -> 0 | U178: 0 | V178: 0 | W178: ='ادخال البيانات'!K177 -> 0 | X178: 0 | Y178: 0 | Z178: ='ادخال البيانات'!L177 -> 0 | AA178: 0 | AB178: 0
A179: ='ادخال البيانات'!A178 -> 172 | B179: ='ادخال البيانات'!B178 -> 0 | C179: ='ادخال البيانات'!C178 -> 0 | D179: ='ادخال البيانات'!D178 -> 0 | E179: ='ادخال البيانات'!E178 -> 0 | F179: 0 | G179: 0 | H179: ='ادخال البيانات'!F178 -> 0 | I179: 0 | J179: 0 | K179: ='ادخال البيانات'!G178 -> 0 | L179: 0 | M179: 0 | N179: ='ادخال البيانات'!H178 -> 0 | O179: 0 | P179: 0 | Q179: ='ادخال البيانات'!I178 -> 0 | R179: 0 | S179: 0 | T179: ='ادخال البيانات'!J178 -> 0 | U179: 0 | V179: 0 | W179: ='ادخال البيانات'!K178 -> 0 | X179: 0 | Y179: 0 | Z179: ='ادخال البيانات'!L178 -> 0 | AA179: 0 | AB179: 0
A180: ='ادخال البيانات'!A179 -> 173 | B180: ='ادخال البيانات'!B179 -> 0 | C180: ='ادخال البيانات'!C179 -> 0 | D180: ='ادخال البيانات'!D179 -> 0 | E180: ='ادخال البيانات'!E179 -> 0 | F180: 0 | G180: 0 | H180: ='ادخال البيانات'!F179 -> 0 | I180: 0 | J180: 0 | K180: ='ادخال البيانات'!G179 -> 0 | L180: 0 | M180: 0 | N180: ='ادخال البيانات'!H179 -> 0 | O180: 0 | P180: 0 | Q180: ='ادخال البيانات'!I179 -> 0 | R180: 0 | S180: 0 | T180: ='ادخال البيانات'!J179 -> 0 | U180: 0 | V180: 0 | W180: ='ادخال البيانات'!K179 -> 0 | X180: 0 | Y180: 0 | Z180: ='ادخال البيانات'!L179 -> 0 | AA180: 0 | AB180: 0
A181: ='ادخال البيانات'!A180 -> 174 | B181: ='ادخال البيانات'!B180 -> 0 | C181: ='ادخال البيانات'!C180 -> 0 | D181: ='ادخال البيانات'!D180 -> 0 | E181: ='ادخال البيانات'!E180 -> 0 | F181: 0 | G181: 0 | H181: ='ادخال البيانات'!F180 -> 0 | I181: 0 | J181: 0 | K181: ='ادخال البيانات'!G180 -> 0 | L181: 0 | M181: 0 | N181: ='ادخال البيانات'!H180 -> 0 | O181: 0 | P181: 0 | Q181: ='ادخال البيانات'!I180 -> 0 | R181: 0 | S181: 0 | T181: ='ادخال البيانات'!J180 -> 0 | U181: 0 | V181: 0 | W181: ='ادخال البيانات'!K180 -> 0 | X181: 0 | Y181: 0 | Z181: ='ادخال البيانات'!L180 -> 0 | AA181: 0 | AB181: 0
A182: ='ادخال البيانات'!A181 -> 175 | B182: ='ادخال البيانات'!B181 -> 0 | C182: ='ادخال البيانات'!C181 -> 0 | D182: ='ادخال البيانات'!D181 -> 0 | E182: ='ادخال البيانات'!E181 -> 0 | F182: 0 | G182: 0 | H182: ='ادخال البيانات'!F181 -> 0 | I182: 0 | J182: 0 | K182: ='ادخال البيانات'!G181 -> 0 | L182: 0 | M182: 0 | N182: ='ادخال البيانات'!H181 -> 0 | O182: 0 | P182: 0 | Q182: ='ادخال البيانات'!I181 -> 0 | R182: 0 | S182: 0 | T182: ='ادخال البيانات'!J181 -> 0 | U182: 0 | V182: 0 | W182: ='ادخال البيانات'!K181 -> 0 | X182: 0 | Y182: 0 | Z182: ='ادخال البيانات'!L181 -> 0 | AA182: 0 | AB182: 0
A183: ='ادخال البيانات'!A182 -> 176 | B183: ='ادخال البيانات'!B182 -> 0 | C183: ='ادخال البيانات'!C182 -> 0 | D183: ='ادخال البيانات'!D182 -> 0 | E183: ='ادخال البيانات'!E182 -> 0 | F183: 0 | G183: 0 | H183: ='ادخال البيانات'!F182 -> 0 | I183: 0 | J183: 0 | K183: ='ادخال البيانات'!G182 -> 0 | L183: 0 | M183: 0 | N183: ='ادخال البيانات'!H182 -> 0 | O183: 0 | P183: 0 | Q183: ='ادخال البيانات'!I182 -> 0 | R183: 0 | S183: 0 | T183: ='ادخال البيانات'!J182 -> 0 | U183: 0 | V183: 0 | W183: ='ادخال البيانات'!K182 -> 0 | X183: 0 | Y183: 0 | Z183: ='ادخال البيانات'!L182 -> 0 | AA183: 0 | AB183: 0
A184: ='ادخال البيانات'!A183 -> 177 | B184: ='ادخال البيانات'!B183 -> 0 | C184: ='ادخال البيانات'!C183 -> 0 | D184: ='ادخال البيانات'!D183 -> 0 | E184: ='ادخال البيانات'!E183 -> 0 | F184: 0 | G184: 0 | H184: ='ادخال البيانات'!F183 -> 0 | I184: 0 | J184: 0 | K184: ='ادخال البيانات'!G183 -> 0 | L184: 0 | M184: 0 | N184: ='ادخال البيانات'!H183 -> 0 | O184: 0 | P184: 0 | Q184: ='ادخال البيانات'!I183 -> 0 | R184: 0 | S184: 0 | T184: ='ادخال البيانات'!J183 -> 0 | U184: 0 | V184: 0 | W184: ='ادخال البيانات'!K183 -> 0 | X184: 0 | Y184: 0 | Z184: ='ادخال البيانات'!L183 -> 0 | AA184: 0 | AB184: 0
A185: ='ادخال البيانات'!A184 -> 178 | B185: ='ادخال البيانات'!B184 -> 0 | C185: ='ادخال البيانات'!C184 -> 0 | D185: ='ادخال البيانات'!D184 -> 0 | E185: ='ادخال البيانات'!E184 -> 0 | F185: 0 | G185: 0 | H185: ='ادخال البيانات'!F184 -> 0 | I185: 0 | J185: 0 | K185: ='ادخال البيانات'!G184 -> 0 | L185: 0 | M185: 0 | N185: ='ادخال البيانات'!H184 -> 0 | O185: 0 | P185: 0 | Q185: ='ادخال البيانات'!I184 -> 0 | R185: 0 | S185: 0 | T185: ='ادخال البيانات'!J184 -> 0 | U185: 0 | V185: 0 | W185: ='ادخال البيانات'!K184 -> 0 | X185: 0 | Y185: 0 | Z185: ='ادخال البيانات'!L184 -> 0 | AA185: 0 | AB185: 0
A186: ='ادخال البيانات'!A185 -> 179 | B186: ='ادخال البيانات'!B185 -> 0 | C186: ='ادخال البيانات'!C185 -> 0 | D186: ='ادخال البيانات'!D185 -> 0 | E186: ='ادخال البيانات'!E185 -> 0 | F186: 0 | G186: 0 | H186: ='ادخال البيانات'!F185 -> 0 | I186: 0 | J186: 0 | K186: ='ادخال البيانات'!G185 -> 0 | L186: 0 | M186: 0 | N186: ='ادخال البيانات'!H185 -> 0 | O186: 0 | P186: 0 | Q186: ='ادخال البيانات'!I185 -> 0 | R186: 0 | S186: 0 | T186: ='ادخال البيانات'!J185 -> 0 | U186: 0 | V186: 0 | W186: ='ادخال البيانات'!K185 -> 0 | X186: 0 | Y186: 0 | Z186: ='ادخال البيانات'!L185 -> 0 | AA186: 0 | AB186: 0
A187: ='ادخال البيانات'!A186 -> 180 | B187: ='ادخال البيانات'!B186 -> 0 | C187: ='ادخال البيانات'!C186 -> 0 | D187: ='ادخال البيانات'!D186 -> 0 | E187: ='ادخال البيانات'!E186 -> 0 | F187: 0 | G187: 0 | H187: ='ادخال البيانات'!F186 -> 0 | I187: 0 | J187: 0 | K187: ='ادخال البيانات'!G186 -> 0 | L187: 0 | M187: 0 | N187: ='ادخال البيانات'!H186 -> 0 | O187: 0 | P187: 0 | Q187: ='ادخال البيانات'!I186 -> 0 | R187: 0 | S187: 0 | T187: ='ادخال البيانات'!J186 -> 0 | U187: 0 | V187: 0 | W187: ='ادخال البيانات'!K186 -> 0 | X187: 0 | Y187: 0 | Z187: ='ادخال البيانات'!L186 -> 0 | AA187: 0 | AB187: 0
A188: ='ادخال البيانات'!A187 -> 181 | B188: ='ادخال البيانات'!B187 -> 0 | C188: ='ادخال البيانات'!C187 -> 0 | D188: ='ادخال البيانات'!D187 -> 0 | E188: ='ادخال البيانات'!E187 -> 0 | F188: 0 | G188: 0 | H188: ='ادخال البيانات'!F187 -> 0 | I188: 0 | J188: 0 | K188: ='ادخال البيانات'!G187 -> 0 | L188: 0 | M188: 0 | N188: ='ادخال البيانات'!H187 -> 0 | O188: 0 | P188: 0 | Q188: ='ادخال البيانات'!I187 -> 0 | R188: 0 | S188: 0 | T188: ='ادخال البيانات'!J187 -> 0 | U188: 0 | V188: 0 | W188: ='ادخال البيانات'!K187 -> 0 | X188: 0 | Y188: 0 | Z188: ='ادخال البيانات'!L187 -> 0 | AA188: 0 | AB188: 0
A189: ='ادخال البيانات'!A188 -> 182 | B189: ='ادخال البيانات'!B188 -> 0 | C189: ='ادخال البيانات'!C188 -> 0 | D189: ='ادخال البيانات'!D188 -> 0 | E189: ='ادخال البيانات'!E188 -> 0 | F189: 0 | G189: 0 | H189: ='ادخال البيانات'!F188 -> 0 | I189: 0 | J189: 0 | K189: ='ادخال البيانات'!G188 -> 0 | L189: 0 | M189: 0 | N189: ='ادخال البيانات'!H188 -> 0 | O189: 0 | P189: 0 | Q189: ='ادخال البيانات'!I188 -> 0 | R189: 0 | S189: 0 | T189: ='ادخال البيانات'!J188 -> 0 | U189: 0 | V189: 0 | W189: ='ادخال البيانات'!K188 -> 0 | X189: 0 | Y189: 0 | Z189: ='ادخال البيانات'!L188 -> 0 | AA189: 0 | AB189: 0
A190: ='ادخال البيانات'!A189 -> 183 | B190: ='ادخال البيانات'!B189 -> 0 | C190: ='ادخال البيانات'!C189 -> 0 | D190: ='ادخال البيانات'!D189 -> 0 | E190: ='ادخال البيانات'!E189 -> 0 | F190: 0 | G190: 0 | H190: ='ادخال البيانات'!F189 -> 0 | I190: 0 | J190: 0 | K190: ='ادخال البيانات'!G189 -> 0 | L190: 0 | M190: 0 | N190: ='ادخال البيانات'!H189 -> 0 | O190: 0 | P190: 0 | Q190: ='ادخال البيانات'!I189 -> 0 | R190: 0 | S190: 0 | T190: ='ادخال البيانات'!J189 -> 0 | U190: 0 | V190: 0 | W190: ='ادخال البيانات'!K189 -> 0 | X190: 0 | Y190: 0 | Z190: ='ادخال البيانات'!L189 -> 0 | AA190: 0 | AB190: 0
A191: ='ادخال البيانات'!A190 -> 184 | B191: ='ادخال البيانات'!B190 -> 0 | C191: ='ادخال البيانات'!C190 -> 0 | D191: ='ادخال البيانات'!D190 -> 0 | E191: ='ادخال البيانات'!E190 -> 0 | F191: 0 | G191: 0 | H191: ='ادخال البيانات'!F190 -> 0 | I191: 0 | J191: 0 | K191: ='ادخال البيانات'!G190 -> 0 | L191: 0 | M191: 0 | N191: ='ادخال البيانات'!H190 -> 0 | O191: 0 | P191: 0 | Q191: ='ادخال البيانات'!I190 -> 0 | R191: 0 | S191: 0 | T191: ='ادخال البيانات'!J190 -> 0 | U191: 0 | V191: 0 | W191: ='ادخال البيانات'!K190 -> 0 | X191: 0 | Y191: 0 | Z191: ='ادخال البيانات'!L190 -> 0 | AA191: 0 | AB191: 0
A192: ='ادخال البيانات'!A191 -> 185 | B192: ='ادخال البيانات'!B191 -> 0 | C192: ='ادخال البيانات'!C191 -> 0 | D192: ='ادخال البيانات'!D191 -> 0 | E192: ='ادخال البيانات'!E191 -> 0 | F192: 0 | G192: 0 | H192: ='ادخال البيانات'!F191 -> 0 | I192: 0 | J192: 0 | K192: ='ادخال البيانات'!G191 -> 0 | L192: 0 | M192: 0 | N192: ='ادخال البيانات'!H191 -> 0 | O192: 0 | P192: 0 | Q192: ='ادخال البيانات'!I191 -> 0 | R192: 0 | S192: 0 | T192: ='ادخال البيانات'!J191 -> 0 | U192: 0 | V192: 0 | W192: ='ادخال البيانات'!K191 -> 0 | X192: 0 | Y192: 0 | Z192: ='ادخال البيانات'!L191 -> 0 | AA192: 0 | AB192: 0
A193: ='ادخال البيانات'!A192 -> 186 | B193: ='ادخال البيانات'!B192 -> 0 | C193: ='ادخال البيانات'!C192 -> 0 | D193: ='ادخال البيانات'!D192 -> 0 | E193: ='ادخال البيانات'!E192 -> 0 | F193: 0 | G193: 0 | H193: ='ادخال البيانات'!F192 -> 0 | I193: 0 | J193: 0 | K193: ='ادخال البيانات'!G192 -> 0 | L193: 0 | M193: 0 | N193: ='ادخال البيانات'!H192 -> 0 | O193: 0 | P193: 0 | Q193: ='ادخال البيانات'!I192 -> 0 | R193: 0 | S193: 0 | T193: ='ادخال البيانات'!J192 -> 0 | U193: 0 | V193: 0 | W193: ='ادخال البيانات'!K192 -> 0 | X193: 0 | Y193: 0 | Z193: ='ادخال البيانات'!L192 -> 0 | AA193: 0 | AB193: 0
A194: ='ادخال البيانات'!A193 -> 187 | B194: ='ادخال البيانات'!B193 -> 0 | C194: ='ادخال البيانات'!C193 -> 0 | D194: ='ادخال البيانات'!D193 -> 0 | E194: ='ادخال البيانات'!E193 -> 0 | F194: 0 | G194: 0 | H194: ='ادخال البيانات'!F193 -> 0 | I194: 0 | J194: 0 | K194: ='ادخال البيانات'!G193 -> 0 | L194: 0 | M194: 0 | N194: ='ادخال البيانات'!H193 -> 0 | O194: 0 | P194: 0 | Q194: ='ادخال البيانات'!I193 -> 0 | R194: 0 | S194: 0 | T194: ='ادخال البيانات'!J193 -> 0 | U194: 0 | V194: 0 | W194: ='ادخال البيانات'!K193 -> 0 | X194: 0 | Y194: 0 | Z194: ='ادخال البيانات'!L193 -> 0 | AA194: 0 | AB194: 0
A195: ='ادخال البيانات'!A194 -> 188 | B195: ='ادخال البيانات'!B194 -> 0 | C195: ='ادخال البيانات'!C194 -> 0 | D195: ='ادخال البيانات'!D194 -> 0 | E195: ='ادخال البيانات'!E194 -> 0 | F195: 0 | G195: 0 | H195: ='ادخال البيانات'!F194 -> 0 | I195: 0 | J195: 0 | K195: ='ادخال البيانات'!G194 -> 0 | L195: 0 | M195: 0 | N195: ='ادخال البيانات'!H194 -> 0 | O195: 0 | P195: 0 | Q195: ='ادخال البيانات'!I194 -> 0 | R195: 0 | S195: 0 | T195: ='ادخال البيانات'!J194 -> 0 | U195: 0 | V195: 0 | W195: ='ادخال البيانات'!K194 -> 0 | X195: 0 | Y195: 0 | Z195: ='ادخال البيانات'!L194 -> 0 | AA195: 0 | AB195: 0
A196: ='ادخال البيانات'!A195 -> 189 | B196: ='ادخال البيانات'!B195 -> 0 | C196: ='ادخال البيانات'!C195 -> 0 | D196: ='ادخال البيانات'!D195 -> 0 | E196: ='ادخال البيانات'!E195 -> 0 | F196: 0 | G196: 0 | H196: ='ادخال البيانات'!F195 -> 0 | I196: 0 | J196: 0 | K196: ='ادخال البيانات'!G195 -> 0 | L196: 0 | M196: 0 | N196: ='ادخال البيانات'!H195 -> 0 | O196: 0 | P196: 0 | Q196: ='ادخال البيانات'!I195 -> 0 | R196: 0 | S196: 0 | T196: ='ادخال البيانات'!J195 -> 0 | U196: 0 | V196: 0 | W196: ='ادخال البيانات'!K195 -> 0 | X196: 0 | Y196: 0 | Z196: ='ادخال البيانات'!L195 -> 0 | AA196: 0 | AB196: 0
A197: ='ادخال البيانات'!A196 -> 190 | B197: ='ادخال البيانات'!B196 -> 0 | C197: ='ادخال البيانات'!C196 -> 0 | D197: ='ادخال البيانات'!D196 -> 0 | E197: ='ادخال البيانات'!E196 -> 0 | F197: 0 | G197: 0 | H197: ='ادخال البيانات'!F196 -> 0 | I197: 0 | J197: 0 | K197: ='ادخال البيانات'!G196 -> 0 | L197: 0 | M197: 0 | N197: ='ادخال البيانات'!H196 -> 0 | O197: 0 | P197: 0 | Q197: ='ادخال البيانات'!I196 -> 0 | R197: 0 | S197: 0 | T197: ='ادخال البيانات'!J196 -> 0 | U197: 0 | V197: 0 | W197: ='ادخال البيانات'!K196 -> 0 | X197: 0 | Y197: 0 | Z197: ='ادخال البيانات'!L196 -> 0 | AA197: 0 | AB197: 0
A198: ='ادخال البيانات'!A197 -> 191 | B198: ='ادخال البيانات'!B197 -> 0 | C198: ='ادخال البيانات'!C197 -> 0 | D198: ='ادخال البيانات'!D197 -> 0 | E198: ='ادخال البيانات'!E197 -> 0 | F198: 0 | G198: 0 | H198: ='ادخال البيانات'!F197 -> 0 | I198: 0 | J198: 0 | K198: ='ادخال البيانات'!G197 -> 0 | L198: 0 | M198: 0 | N198: ='ادخال البيانات'!H197 -> 0 | O198: 0 | P198: 0 | Q198: ='ادخال البيانات'!I197 -> 0 | R198: 0 | S198: 0 | T198: ='ادخال البيانات'!J197 -> 0 | U198: 0 | V198: 0 | W198: ='ادخال البيانات'!K197 -> 0 | X198: 0 | Y198: 0 | Z198: ='ادخال البيانات'!L197 -> 0 | AA198: 0 | AB198: 0
A199: ='ادخال البيانات'!A198 -> 192 | B199: ='ادخال البيانات'!B198 -> 0 | C199: ='ادخال البيانات'!C198 -> 0 | D199: ='ادخال البيانات'!D198 -> 0 | E199: ='ادخال البيانات'!E198 -> 0 | F199: 0 | G199: 0 | H199: ='ادخال البيانات'!F198 -> 0 | I199: 0 | J199: 0 | K199: ='ادخال البيانات'!G198 -> 0 | L199: 0 | M199: 0 | N199: ='ادخال البيانات'!H198 -> 0 | O199: 0 | P199: 0 | Q199: ='ادخال البيانات'!I198 -> 0 | R199: 0 | S199: 0 | T199: ='ادخال البيانات'!J198 -> 0 | U199: 0 | V199: 0 | W199: ='ادخال البيانات'!K198 -> 0 | X199: 0 | Y199: 0 | Z199: ='ادخال البيانات'!L198 -> 0 | AA199: 0 | AB199: 0
A200: ='ادخال البيانات'!A199 -> 193 | B200: ='ادخال البيانات'!B199 -> 0 | C200: ='ادخال البيانات'!C199 -> 0 | D200: ='ادخال البيانات'!D199 -> 0 | E200: ='ادخال البيانات'!E199 -> 0 | F200: =IF(B200="","",IF(E200="غ","غ",IF(ISTEXT(E200),0,E200/E$6))) -> 0 | G200: =IF(F200="","",IF(F200="غ","غ",VLOOKUP(F200,TTT,2,TRUE))) -> 0 | H200: ='ادخال البيانات'!F199 -> 0 | I200: 0 | J200: =IF(I200="","",IF(I200="غ","غ",VLOOKUP(I200,TTT,2,TRUE))) -> 0 | K200: ='ادخال البيانات'!G199 -> 0 | L200: 0 | M200: =IF(L200="","",IF(L200="غ","غ",VLOOKUP(L200,TTT,2,TRUE))) -> 0 | N200: ='ادخال البيانات'!H199 -> 0 | O200: 0 | P200: =IF(O200="","",IF(O200="غ","غ",VLOOKUP(O200,TTT,2,TRUE))) -> 0 | Q200: ='ادخال البيانات'!I199 -> 0 | R200: 0 | S200: =IF(R200="","",IF(R200="غ","غ",VLOOKUP(R200,TTT,2,TRUE))) -> 0 | T200: ='ادخال البيانات'!J199 -> 0 | U200: 0 | V200: =IF(U200="","",IF(U200="غ","غ",VLOOKUP(U200,TTT,2,TRUE))) -> 0 | W200: ='ادخال البيانات'!K199 -> 0 | X200: 0 | Y200: =IF(X200="","",IF(X200="غ","غ",VLOOKUP(X200,TTT,2,TRUE))) -> 0 | Z200: ='ادخال البيانات'!L199 -> 0 | AA200: 0 | AB200: =IF(AA200="","",IF(AA200="غ","غ",VLOOKUP(AA200,TTT,2,TRUE))) -> 0
... 689 more rows

Sheet Subject
A1: 2 | B1: =ss -> محافظة
B2: =dd -> إدارة | E2: =sch -> مدرسة
B3: كشف رصد درجات طلاب فصل / | D3: 1/4 | E3: المـــــادة : | F3: اللغة الانجليزية
B4: م | C4: الإسم | D4: الدرجة | E4: النسبة | F4: ملاحظات
B5: 1 | C5: الاسم 11 | D5: غ | E5: غ
B6: 2 | C6: الاسم 14 | D6: 76 | E6: 0.76
B7: 3 | C7: الاسم 74 | D7: 79 | E7: 0.79
B8: 4 | C8: الاسم 75 | D8: 74 | E8: 0.74
B9: 5 | C9: الاسم 76 | D9: 96 | E9: 0.96
B10: 6 | C10: الاسم 77 | D10: غ | E10: غ
B11: 7 | C11: الاسم 78 | D11: 98 | E11: 0.98
B12: 8 | C12: الاسم 79 | D12: 71 | E12: 0.71
B13: 9 | C13: الاسم 80 | D13: 84 | E13: 0.84
B14: 10 | C14: الاسم 81 | D14: 60 | E14: 0.6
B15: 11 | C15: الاسم 82 | D15: 92 | E15: 0.92
B16: 12 | C16: الاسم 83 | D16: 62 | E16: 0.62
B17: 13 | C17: الاسم 84 | D17: 68 | E17: 0.68
B18: 14
B19: 15
B20: 16
B21: 17
B22: 18
B23: 19
B24: 20
B25: 21
B26: 22
B27: 23
B28: 24
B29: 25
B30: 26
B31: 27
B32: 28
B33: 29
B34: 30 | I34: =E757+G757+I757+K757+M757 -> 11
C35: 0 | D35: 0 | E35: 0
C36: 0 | D36: 0 | E36: 0
C37: 0 | D37: 0 | E37: 0
C38: 0 | D38: 0 | E38: 0
C39: 0 | D39: 0 | E39: 0
C40: 0 | D40: 0 | E40: 0
C41: 0 | D41: 0 | E41: 0
C42: 0 | D42: 0 | E42: 0
C43: 0 | D43: 0 | E43: 0
C44: 0 | D44: 0 | E44: 0
C45: 0 | D45: 0 | E45: 0
C46: 0 | D46: 0 | E46: 0
C47: 0 | D47: 0 | E47: 0
C48: 0 | D48: 0 | E48: 0
C49: 0 | D49: 0 | E49: 0
C50: 0 | D50: 0 | E50: 0
C51: 0 | D51: 0 | E51: 0
C52: 0 | D52: 0 | E52: 0
C53: 0 | D53: 0 | E53: 0
C54: 0 | D54: 0 | E54: 0
C55: 0 | D55: 0 | E55: 0
C56: 0 | D56: 0 | E56: 0
C57: 0 | D57: 0 | E57: 0
C58: 0 | D58: 0 | E58: 0
C59: 0 | D59: 0 | E59: 0
C60: 0 | D60: 0 | E60: 0
C61: 0 | D61: 0 | E61: 0
C62: 0 | D62: 0 | E62: 0
C63: 0 | D63: 0 | E63: 0
C64: 0 | D64: 0 | E64: 0
C65: 0 | D65: 0 | E65: 0
C66: 0 | D66: 0 | E66: 0
C67: 0 | D67: 0 | E67: 0
C68: 0 | D68: 0 | E68: 0
C69: 0 | D69: 0 | E69: 0
C70: 0 | D70: 0 | E70: 0
C71: 0 | D71: 0 | E71: 0
C72: 0 | D72: 0 | E72: 0
C73: 0 | D73: 0 | E73: 0
C74: 0 | D74: 0 | E74: 0
C75: 0 | D75: 0 | E75: 0
C76: 0 | D76: 0 | E76: 0
C77: 0 | D77: 0 | E77: 0
C78: 0 | D78: 0 | E78: 0
C79: 0 | D79: 0 | E79: 0
C80: 0 | D80: 0 | E80: 0
C81: 0 | D81: 0 | E81: 0
C82: 0 | D82: 0 | E82: 0
C83: 0 | D83: 0 | E83: 0
C84: 0 | D84: 0 | E84: 0
C85: 0 | D85: 0 | E85: 0
C86: 0 | D86: 0 | E86: 0
C87: 0 | D87: 0 | E87: 0
C88: 0 | D88: 0 | E88: 0
C89: 0 | D89: 0 | E89: 0
C90: 0 | D90: 0 | E90: 0
C91: 0 | D91: 0 | E91: 0
C92: 0 | D92: 0 | E92: 0
C93: 0 | D93: 0 | E93: 0
C94: 0 | D94: 0 | E94: 0
C95: 0 | D95: 0 | E95: 0
C96: 0 | D96: 0 | E96: 0
C97: 0 | D97: 0 | E97: 0
C98: 0 | D98: 0 | E98: 0
C99: 0 | D99: 0 | E99: 0
C100: 0 | D100: 0 | E100: 0
C101: 0 | D101: 0 | E101: 0
C102: 0 | D102: 0 | E102: 0
C103: 0 | D103: 0 | E103: 0
C104: 0 | D104: 0 | E104: 0
C105: 0 | D105: 0 | E105: 0
C106: 0 | D106: 0 | E106: 0
C107: 0 | D107: 0 | E107: 0
C108: 0 | D108: 0 | E108: 0
C109: 0 | D109: 0 | E109: 0
C110: 0 | D110: 0 | E110: 0
C111: 0 | D111: 0 | E111: 0
C112: 0 | D112: 0 | E112: 0
C113: 0 | D113: 0 | E113: 0
C114: 0 | D114: 0 | E114: 0
C115: 0 | D115: 0 | E115: 0
C116: 0 | D116: 0 | E116: 0
C117: 0 | D117: 0 | E117: 0
C118: 0 | D118: 0 | E118: 0
C119: 0 | D119: 0 | E119: 0
C120: 0 | D120: 0 | E120: 0
C121: 0 | D121: 0 | E121: 0
C122: 0 | D122: 0 | E122: 0
C123: 0 | D123: 0 | E123: 0
C124: 0 | D124: 0 | E124: 0
C125: 0 | D125: 0 | E125: 0
C126: 0 | D126: 0 | E126: 0
C127: 0 | D127: 0 | E127: 0
C128: 0 | D128: 0 | E128: 0
C129: 0 | D129: 0 | E129: 0
C130: 0 | D130: 0 | E130: 0
C131: 0 | D131: 0 | E131: 0
C132: 0 | D132: 0 | E132: 0
C133: 0 | D133: 0 | E133: 0
C134: 0 | D134: 0 | E134: 0
C135: 0 | D135: 0 | E135: 0
C136: 0 | D136: 0 | E136: 0
C137: 0 | D137: 0 | E137: 0
C138: 0 | D138: 0 | E138: 0
C139: 0 | D139: 0 | E139: 0
C140: 0 | D140: 0 | E140: 0
C141: 0 | D141: 0 | E141: 0
C142: 0 | D142: 0 | E142: 0
C143: 0 | D143: 0 | E143: 0
C144: 0 | D144: 0 | E144: 0
C145: 0 | D145: 0 | E145: 0
C146: 0 | D146: 0 | E146: 0
C147: 0 | D147: 0 | E147: 0
C148: 0 | D148: 0 | E148: 0
C149: 0 | D149: 0 | E149: 0
C150: 0 | D150: 0 | E150: 0
C151: 0 | D151: 0 | E151: 0
C152: 0 | D152: 0 | E152: 0
C153: 0 | D153: 0 | E153: 0
C154: 0 | D154: 0 | E154: 0
C155: 0 | D155: 0 | E155: 0
C156: 0 | D156: 0 | E156: 0
C157: 0 | D157: 0 | E157: 0
C158: 0 | D158: 0 | E158: 0
C159: 0 | D159: 0 | E159: 0
C160: 0 | D160: 0 | E160: 0
C161: 0 | D161: 0 | E161: 0
C162: 0 | D162: 0 | E162: 0
C163: 0 | D163: 0 | E163: 0
C164: 0 | D164: 0 | E164: 0
C165: 0 | D165: 0 | E165: 0
C166: 0 | D166: 0 | E166: 0
C167: 0 | D167: 0 | E167: 0
C168: 0 | D168: 0 | E168: 0
C169: 0 | D169: 0 | E169: 0
C170: 0 | D170: 0 | E170: 0
C171: 0 | D171: 0 | E171: 0
C172: 0 | D172: 0 | E172: 0
C173: 0 | D173: 0 | E173: 0
C174: 0 | D174: 0 | E174: 0
C175: 0 | D175: 0 | E175: 0
C176: 0 | D176: 0 | E176: 0
C177: 0 | D177: 0 | E177: 0
C178: 0 | D178: 0 | E178: 0
C179: 0 | D179: 0 | E179: 0
C180: 0 | D180: 0 | E180: 0
C181: 0 | D181: 0 | E181: 0
C182: 0 | D182: 0 | E182: 0
C183: 0 | D183: 0 | E183: 0
C184: 0 | D184: 0 | E184: 0
C185: 0 | D185: 0 | E185: 0
C186: 0 | D186: 0 | E186: 0
C187: 0 | D187: 0 | E187: 0
C188: 0 | D188: 0 | E188: 0
C189: 0 | D189: 0 | E189: 0
C190: 0 | D190: 0 | E190: 0
C191: 0 | D191: 0 | E191: 0
C192: 0 | D192: 0 | E192: 0
C193: 0 | D193: 0 | E193: 0
C194: 0 | D194: 0 | E194: 0
C195: 0 | D195: 0 | E195: 0
C196: 0 | D196: 0 | E196: 0
C197: 0 | D197: 0 | E197: 0
C198: 0 | D198: 0 | E198: 0
C199: 0 | D199: 0 | E199: 0
C200: 0 | D200: 0 | E200: 0
... 556 more rows
